date,department/service,beneficiary,amount,summary of purpose,category,transaction number,SAP vendor number
01.04.2021,ADULT SOCIAL CARE,THAMES HOMECARE SERVICE LTD,"28,405.00",REABLEMENT CONTRACT,HOMECARE - C&V,5902463940,1000079295
01.04.2021,ASSET MANAGEMENT,BRYHILL TECHNICAL SERVICES,389.69,DISREPAIR,BUILDING R&M,2103242503,3000001722
01.04.2021,ASSET MANAGEMENT,BRYHILL TECHNICAL SERVICES,780.21,DISREPAIR,BUILDING R&M,2103242503,3000001722
01.04.2021,CUSTOMER EXPERIENCE HGF,IMPERIAL COLLEGE PROJECTS LTD,292.00,CORONER'S,PROFESSIONAL FEES,5902462990,1000080106
01.04.2021,CUSTOMER EXPERIENCE HGF,IMPERIAL COLLEGE PROJECTS LTD,440.00,CORONER'S,PROFESSIONAL FEES,5902462993,1000080106
01.04.2021,CUSTOMER EXPERIENCE HGF,NRC PATHOLOGY SERVICES LIMITED,360.00,CORONER'S,PROFESSIONAL FEES,5902462994,1000085798
01.04.2021,CUSTOMER EXPERIENCE HGF,ST MUNGO'S ASSOCIATION,"4,306.51",RAPID REHOUSING,EXTERNAL AGENCIES AND BODIES,5902463217,1000058785
01.04.2021,CUSTOMER EXPERIENCE HGF,ST MUNGO'S ASSOCIATION,"4,306.51",RAPID REHOUSING,EXTERNAL AGENCIES AND BODIES,5902463216,1000058785
01.04.2021,ENVIRONMENT AND LEISURE,BARCHAM TREES PLC,652.50,CAPITAL PS (LEISURE),CONSTRUCTION FEES,5902463412,11254891
01.04.2021,ENVIRONMENT AND LEISURE,BARCHAM TREES PLC,"1,829.70",CAPITAL PS (LEISURE),CONSTRUCTION FEES,5902463412,11254891
01.04.2021,ENVIRONMENT AND LEISURE,BARCHAM TREES PLC,"7,364.70",CAPITAL PS (LEISURE),CONSTRUCTION FEES,5902463410,11254891
01.04.2021,ENVIRONMENT DIRECTORATE,GREENHAM TRADING LTD,480.00,ESTATE CLEANING-GENERAL,MATERIALS,5902462847,1000006610
01.04.2021,ENVIRONMENT DIRECTORATE,CONWAY AECOM LTD,"2,861.76",PARKING OVERHEADS,OTHER CONTRACTORS,5902463127,1000071205
01.04.2021,ENVIRONMENT DIRECTORATE,CONWAY AECOM LTD,"5,959.35",SECTION 278 & 38,OTHER CONTRACTORS,5902463177,1000071205
01.04.2021,ENVIRONMENT DIRECTORATE,BAKER ENGINEERING,373.85,STREET CLEANING-GENERAL,EQUIPMENT PURCHASE & REPAIR,5902462935,1000038205
01.04.2021,ENVIRONMENT DIRECTORATE,TYCO INTEGRATED FIRE & SECURITY,"13,802.75",TOWN CENTRE CCTV,EQUIPMENT PURCHASE & REPAIR,5902463123,1000077948
01.04.2021,F & C S EXCLUDING CORPORATE BUDGETS,CIPFA,"1,825.00",CIPFA TRAINEES,TRAINING,5902462999,1000000196
01.04.2021,HOUSING HRA,THE LIFECARE CENTRE LTD,"2,932.00",CAPITAL PS (HRA),UTILITIES INSTALLATION,5902462911,1000057137
01.04.2021,HOUSING HRA,CROWN CONSULTANTS LTD,650.00,CAPITAL PS (REGEN),CONSTRUCTION FEES  - EXTERNAL,5902462679,1000077116
01.04.2021,HUMAN RESOURCES,HALFORDS LTD,"1,406.67",BIKE SCHEME,OTHER EMPLOYEE EXPENSES,5902463122,1000041969
01.04.2021,LEISURE DIRECTORATE,BLUE FROG TOYS LTD,886.44,COMMUNITY SPORTS DEVELOPMENT,EXTERNAL AGENCIES AND BODIES,5902463187,1000086478
01.04.2021,LEISURE DIRECTORATE,THE KNOWLEDGE ACADEMY LTD,"1,495.00",LIBRARIES DEVELOPMENT,TRAINING,5902462947,1000064533
01.04.2021,LEISURE DIRECTORATE,CONWAY AECOM LTD,"13,200.00",SDM BUDGET,PROFESSIONAL FEES,5902462602,1000071205
01.04.2021,LEISURE DIRECTORATE,THE SECRET GARDEN,421.75,SOUTHWARK AREA TEAM,GROUNDS MAINTENANCE,5902463262,1000067627
01.04.2021,MODERNISATION HGF,EMS EVENTS LTD,"4,948.98",160 TOOLEY ST.,MISCELLANEOUS EXPENSES,5902463179,1000057494
01.04.2021,MODERNISATION HGF,EMS EVENTS LTD,"2,163.20",QUEENS RD 1 (BLOCK F),MISCELLANEOUS EXPENSES,5902463179,1000057494
01.04.2021,PUBLIC HEALTH,CENTRAL SOUTHWARK COMMUNITY HUB,"7,400.00",PLACE & HEALTH IMPROVEMENT,EXTERNAL AGENCIES AND BODIES,5902462829,1000083089
01.04.2021,PUBLIC HEALTH,BARTS HEALTH NHS TRUST,"4,533.00",SEXUAL HEALTH - STI,EXTERNAL AGENCIES AND BODIES,5902463080,1000055762
01.04.2021,SOUTHWARK BUILDING SERVICES,PPG ARCHITECTURAL COATINGS,274.80,STORES/LOGISTICS,CREDITORS -GR/IR CLEARING ACCOUNT,5902463464,11063178
01.04.2021,SOUTHWARK BUILDING SERVICES,PPG ARCHITECTURAL COATINGS,337.80,STORES/LOGISTICS,CREDITORS -GR/IR CLEARING ACCOUNT,5902463464,11063178
01.04.2021,SOUTHWARK BUILDING SERVICES,PPG ARCHITECTURAL COATINGS,360.40,STORES/LOGISTICS,CREDITORS -GR/IR CLEARING ACCOUNT,5902463464,11063178
01.04.2021,SOUTHWARK BUILDING SERVICES,PPG ARCHITECTURAL COATINGS,563.00,STORES/LOGISTICS,CREDITORS -GR/IR CLEARING ACCOUNT,5902463464,11063178
02.04.2021,ASSET MANAGEMENT,LOWER MEAD LTD,"2,875.00",COMMERCIAL (QS),PROFESSIONAL FEES,5902462835,1000082508
02.04.2021,ASSET MANAGEMENT,LOWER MEAD LTD,"2,875.00",COMMERCIAL (QS),PROFESSIONAL FEES,5902462831,1000082508
02.04.2021,ASSET MANAGEMENT,T BROWN & SONS (HEATING) LTD,"7,084.14",ENG CONTRACTS (NORTH),HEATING -DISTRICT SERVICE (CONTRACT SUM),5902462952,1000040191
02.04.2021,CENTRAL FUNCTIONS,KENT COUNTY COUNCIL - LASER,"20,654.60",HEATING ACCOUNT,ELECTRICITY,5902462938,1000012926
02.04.2021,CENTRAL FUNCTIONS,KENT COUNTY COUNCIL - LASER,"51,906.91",HEATING ACCOUNT,ELECTRICITY,5902462938,1000012926
02.04.2021,CENTRAL FUNCTIONS,KENT COUNTY COUNCIL - LASER,"59,090.96",HEATING ACCOUNT,GAS,5902462937,1000012926
02.04.2021,CENTRAL FUNCTIONS,KENT COUNTY COUNCIL - LASER,"429,269.67",HEATING ACCOUNT,GAS,5902462937,1000012926
02.04.2021,CHIEF EXECUTIVE,POTTER RAPER LTD,600.00,CAPITAL PS (REGEN),CONSTRUCTION FEES - ARCHITECT,5902462979,1009369
02.04.2021,CHIEF EXECUTIVE,POTTER RAPER LTD,"7,700.00",CAPITAL PS (REGEN),CONSTRUCTION FEES - ARCHITECT,5902462979,1009369
02.04.2021,CHILDREN AND FAMILIES,NETWORK RECRUITMENT SOLUTIONS,375.00,CONTACT SERVICE,OTHER PAYMENTS FOR CLIENTS,5902463872,1000071241
02.04.2021,CHILDREN AND FAMILIES,NETWORK RECRUITMENT SOLUTIONS,450.00,CONTACT SERVICE,OTHER PAYMENTS FOR CLIENTS,5902463866,1000071241
02.04.2021,CHILDREN AND FAMILIES,NETWORK RECRUITMENT SOLUTIONS,525.00,CONTACT SERVICE,OTHER PAYMENTS FOR CLIENTS,5902463863,1000071241
02.04.2021,CHILDREN AND FAMILIES,NETWORK RECRUITMENT SOLUTIONS,600.00,CONTACT SERVICE,OTHER PAYMENTS FOR CLIENTS,5902463862,1000071241
02.04.2021,CHILDREN AND FAMILIES,NETWORK RECRUITMENT SOLUTIONS,"1,086.00",CONTACT SERVICE,OTHER PAYMENTS FOR CLIENTS,5902463873,1000071241
02.04.2021,CHILDREN AND FAMILIES,ARK ALL SAINTS ACADEMY,"25,000.00",GRANT FUNDED PROJ�S,EXTERNAL AGENCIES AND BODIES,5902462933,1000074048
02.04.2021,COMMUNITIES,LEATHERMARKET JMB HOUSING,"5,538.98",LEATHERMARKET CO-OP,M&M ALLOWANCE CO-OPS,5902462931,11182872
02.04.2021,COMMUNITIES,LEATHERMARKET JMB HOUSING,"11,598.74",LEATHERMARKET CO-OP,M&M ALLOWANCE CO-OPS,5902462930,11182872
02.04.2021,EDUCATION,TROWERS & HAMLINS LLP,"3,112.50",PROPERTY MANAGEMENT,LEGAL FEES & COURT COSTS,5902463959,1000016239
02.04.2021,ENVIRONMENT DIRECTORATE,DRAIN SCAN,"3,460.00",GULLEY CLEAN NON PRINC ROAD,OTHER CONTRACTORS,5902463057,1908746
02.04.2021,ENVIRONMENT DIRECTORATE,F R JONES & SON LTD,736.15,NON HOUSING GROUNDS,EQUIPMENT PURCHASE & REPAIR,5902463732,1000037178
02.04.2021,ENVIRONMENT DIRECTORATE,1ENV SOLUTIONS LTD,"1,144.78",PEST CONTROL,MATERIALS,5902462934,1000075410
02.04.2021,HOUSING HRA,CALFORD SEADEN LLP,648.84,CAPITAL PS (HRA),CONSTRUCTION FEES  - EXTERNAL,5902463804,1061592
02.04.2021,HOUSING HRA,CALFORD SEADEN LLP,"1,108.38",CAPITAL PS (HRA),CONSTRUCTION FEES  - EXTERNAL,5902463799,1061592
02.04.2021,HOUSING HRA,PROJECT CENTRE LTD,728.00,CAPITAL PS (REGEN),CONSTRUCTION FEES  - EXTERNAL,5902463718,1000072621
02.04.2021,HOUSING HRA,PROJECT CENTRE LTD,"1,322.00",CAPITAL PS (REGEN),CONSTRUCTION FEES  - EXTERNAL,5902463718,1000072621
02.04.2021,LEISURE DIRECTORATE,SPORTS AND LEISURE MANAGEMENT LTD,"27,575.00",FACILITIES MANAGEMENT,OTHER CONTRACTORS,5902463907,1000077862
02.04.2021,LEISURE DIRECTORATE,LONDON PARKS & GREEN SPACES FORUM,"4,500.00",PARKS SERVICES DEVELOPMENT,SUBSCRIPTIONS,5902463270,1000009948
02.04.2021,MODERNISATION HGF,URBANCANDA,"2,000.00",MEMBER DEVELOPMENT,TRAINING,5902463202,1000036367
02.04.2021,MODERNISATION HGF,URBANCANDA,"2,000.00",MEMBER DEVELOPMENT,TRAINING,5902463201,1000036367
02.04.2021,NEW BUILD,BAILY  GARNER LLP,"28,227.22",DEVELOPMENT DELIVERY,PROFESSIONAL FEES,5902463833,1000663
02.04.2021,PLANNING AND TRANSPORT,OPINION RESEARCH SERVICES LTD,"3,400.00",PLANNING POLICY TEAM,CONSULTANTS SERVICES,5902463793,1000056707
02.04.2021,PUBLIC HEALTH,THE COLLEGE OF CONTEMPORARY HEALTH,"12,400.00",HEALTHY WEIGHT,EXTERNAL AGENCIES AND BODIES,5902463232,1000080685
02.04.2021,PUBLIC HEALTH,TIME & TALENTS ASSOCIATION,"1,980.00",PLACE & HEALTH IMPROVEMENT,EXTERNAL AGENCIES AND BODIES,5902462850,1757632
03.04.2021,ADULT SOCIAL CARE,HEALTH ADVOCACY UK LTD,650.00,CHC ADVOCACY- OP/PD,EXTERNAL AGENCIES AND BODIES,5902463275,1000082156
03.04.2021,ADULT SOCIAL CARE,CONTACT PROFESSIONALS,478.80,PHY LTS 18-64,OTHER PAYMENTS FOR CLIENTS,5902463930,1000057263
03.04.2021,ADULT SOCIAL CARE,GUYS & ST THOMAS NHS FOUNDATION TRUST,"1,142.10",REABLEMENT SERVICE,EXTERNAL AGENCIES AND BODIES,5902464008,1765536
03.04.2021,ASSET MANAGEMENT,JUDGE AND PRIESTLEY SOLICITORS,"10,000.00",DISREPAIR,PAYMENTS FOR LEGAL SERVICES,5902463318,1472217
03.04.2021,ASSET MANAGEMENT,JUDGE AND PRIESTLEY SOLICITORS,"10,000.00",DISREPAIR,PAYMENTS FOR LEGAL SERVICES,5902463314,1472217
03.04.2021,CENTRAL FUNCTIONS,STANBURY BUILDING SERVICES LTD,350.00,COMMERCIAL PROPERTIES,BUILDING R&M,5902463113,1000078207
03.04.2021,CENTRAL FUNCTIONS,STANBURY BUILDING SERVICES LTD,395.00,COMMERCIAL PROPERTIES,BUILDING R&M,5902463844,1000078207
03.04.2021,CHIEF EXECUTIVE,STEPHEN TAYLOR ARCHITECTS LTD,"9,775.00",CAPITAL PS (REGEN),CONSTRUCTION FEES - ARCHITECT,5902463523,1000083590
03.04.2021,COMMUNITIES,GLADSTONES CLINIC,"2,800.00",TIER 4 SERVICES,MEDICAL / HEALTH & SAFETY SERVICES,5902463191,1000086289
03.04.2021,EDUCATION,RE TODAY SERVICES,"1,195.00",SACRE,CONSULTANTS SERVICES,5902463188,1000084088
03.04.2021,ENVIRONMENT AND LEISURE,BARCHAM TREES PLC,280.80,CAPITAL PS (LEISURE),CONSTRUCTION FEES,5902463238,11254891
03.04.2021,ENVIRONMENT AND LEISURE,BARCHAM TREES PLC,"2,610.90",CAPITAL PS (LEISURE),CONSTRUCTION FEES,5902463235,11254891
03.04.2021,ENVIRONMENT AND LEISURE,BARCHAM TREES PLC,"7,878.60",CAPITAL PS (LEISURE),CONSTRUCTION FEES,5902463407,11254891
03.04.2021,ENVIRONMENT AND LEISURE,DIVECO MARINE LTD,"95,943.88",CAPITAL PS (LEISURE),CONSTRUCTION FEES  - EXTERNAL,2103239583,3000002162
03.04.2021,ENVIRONMENT AND LEISURE,PIERCE HILL PROJECT SERVICES LTD,425.00,CAPITAL PS (LEISURE),CONSTRUCTION FEES - ARCHITECT,5902463017,1000082971
03.04.2021,ENVIRONMENT DIRECTORATE,AMETHYST HORTICULTURE LTD,"5,328.00",GROUNDS MAINTENANCE - GENERAL,MATERIALS,5902463091,1000054623
03.04.2021,HOUSING HRA,SHARPE PRITCHARD LLP,880.00,CAPITAL PS (HRA),CONSTRUCTION FEES - LEGAL,5902463845,1790085
03.04.2021,HOUSING HRA,MORGAN SINDALL PLC,"2,231.75",CAPITAL PS (HRA),CONSTRUCTION MAIN CONTRACT -CERTIFICATED,2103241644,3000001556
03.04.2021,HOUSING HRA,GUILDMORE LTD,"194,177.35",CAPITAL PS (HRA),CONSTRUCTION MAIN CONTRACT -CERTIFICATED,2103241477,3000002150
03.04.2021,HOUSING HRA,HTA DESIGN LLP,"12,000.00",CAPITAL PS (REGEN),CONSTRUCTION FEES  - EXTERNAL,5902463700,1000074662
03.04.2021,LEISURE DIRECTORATE,TTS GROUP LTD,"1,218.90",COMMUNITY SPORTS DEVELOPMENT,EXTERNAL AGENCIES AND BODIES,5902463157,1000015308
03.04.2021,LEISURE DIRECTORATE,GRISTWOOD & TOMS LTD,"6,520.00",EMERGENCY TREES RECOVERY PROJECT,OTHER CONTRACTORS,5902463650,1000028580
03.04.2021,LEISURE DIRECTORATE,GRISTWOOD & TOMS LTD,"16,695.00",EMERGENCY TREES RECOVERY PROJECT,OTHER CONTRACTORS,5902463652,1000028580
03.04.2021,LEISURE DIRECTORATE,GRISTWOOD & TOMS LTD,"18,540.00",EMERGENCY TREES RECOVERY PROJECT,OTHER CONTRACTORS,5902463653,1000028580
03.04.2021,LEISURE DIRECTORATE,GRISTWOOD & TOMS LTD,"27,165.00",EMERGENCY TREES RECOVERY PROJECT,OTHER CONTRACTORS,5902463663,1000028580
03.04.2021,LEISURE DIRECTORATE,GRISTWOOD & TOMS LTD,"30,230.00",EMERGENCY TREES RECOVERY PROJECT,OTHER CONTRACTORS,5902463655,1000028580
03.04.2021,LEISURE DIRECTORATE,GRISTWOOD & TOMS LTD,"30,920.00",EMERGENCY TREES RECOVERY PROJECT,OTHER CONTRACTORS,5902463658,1000028580
03.04.2021,LEISURE DIRECTORATE,ADVANCED TREE SERVICES LTD,"1,170.00",EMERGENCY TREES RECOVERY PROJECT,OTHER CONTRACTORS,5902463225,1000079711
03.04.2021,LEISURE DIRECTORATE,ACTIVE COMMUNITIES NETWORK LTD,"7,200.75",GRANTS COMMISSIONING,GRANTS,5902462974,1000057408
03.04.2021,RESIDENT SERVICES,IGPP LIMITED,316.00,WALWORTH EAST,TRAINING,5902463904,1000086438
04.04.2021,CENTRAL FUNCTIONS,LAMBERT SMITH HAMPTON GROUP LTD,"2,400.00",TECHNICAL SUPPORT,PROFESSIONAL FEES,5902463759,1000060045
04.04.2021,CHIEF EXECUTIVE,TILHILL FORESTRY LTD,"56,451.32",CAPITAL PS (REGEN),CONSTRUCTION,2103241475,3000001208
04.04.2021,CHIEF EXECUTIVE,DDS DEMOLITION LTD,"15,663.34",CAPITAL PS (REGEN),CONSTRUCTION SITE COSTS,2103241476,3000002058
04.04.2021,CHILDREN AND FAMILIES,LONDON EARLY YEARS FOUNDATION,578.76,TEAM D,OTHER PAYMENTS FOR CLIENTS,5902463424,1000077919
04.04.2021,CHILDREN AND FAMILIES,CAPITA BUSINESS SERVICES LTD,"11,327.56",TROUBLED FAM�S TEAM,TRAINING,5902463072,1000006291
04.04.2021,CUSTOMER EXPERIENCE HGF,IMPERIAL COLLEGE PROJECTS LTD,484.00,CORONER'S,PROFESSIONAL FEES,5902463207,1000080106
04.04.2021,CUSTOMER EXPERIENCE HGF,VIBRANT GROUP YORKSHIRE LTD,"3,700.00",HOMELESS PROJECTS,GRANTS,5902462748,1000083545
04.04.2021,CUSTOMER EXPERIENCE HGF,LOOK AHEAD CARE AND SUPPORT LTD,500.00,HOUSING OPTIONS,EXTERNAL AGENCIES AND BODIES,5902463608,1000047299
04.04.2021,CUSTOMER EXPERIENCE HGF,LOOK AHEAD CARE AND SUPPORT LTD,500.00,HOUSING OPTIONS,EXTERNAL AGENCIES AND BODIES,5902463598,1000047299
04.04.2021,DSG,LESOCO,"2,727.27",LAC EDUCATION,EXTERNAL AGENCIES AND BODIES,5902463303,1128858
04.04.2021,ENVIRONMENT AND LEISURE,F M CONWAY LTD,"12,040.44",CAPITAL PS (LEISURE),CONSTRUCTION FEES,2103242510,4001384
04.04.2021,ENVIRONMENT AND LEISURE,BARCHAM TREES PLC,495.90,CAPITAL PS (LEISURE),CONSTRUCTION FEES,5902463252,11254891
04.04.2021,ENVIRONMENT AND LEISURE,BARCHAM TREES PLC,564.30,CAPITAL PS (LEISURE),CONSTRUCTION FEES,5902463251,11254891
04.04.2021,ENVIRONMENT AND LEISURE,ROGER MEARS ARCHITECTS LLP,"2,280.00",CAPITAL PS (LEISURE),CONSTRUCTION FEES - ARCHITECT,5902463722,1000085548
04.04.2021,ENVIRONMENT AND LEISURE,ROGER MEARS ARCHITECTS LLP,"2,400.00",CAPITAL PS (LEISURE),CONSTRUCTION FEES - ARCHITECT,5902463722,1000085548
04.04.2021,ENVIRONMENT DIRECTORATE,SOUTHWARK NEWSPAPER LTD,732.00,HIGHWAYS DEVELOPMENT,MARKETING & PUBLICITY SERVICES,5902463451,1556957
04.04.2021,ENVIRONMENT DIRECTORATE,SOUTHWARK NEWSPAPER LTD,780.00,HIGHWAYS DEVELOPMENT,MARKETING & PUBLICITY SERVICES,5902463450,1556957
04.04.2021,ENVIRONMENT DIRECTORATE,CHARTERED INST. OF ENVIRONMENTAL HEALTH,515.00,LICENSING,STATIONERY,5902463443,1605413
04.04.2021,ENVIRONMENT DIRECTORATE,CONWAY AECOM LTD,"5,810.24",PARKING OVERHEADS,OTHER CONTRACTORS,5902463124,1000071205
04.04.2021,ENVIRONMENT DIRECTORATE,BARRETTINE ENVIRONMENTAL HEALTH,299.79,PEST CONTROL,MATERIALS,5902463164,1000050556
04.04.2021,ENVIRONMENT DIRECTORATE,BRITISH GAS,415.01,STREET TRADING A/C,ELECTRICITY,5902463456,1000054825
04.04.2021,ENVIRONMENT DIRECTORATE,SOUTHWARK NEWSPAPER LTD,324.00,STREET WORKS OVERHEADS,MARKETING & PUBLICITY SERVICES,5902463362,1556957
04.04.2021,ENVIRONMENT DIRECTORATE,SOUTHWARK NEWSPAPER LTD,360.00,STREET WORKS OVERHEADS,MARKETING & PUBLICITY SERVICES,5902463360,1556957
04.04.2021,ENVIRONMENT DIRECTORATE,WEB LABS LTD,"2,250.00",SUSTAINABLE WASTE OVERHEADS,OP LEASE/HIRE CHARGES:PLANT/EQUIP/FURNIT,5902463760,1000039819
04.04.2021,F & C S EXCLUDING CORPORATE BUDGETS,DSI BILLING SERVICES LTD,"1,359.26",ADMINISTRATIVE SUPPORT,POSTAGES,5902463905,1000058640
04.04.2021,F & C S EXCLUDING CORPORATE BUDGETS,CIPFA BUSINESS LTD,295.00,CORPORATE SERVICES AND F&G,TRAINING,5902463619,1000024688
04.04.2021,F & C S EXCLUDING CORPORATE BUDGETS,BDO LLP,"2,083.33",RISK ADMIN,PROFESSIONAL FEES,5902463322,1000057898
04.04.2021,HOUSING HRA,STOLON STUDIO LTD,"24,740.63",CAPITAL PS (HRA),CONSTRUCTION FEES - ARCHITECT,5902463841,1000086107
04.04.2021,HOUSING HRA,CALFORD SEADEN LLP,"1,764.00",CAPITAL PS (HRA),CONSTRUCTION FEES - EMPLOYERS AGENT,5902463843,1061592
04.04.2021,HUMAN RESOURCES,PSI TALENT MEASUREMENT (UK) LTD,539.00,OCCUPATIONAL ASSESSMENT,CONSULTANTS SERVICES,5902463094,1000008858
04.04.2021,LEISURE DIRECTORATE,C S G (USHERS) LTD,490.00,EMERGENCY TREES RECOVERY PROJECT,OTHER CONTRACTORS,5902463783,1000073203
04.04.2021,LEISURE DIRECTORATE,C S G (USHERS) LTD,585.00,EMERGENCY TREES RECOVERY PROJECT,OTHER CONTRACTORS,5902463779,1000073203
04.04.2021,LEISURE DIRECTORATE,C S G (USHERS) LTD,870.00,EMERGENCY TREES RECOVERY PROJECT,OTHER CONTRACTORS,5902463776,1000073203
04.04.2021,LEISURE DIRECTORATE,THE CONSERVATION VOLUNTEERS,"9,563.00",ENVIRONMENT & LEISURE GRANTS,OTHER CONTRACTORS,5902463405,1872821
04.04.2021,LEISURE DIRECTORATE,THE CONSERVATION VOLUNTEERS,"9,563.00",ENVIRONMENT & LEISURE GRANTS,OTHER CONTRACTORS,5902463405,1872821
04.04.2021,LEISURE DIRECTORATE,C S G (USHERS) LTD,"16,310.00",TREES PRINCIPAL ROADS,OTHER CONTRACTORS,5902463766,1000073203
04.04.2021,LEISURE DIRECTORATE,C S G (USHERS) LTD,295.00,TREES RECOVERY PROJECT,OTHER CONTRACTORS,5902463770,1000073203
04.04.2021,MODERNISATION HGF,DISPOSABLES AND CATERING SUPPLIES LTD,289.52,QUEENS RD 1 (BLOCK F),BUILDING R&M,5902463171,1000082869
04.04.2021,PUBLIC HEALTH,EVERYONE HEALTH LTD,"12,500.00",HEALTH INTERVENTIONS,EXTERNAL AGENCIES AND BODIES,5902463184,1000084159
04.04.2021,RESIDENT SERVICES,PINNACLE POWER LTD,"1,004.52",PRIVATE SERVICE CHARGES,SERVICE CHARGES,5902463898,1000081494
04.04.2021,RESIDENT SERVICES,PINNACLE POWER LTD,"1,845.08",PRIVATE SERVICE CHARGES,SERVICE CHARGES,5902463898,1000081494
05.04.2021,ADULT SOCIAL CARE,HEATHER HETHERINGTON,"3,625.00",ASW - PROFESSIONAL DEVELOPMENT,TRAINING,5902463684,1000077031
05.04.2021,ASSET MANAGEMENT,CALFORD SEADEN LLP,"1,250.00",MAJOR REPAIRS,BUILDING R&M,5902463660,1061592
05.04.2021,CENTRAL FUNCTIONS,CALFORD SEADEN LLP,650.00,COMMERCIAL PROPERTIES,PROFESSIONAL FEES,5902463934,1061592
05.04.2021,CENTRAL FUNCTIONS,CALFORD SEADEN LLP,"1,000.00",COMMERCIAL PROPERTIES,PROFESSIONAL FEES,5902463933,1061592
05.04.2021,CHIEF EXECUTIVE,BRESLIN CONSTRUCTION LTD,"14,825.00",CAPITAL PS (REGEN),CONSTRUCTION FEES  - EXTERNAL,2103242501,3000001948
05.04.2021,CHIEF EXECUTIVE,KN NETWORK SERVICES LTD,"186,247.81",CAPITAL PS (REGEN),CONSTRUCTION MAIN CONTRACT -CERTIFICATED,2103242504,3000002134
05.04.2021,CHILDREN AND FAMILIES,REDACTED PERSONAL DATA,525.00,ADOPTION SUPP FUND,PROFESSIONAL FEES,REDACTED,REDACTED
05.04.2021,CHILDREN AND FAMILIES,ROYAL BOROUGH OF GREENWICH,478.75,TEAM C,TRANSLATION SERVICES,5902463415,1000030426
05.04.2021,CHILDREN AND FAMILIES,ROYAL BOROUGH OF GREENWICH,"1,653.00",TEAM C,TRANSLATION SERVICES,5902463418,1000030426
05.04.2021,CHILDREN AND FAMILIES,ROYAL BOROUGH OF GREENWICH,"1,782.50",TEAM C,TRANSLATION SERVICES,5902463417,1000030426
05.04.2021,CHILDREN AND FAMILIES,THE APPROPRIATE ADULT SERVICE LTD,890.00,YOS MGMT & SUPPORT,EXTERNAL AGENCIES AND BODIES,5902463568,1000047682
05.04.2021,EDUCATION,JOHN GUEST SAFEGUARDING LIMITED,400.00,PRIMARY ACHIEVEMENT,CONSULTANTS SERVICES,5902463906,1000065465
05.04.2021,ENV & LEIS,CROWN OIL LTD,681.00,SANDGATE STREET,VEHICLE FUEL,5902463880,1000081749
05.04.2021,ENVIRONMENT AND LEISURE,THOMAS FORD & PARTNERS LTD,747.00,CAPITAL PS (LEISURE),CONSTRUCTION FEES - ARCHITECT,5902463710,1000037686
05.04.2021,ENVIRONMENT DIRECTORATE,IMPERIAL JANITORIAL SUPPLIES LTD,"1,040.00",ESTATE CLEANING-GENERAL,MATERIALS,5902463615,1000038126
05.04.2021,ENVIRONMENT DIRECTORATE,SPALDINGS (UK) LTD,"1,072.85",GROUNDS MAINTENANCE - GENERAL,MATERIALS,5902463817,1907384
05.04.2021,ENVIRONMENT DIRECTORATE,1ENV SOLUTIONS LTD,461.34,PEST CONTROL-CDN A/C,MATERIALS,5902463501,1000075410
05.04.2021,F & C S EXCLUDING CORPORATE BUDGETS,IEG4 LIMITED,"22,500.00",ADMINISTRATIVE SUPPORT,SOFTWARE,5902463970,1000083899
05.04.2021,HOUSING HRA,RIGHT OF LIGHT CONSULTING LTD,750.00,CAPITAL PS (HRA),CONSTRUCTION FEES  - EXTERNAL,5902463829,1000065676
05.04.2021,HOUSING HRA,EVERSHEDS LLP,"24,079.00",CAPITAL PS (REGEN),LAND & BUILDINGS ACQUISITION FEES,5902463763,1981058
05.04.2021,LEISURE DIRECTORATE,ADVANCED TREE SERVICES LTD,"1,624.00",EMERGENCY TREES RECOVERY PROJECT,OTHER CONTRACTORS,5902463664,1000079711
05.04.2021,LEISURE DIRECTORATE,ADVANCED TREE SERVICES LTD,"5,200.00",EMERGENCY TREES RECOVERY PROJECT,OTHER CONTRACTORS,5902463673,1000079711
05.04.2021,LEISURE DIRECTORATE,ADVANCED TREE SERVICES LTD,"7,200.00",EMERGENCY TREES RECOVERY PROJECT,OTHER CONTRACTORS,5902463667,1000079711
05.04.2021,LEISURE DIRECTORATE,PELLINGS LLP,549.00,FACILITIES MAINTENANCE,BUILDING R&M,5902464028,1009262
05.04.2021,LEISURE DIRECTORATE,ADVANCED TREE SERVICES LTD,"1,570.00",TREES PRINCIPAL ROADS,OTHER CONTRACTORS,5902463669,1000079711
05.04.2021,LEISURE DIRECTORATE,ADVANCED TREE SERVICES LTD,"2,349.00",TREES PRINCIPAL ROADS,OTHER CONTRACTORS,5902463671,1000079711
05.04.2021,PUBLIC HEALTH,PILGRIM'S WAY PRIMARY SCHOOL,550.00,PLACE & HEALTH IMPROVEMENT,EXTERNAL AGENCIES AND BODIES,5902463248,5001000054
05.04.2021,RESIDENT SERVICES,EXTREME ENVIRONMENTAL SERVICES LTD,570.00,SUPPORTED HOSTELS,PREMISES CLEANING,5902463806,1000023922
05.04.2021,STRATEGIC FINANCING BUDGETS,JOHNSON AUSTIN LTD,375.00,PROPERTY RELATED INSURANCE,PROFESSIONAL FEES,5902463626,1000040202
06.04.2021,ADULT SOCIAL CARE,REDACTED PERSONAL DATA,488.00,APPOINTEESHIPS,OTHER PAYMENTS FOR CLIENTS,REDACTED,REDACTED
06.04.2021,ADULT SOCIAL CARE,NIKOLAS CLARKE,"1,080.00",DIR OF ASC,LEGAL FEES & COURT COSTS,2103242584,1000077342
06.04.2021,ADULT SOCIAL CARE,STEPHANIE DAVID,"1,027.50",DIR OF ASC,LEGAL FEES & COURT COSTS,2103242602,1000082523
06.04.2021,ADULT SOCIAL CARE,BEVAN BRITTAN LLP,543.80,DIR OF ASC,SOLICITORS FRAMEWORK LEGAL SERVICES,2103242521,1000047779
06.04.2021,ADULT SOCIAL CARE,REDACTED PERSONAL DATA,"1,179.50",DISCHARGE TO ACCESS,SUPPORTED LIVING,REDACTED,REDACTED
06.04.2021,ADULT SOCIAL CARE,ACT TOO LTD,400.00,LD LTS 18-64,DAYCARE,2103242643,1000053657
06.04.2021,ADULT SOCIAL CARE,SHARE COMMUNITY LTD,780.00,LD LTS 18-64,DAYCARE,2103242810,1000062408
06.04.2021,ADULT SOCIAL CARE,SHARE COMMUNITY LTD,780.00,LD LTS 18-64,DAYCARE,2103242809,1000062408
06.04.2021,ADULT SOCIAL CARE,CHOICE SUPPORT,293.92,LD LTS 18-64,SUPPORTED LIVING,2103242665,1104183
06.04.2021,ADULT SOCIAL CARE,CHOICE SUPPORT,293.92,LD LTS 18-64,SUPPORTED LIVING,2103242655,1104183
06.04.2021,ADULT SOCIAL CARE,CHOICE SUPPORT,293.92,LD LTS 18-64,SUPPORTED LIVING,2103242639,1104183
06.04.2021,ADULT SOCIAL CARE,CHOICE SUPPORT,367.40,LD LTS 18-64,SUPPORTED LIVING,2103242653,1104183
06.04.2021,ADULT SOCIAL CARE,CHOICE SUPPORT,440.88,LD LTS 18-64,SUPPORTED LIVING,2103242685,1104183
06.04.2021,ADULT SOCIAL CARE,CHOICE SUPPORT,808.28,LD LTS 18-64,SUPPORTED LIVING,2103242659,1104183
06.04.2021,ADULT SOCIAL CARE,CONTACT PROFESSIONALS,465.00,LD LTS 18-64,SUPPORTED LIVING,2103242671,1000057263
06.04.2021,ADULT SOCIAL CARE,CONTACT PROFESSIONALS,532.00,LD LTS 18-64,SUPPORTED LIVING,2103242649,1000057263
06.04.2021,ADULT SOCIAL CARE,CARE DIRECT UK LTD,372.33,LD LTS 18-64,SUPPORTED LIVING,2103242821,1000066322
06.04.2021,ADULT SOCIAL CARE,CARE DIRECT UK LTD,372.33,LD LTS 18-64,SUPPORTED LIVING,2103242819,1000066322
06.04.2021,ADULT SOCIAL CARE,CARE DIRECT UK LTD,372.33,LD LTS 18-64,SUPPORTED LIVING,2103242814,1000066322
06.04.2021,ADULT SOCIAL CARE,REDACTED PERSONAL DATA,337.00,LD LTS 18-64,SUPPORTED LIVING,REDACTED,REDACTED
06.04.2021,ADULT SOCIAL CARE,REDACTED PERSONAL DATA,404.40,LD LTS 18-64,SUPPORTED LIVING,REDACTED,REDACTED
06.04.2021,ADULT SOCIAL CARE,REDACTED PERSONAL DATA,606.60,LD LTS 18-64,SUPPORTED LIVING,REDACTED,REDACTED
06.04.2021,ADULT SOCIAL CARE,RACHEL FAMILY HOUSING,468.00,MH LTS 18-64,SUPPORTED LIVING,2103242679,1000084986
06.04.2021,ADULT SOCIAL CARE,RACHEL FAMILY HOUSING,585.00,MH LTS 18-64,SUPPORTED LIVING,2103242673,1000084986
06.04.2021,ADULT SOCIAL CARE,REDACTED PERSONAL DATA,252.75,MH LTS 18-64,SUPPORTED LIVING,REDACTED,REDACTED
06.04.2021,ADULT SOCIAL CARE,REDACTED PERSONAL DATA,269.60,MH LTS 18-64,SUPPORTED LIVING,REDACTED,REDACTED
06.04.2021,ADULT SOCIAL CARE,REDACTED PERSONAL DATA,269.60,MH LTS 18-64,SUPPORTED LIVING,REDACTED,REDACTED
06.04.2021,ADULT SOCIAL CARE,REDACTED PERSONAL DATA,269.60,MH LTS 18-64,SUPPORTED LIVING,REDACTED,REDACTED
06.04.2021,ADULT SOCIAL CARE,REDACTED PERSONAL DATA,269.60,MH LTS 18-64,SUPPORTED LIVING,REDACTED,REDACTED
06.04.2021,ADULT SOCIAL CARE,REDACTED PERSONAL DATA,269.60,MH LTS 18-64,SUPPORTED LIVING,REDACTED,REDACTED
06.04.2021,ADULT SOCIAL CARE,REDACTED PERSONAL DATA,269.60,MH LTS 18-64,SUPPORTED LIVING,REDACTED,REDACTED
06.04.2021,ADULT SOCIAL CARE,REDACTED PERSONAL DATA,269.60,MH LTS 18-64,SUPPORTED LIVING,REDACTED,REDACTED
06.04.2021,ADULT SOCIAL CARE,REDACTED PERSONAL DATA,269.60,MH LTS 18-64,SUPPORTED LIVING,REDACTED,REDACTED
06.04.2021,ADULT SOCIAL CARE,REDACTED PERSONAL DATA,269.60,MH LTS 18-64,SUPPORTED LIVING,REDACTED,REDACTED
06.04.2021,ADULT SOCIAL CARE,REDACTED PERSONAL DATA,269.60,MH LTS 18-64,SUPPORTED LIVING,REDACTED,REDACTED
06.04.2021,ADULT SOCIAL CARE,REDACTED PERSONAL DATA,269.60,MH LTS 18-64,SUPPORTED LIVING,REDACTED,REDACTED
06.04.2021,ADULT SOCIAL CARE,REDACTED PERSONAL DATA,269.60,MH LTS 18-64,SUPPORTED LIVING,REDACTED,REDACTED
06.04.2021,ADULT SOCIAL CARE,REDACTED PERSONAL DATA,269.60,MH LTS 18-64,SUPPORTED LIVING,REDACTED,REDACTED
06.04.2021,ADULT SOCIAL CARE,REDACTED PERSONAL DATA,269.60,MH LTS 18-64,SUPPORTED LIVING,REDACTED,REDACTED
06.04.2021,ADULT SOCIAL CARE,REDACTED PERSONAL DATA,282.75,MH LTS 18-64,SUPPORTED LIVING,REDACTED,REDACTED
06.04.2021,ADULT SOCIAL CARE,REDACTED PERSONAL DATA,303.30,MH LTS 18-64,SUPPORTED LIVING,REDACTED,REDACTED
06.04.2021,ADULT SOCIAL CARE,REDACTED PERSONAL DATA,303.30,MH LTS 18-64,SUPPORTED LIVING,REDACTED,REDACTED
06.04.2021,ADULT SOCIAL CARE,REDACTED PERSONAL DATA,303.30,MH LTS 18-64,SUPPORTED LIVING,REDACTED,REDACTED
06.04.2021,ADULT SOCIAL CARE,REDACTED PERSONAL DATA,320.15,MH LTS 18-64,SUPPORTED LIVING,REDACTED,REDACTED
06.04.2021,ADULT SOCIAL CARE,REDACTED PERSONAL DATA,337.00,MH LTS 18-64,SUPPORTED LIVING,REDACTED,REDACTED
06.04.2021,ADULT SOCIAL CARE,REDACTED PERSONAL DATA,337.00,MH LTS 18-64,SUPPORTED LIVING,REDACTED,REDACTED
06.04.2021,ADULT SOCIAL CARE,REDACTED PERSONAL DATA,337.00,MH LTS 18-64,SUPPORTED LIVING,REDACTED,REDACTED
06.04.2021,ADULT SOCIAL CARE,REDACTED PERSONAL DATA,337.00,MH LTS 18-64,SUPPORTED LIVING,REDACTED,REDACTED
06.04.2021,ADULT SOCIAL CARE,REDACTED PERSONAL DATA,337.00,MH LTS 18-64,SUPPORTED LIVING,REDACTED,REDACTED
06.04.2021,ADULT SOCIAL CARE,REDACTED PERSONAL DATA,353.85,MH LTS 18-64,SUPPORTED LIVING,REDACTED,REDACTED
06.04.2021,ADULT SOCIAL CARE,REDACTED PERSONAL DATA,404.40,MH LTS 18-64,SUPPORTED LIVING,REDACTED,REDACTED
06.04.2021,ADULT SOCIAL CARE,REDACTED PERSONAL DATA,404.40,MH LTS 18-64,SUPPORTED LIVING,REDACTED,REDACTED
06.04.2021,ADULT SOCIAL CARE,REDACTED PERSONAL DATA,404.40,MH LTS 18-64,SUPPORTED LIVING,REDACTED,REDACTED
06.04.2021,ADULT SOCIAL CARE,REDACTED PERSONAL DATA,404.40,MH LTS 18-64,SUPPORTED LIVING,REDACTED,REDACTED
06.04.2021,ADULT SOCIAL CARE,REDACTED PERSONAL DATA,404.40,MH LTS 18-64,SUPPORTED LIVING,REDACTED,REDACTED
06.04.2021,ADULT SOCIAL CARE,REDACTED PERSONAL DATA,404.40,MH LTS 18-64,SUPPORTED LIVING,REDACTED,REDACTED
06.04.2021,ADULT SOCIAL CARE,REDACTED PERSONAL DATA,438.10,MH LTS 18-64,SUPPORTED LIVING,REDACTED,REDACTED
06.04.2021,ADULT SOCIAL CARE,REDACTED PERSONAL DATA,471.80,MH LTS 18-64,SUPPORTED LIVING,REDACTED,REDACTED
06.04.2021,ADULT SOCIAL CARE,REDACTED PERSONAL DATA,471.80,MH LTS 18-64,SUPPORTED LIVING,REDACTED,REDACTED
06.04.2021,ADULT SOCIAL CARE,REDACTED PERSONAL DATA,471.80,MH LTS 18-64,SUPPORTED LIVING,REDACTED,REDACTED
06.04.2021,ADULT SOCIAL CARE,REDACTED PERSONAL DATA,471.80,MH LTS 18-64,SUPPORTED LIVING,REDACTED,REDACTED
06.04.2021,ADULT SOCIAL CARE,REDACTED PERSONAL DATA,471.80,MH LTS 18-64,SUPPORTED LIVING,REDACTED,REDACTED
06.04.2021,ADULT SOCIAL CARE,REDACTED PERSONAL DATA,539.20,MH LTS 18-64,SUPPORTED LIVING,REDACTED,REDACTED
06.04.2021,ADULT SOCIAL CARE,REDACTED PERSONAL DATA,539.20,MH LTS 18-64,SUPPORTED LIVING,REDACTED,REDACTED
06.04.2021,ADULT SOCIAL CARE,REDACTED PERSONAL DATA,606.60,MH LTS 18-64,SUPPORTED LIVING,REDACTED,REDACTED
06.04.2021,ADULT SOCIAL CARE,REDACTED PERSONAL DATA,606.60,MH LTS 18-64,SUPPORTED LIVING,REDACTED,REDACTED
06.04.2021,ADULT SOCIAL CARE,REDACTED PERSONAL DATA,606.60,MH LTS 18-64,SUPPORTED LIVING,REDACTED,REDACTED
06.04.2021,ADULT SOCIAL CARE,REDACTED PERSONAL DATA,624.00,MH LTS 18-64,SUPPORTED LIVING,REDACTED,REDACTED
06.04.2021,ADULT SOCIAL CARE,REDACTED PERSONAL DATA,674.00,MH LTS 18-64,SUPPORTED LIVING,REDACTED,REDACTED
06.04.2021,ADULT SOCIAL CARE,REDACTED PERSONAL DATA,796.16,MH LTS 18-64,SUPPORTED LIVING,REDACTED,REDACTED
06.04.2021,ADULT SOCIAL CARE,REDACTED PERSONAL DATA,943.60,MH LTS 18-64,SUPPORTED LIVING,REDACTED,REDACTED
06.04.2021,ADULT SOCIAL CARE,REDACTED PERSONAL DATA,"1,095.25",MH LTS 18-64,SUPPORTED LIVING,REDACTED,REDACTED
06.04.2021,ADULT SOCIAL CARE,REDACTED PERSONAL DATA,"1,651.30",MH LTS 18-64,SUPPORTED LIVING,REDACTED,REDACTED
06.04.2021,ADULT SOCIAL CARE,CHOICE SUPPORT,293.92,MH LTS 65+,SUPPORTED LIVING,2103242675,1104183
06.04.2021,ADULT SOCIAL CARE,REDACTED PERSONAL DATA,269.60,MH LTS 65+,SUPPORTED LIVING,REDACTED,REDACTED
06.04.2021,ADULT SOCIAL CARE,REDACTED PERSONAL DATA,269.60,MH LTS 65+,SUPPORTED LIVING,REDACTED,REDACTED
06.04.2021,ADULT SOCIAL CARE,REDACTED PERSONAL DATA,303.30,MH LTS 65+,SUPPORTED LIVING,REDACTED,REDACTED
06.04.2021,ADULT SOCIAL CARE,REDACTED PERSONAL DATA,404.40,MH LTS 65+,SUPPORTED LIVING,REDACTED,REDACTED
06.04.2021,ADULT SOCIAL CARE,REDACTED PERSONAL DATA,674.00,MH LTS 65+,SUPPORTED LIVING,REDACTED,REDACTED
06.04.2021,ADULT SOCIAL CARE,REDACTED PERSONAL DATA,690.85,MH LTS 65+,SUPPORTED LIVING,REDACTED,REDACTED
06.04.2021,ADULT SOCIAL CARE,REDACTED PERSONAL DATA,741.40,MH LTS 65+,SUPPORTED LIVING,REDACTED,REDACTED
06.04.2021,ADULT SOCIAL CARE,REDACTED PERSONAL DATA,"1,137.38",MH LTS 65+,SUPPORTED LIVING,REDACTED,REDACTED
06.04.2021,ADULT SOCIAL CARE,REDACTED PERSONAL DATA,"2,156.80",MH LTS 65+,SUPPORTED LIVING,REDACTED,REDACTED
06.04.2021,ADULT SOCIAL CARE,BUDDI LTD,594.00,PHY LTS 18-64,EQUIPMENT PURCHASE & REPAIR,2103242831,1000067243
06.04.2021,ADULT SOCIAL CARE,BUDDI LTD,594.00,PHY LTS 18-64,EQUIPMENT PURCHASE & REPAIR,2103242830,1000067243
06.04.2021,ADULT SOCIAL CARE,CARE DIRECT UK LTD,559.13,PHY LTS 65+,HOMECARE - SPOT,2103242823,1000066322
06.04.2021,ADULT SOCIAL CARE,CARE DIRECT UK LTD,559.13,PHY LTS 65+,HOMECARE - SPOT,2103242818,1000066322
06.04.2021,ADULT SOCIAL CARE,CARE DIRECT UK LTD,559.13,PHY LTS 65+,HOMECARE - SPOT,2103242816,1000066322
06.04.2021,ADULT SOCIAL CARE,CARE DIRECT UK LTD,621.25,PHY LTS 65+,HOMECARE - SPOT,2103242820,1000066322
06.04.2021,ADULT SOCIAL CARE,CARE DIRECT UK LTD,621.25,PHY LTS 65+,HOMECARE - SPOT,2103242817,1000066322
06.04.2021,ADULT SOCIAL CARE,CARE DIRECT UK LTD,621.25,PHY LTS 65+,HOMECARE - SPOT,2103242812,1000066322
06.04.2021,ADULT SOCIAL CARE,F A ALBIN AND SONS,"1,114.00",PUBLIC FUNERALS S.46,OTHER CONTRACTORS,5902464163,11313949
06.04.2021,ADULT SOCIAL CARE,CHOICE SUPPORT,367.40,SOCIAL ISOLATION,SUPPORTED LIVING,2103242683,1104183
06.04.2021,ADULT SOCIAL CARE,HEBRON TRUST,"1,826.24",SUB LTS 18-64,PLACEMENTS - REHAB,2103242807,1000056819
06.04.2021,ASSET MANAGEMENT,DAVID GEORGE HALL,816.00,DISREPAIR,LEGAL FEES & COURT COSTS,2103242529,1000059226
06.04.2021,ASSET MANAGEMENT,ELIZABETH ENGLAND,"1,395.00",DISREPAIR,LEGAL FEES & COURT COSTS,2103242536,1000078563
06.04.2021,CENTRAL FUNCTIONS,RYAN THOMPSON,300.00,ENVIRONMENTAL ESTATE WORKS,LEGAL FEES & COURT COSTS,2103242598,1000068997
06.04.2021,CENTRAL FUNCTIONS,ALLPAY LTD,752.85,SERVICE LEVEL AGREEMENTS,BANK CHARGES,5902464037,1000043001
06.04.2021,CHIEF EXECUTIVE,ADAMS AND SUTHERLAND,"2,750.00",CAPITAL PS (REGEN),CONSTRUCTION FEES,5902463941,1000066083
06.04.2021,CHILDREN AND FAMILIES,REDACTED PERSONAL DATA,570.55,ADOPTION ALLOWANCES,PAYMENTS TO CARERS,REDACTED,REDACTED
06.04.2021,CHILDREN AND FAMILIES,CORAL COMMUNITY ASSESSMENTS LTD,"1,600.00",FAMILY ASSESS RESID,RESIDENTIAL CARE,2103242637,1000056464
06.04.2021,CHILDREN AND FAMILIES,REDACTED PERSONAL DATA,300.00,FE SUPPORT,CLIENT TRANSPORT,REDACTED,REDACTED
06.04.2021,CHILDREN AND FAMILIES,REDACTED PERSONAL DATA,300.00,FE SUPPORT,CLIENT TRANSPORT,REDACTED,REDACTED
06.04.2021,CHILDREN AND FAMILIES,REDACTED PERSONAL DATA,300.00,FE SUPPORT,CLIENT TRANSPORT,REDACTED,REDACTED
06.04.2021,CHILDREN AND FAMILIES,FIVE RIVERS CHILD CARE LTD,"3,393.61",FRIENDS & FAMILY FOSTERING,EXTERNAL AGENCIES AND BODIES,2103242827,1000018792
06.04.2021,CHILDREN AND FAMILIES,FIVE RIVERS CHILD CARE LTD,"3,393.61",FRIENDS & FAMILY FOSTERING,EXTERNAL AGENCIES AND BODIES,2103242826,1000018792
06.04.2021,CHILDREN AND FAMILIES,FIVE RIVERS CHILD CARE LTD,"3,522.49",FRIENDS & FAMILY FOSTERING,EXTERNAL AGENCIES AND BODIES,2103242828,1000018792
06.04.2021,CHILDREN AND FAMILIES,LIKA FAMILY FOSTERING,"4,207.14",FRIENDS & FAMILY FOSTERING,EXTERNAL AGENCIES AND BODIES,2103242829,1000080099
06.04.2021,CHILDREN AND FAMILIES,REDACTED PERSONAL DATA,710.00,SEMI-IND LAC 16-17,OTHER PAYMENTS FOR CLIENTS,REDACTED,REDACTED
06.04.2021,CHILDREN AND FAMILIES,E4 LAW LTD,341.63,SFS MGMT & SUPPORT,LEGAL FEES & COURT COSTS,2103242571,1000072222
06.04.2021,CHILDREN AND FAMILIES,PSYCHOLOGY EXPERTS LTD,302.40,SFS MGMT & SUPPORT,LEGAL FEES & COURT COSTS,2103242607,1000079653
06.04.2021,CHILDREN AND FAMILIES,DNA LEGAL LTD,504.00,SFS MGMT & SUPPORT,LEGAL FEES & COURT COSTS,2103242535,1000082533
06.04.2021,CHILDREN AND FAMILIES,TRUST HEALTH LTD,337.50,SFS MGMT & SUPPORT,LEGAL FEES & COURT COSTS,2103242604,1000084632
06.04.2021,CHILDREN AND FAMILIES,JARED NORMAN,700.00,SFS MGMT & SUPPORT,LEGAL FEES & COURT COSTS,2103242561,1000064080
06.04.2021,CHILDREN AND FAMILIES,JARED NORMAN,"1,080.00",SFS MGMT & SUPPORT,LEGAL FEES & COURT COSTS,2103242562,1000064080
06.04.2021,CHILDREN AND FAMILIES,JULIAN DATE,600.00,SFS MGMT & SUPPORT,LEGAL FEES & COURT COSTS,2103242563,1000068743
06.04.2021,CHILDREN AND FAMILIES,PAUL PAVLOU,750.00,SFS MGMT & SUPPORT,LEGAL FEES & COURT COSTS,2103242587,1000068944
06.04.2021,CHILDREN AND FAMILIES,PAUL PAVLOU,"1,250.00",SFS MGMT & SUPPORT,LEGAL FEES & COURT COSTS,2103242588,1000068944
06.04.2021,CHILDREN AND FAMILIES,KIERAN COLEMAN,750.00,SFS MGMT & SUPPORT,LEGAL FEES & COURT COSTS,2103242566,1000074145
06.04.2021,CHILDREN AND FAMILIES,KIERAN COLEMAN,750.00,SFS MGMT & SUPPORT,LEGAL FEES & COURT COSTS,2103242565,1000074145
06.04.2021,CHILDREN AND FAMILIES,KIERAN COLEMAN,950.00,SFS MGMT & SUPPORT,LEGAL FEES & COURT COSTS,2103242564,1000074145
06.04.2021,CHILDREN AND FAMILIES,JACOB RICHARDS,275.00,SFS MGMT & SUPPORT,LEGAL FEES & COURT COSTS,2103242560,1000080778
06.04.2021,CHILDREN AND FAMILIES,SOUTH LONDON & MAUDSLEY HOSPITAL,"98,856.69",SLAM,EXTERNAL AGENCIES AND BODIES,5902464204,1000013096
06.04.2021,COMMUNITIES,SOUTHWARK CITIZENS ADVICE,"172,500.00",LEGAL GRANTS,EXTERNAL AGENCIES AND BODIES,5902464233,1874379
06.04.2021,COMMUNITIES,ST FAITHS COMMUNITY CENTRE,"5,000.00",VCS GRANTS,GRANTS,5902464039,1039446
06.04.2021,COMMUNITIES,TIME & TALENTS ASSOCIATION,"4,500.00",VCS GRANTS,GRANTS,5902464040,1757632
06.04.2021,COMMUNITIES,LONDON WILDLIFE TRUST,"7,500.00",VCS GRANTS,GRANTS,5902464041,1832374
06.04.2021,COMMUNITIES,SOUTHWARK CITIZENS ADVICE,"5,600.00",VCS GRANTS,GRANTS,5902464042,1874379
06.04.2021,COMMUNITIES,SOMALI INTEGRATION & DEVELOPMENT ASSOCIATION,"14,000.00",VCS GRANTS,GRANTS,5902464043,11048946
06.04.2021,COMMUNITIES,GOLDEN OLDIES COMMUNITY CARE PROJECT,"2,500.00",VCS GRANTS,GRANTS,5902464044,11122958
06.04.2021,COMMUNITIES,BEDE HSE,"4,500.00",VCS GRANTS,GRANTS,5902464045,11248731
06.04.2021,COMMUNITIES,CAMBRIDGE HOUSE & TALBOT,"4,500.00",VCS GRANTS,GRANTS,5902464046,11248874
06.04.2021,COMMUNITIES,PECAN LTD,"6,500.00",VCS GRANTS,GRANTS,5902464048,11263114
06.04.2021,COMMUNITIES,PECAN LTD,"7,375.00",VCS GRANTS,GRANTS,5902464047,11263114
06.04.2021,COMMUNITIES,SURREY DOCKS FARM PROVIDENT SOCIETY,"10,000.00",VCS GRANTS,GRANTS,5902464049,1000000958
06.04.2021,COMMUNITIES,AAINA WOMEN GROUP,"8,018.25",VCS GRANTS,GRANTS,5902464050,1000002442
06.04.2021,COMMUNITIES,BANKSIDE OPEN SPACES TRUST,"4,208.00",VCS GRANTS,GRANTS,5902464051,1000018290
06.04.2021,COMMUNITIES,SOUTHWARK PENSIONERS CENTRE,"25,855.25",VCS GRANTS,GRANTS,5902464052,1000027831
06.04.2021,COMMUNITIES,SWK DAY CTR FOR ASYLUM SEEKERS,"11,330.25",VCS GRANTS,GRANTS,5902464053,1000040491
06.04.2021,COMMUNITIES,SOUTHWARK EVERY WOMAN'S CENTRE,"5,500.00",VCS GRANTS,GRANTS,5902464054,1000042216
06.04.2021,COMMUNITIES,FUTURE MEN,"4,125.00",VCS GRANTS,GRANTS,5902464055,1000046010
06.04.2021,COMMUNITIES,THE MANNA CENTRE,"13,750.00",VCS GRANTS,GRANTS,5902464056,1000048508
06.04.2021,COMMUNITIES,MENTAL FIGHT CLUB,"2,500.00",VCS GRANTS,GRANTS,5902464057,1000051170
06.04.2021,COMMUNITIES,CRYSTAL PALACE COMM DEV TRUST,"3,000.00",VCS GRANTS,GRANTS,5902464058,1000054200
06.04.2021,COMMUNITIES,LATIN AMERICAN DISABLED PEOPLE PROJECT,"4,625.00",VCS GRANTS,GRANTS,5902464059,1000058588
06.04.2021,COMMUNITIES,LATIN AMERICAN WOMEN'S RIGHTS SERVICES,"4,625.00",VCS GRANTS,GRANTS,5902464060,1000068356
06.04.2021,COMMUNITIES,PAXTON GREEN TIME BANK,"4,250.00",VCS GRANTS,GRANTS,5902464063,1000070648
06.04.2021,COMMUNITIES,BLACKFRIARS SETTLEMENT,"4,500.00",VCS GRANTS,GRANTS,5902464064,1000071456
06.04.2021,COMMUNITIES,PEMBROKE COLLEGE SETTLEMENT,"4,500.00",VCS GRANTS,GRANTS,5902464065,1000073444
06.04.2021,COMMUNITIES,BERMONDSEY COMMUNITY KITCHEN,"3,750.00",VCS GRANTS,GRANTS,5902464067,1000075477
06.04.2021,COMMUNITIES,THE BIKE PROJECT,"3,851.00",VCS GRANTS,GRANTS,5902464069,1000077217
06.04.2021,COMMUNITIES,SOUTHWARK TRAVELLERS' ACTION,"5,750.00",VCS GRANTS,GRANTS,5902464070,1000077795
06.04.2021,COMMUNITIES,GLOBAL GENERATION,"4,250.00",VCS GRANTS,GRANTS,5902464071,1000080135
06.04.2021,COMMUNITIES,CENTRAL SOUTHWARK COMMUNITY HUB,"5,250.00",VCS GRANTS,GRANTS,5902464072,1000083089
06.04.2021,COMMUNITIES,OPENING DOORS LONDON,"4,750.00",VCS GRANTS,GRANTS,5902464073,1000086261
06.04.2021,CUSTOMER EXPERIENCE HGF,VALTECH LTD,459.65,BLUE BADGES,MATERIALS,5902464225,1000082245
06.04.2021,CUSTOMER EXPERIENCE HGF,YATES ESTATE LTD,"3,340.00",HOMELESS PROJECTS,GRANTS,5902464226,1000059551
06.04.2021,CUSTOMER EXPERIENCE HGF,FRESHVIEW ESTATES,"1,146.86",HOMELESS PROJECTS,GRANTS,5902464231,1000086397
06.04.2021,CUSTOMER EXPERIENCE HGF,FRESHVIEW ESTATES,"1,146.86",HOMELESS PROJECTS,GRANTS,5902464222,1000086397
06.04.2021,CUSTOMER EXPERIENCE HGF,DAVID GEORGE HALL,408.00,HOMELESS PROJECTS,LEGAL FEES & COURT COSTS,2103242531,1000059226
06.04.2021,CUSTOMER EXPERIENCE HGF,DAVID GEORGE HALL,604.80,HOMELESS PROJECTS,LEGAL FEES & COURT COSTS,2103242534,1000059226
06.04.2021,CUSTOMER EXPERIENCE HGF,DAVID GEORGE HALL,732.00,HOMELESS PROJECTS,LEGAL FEES & COURT COSTS,2103242532,1000059226
06.04.2021,CUSTOMER EXPERIENCE HGF,DAVID GEORGE HALL,912.00,HOMELESS PROJECTS,LEGAL FEES & COURT COSTS,2103242530,1000059226
06.04.2021,CUSTOMER EXPERIENCE HGF,DAVID GEORGE HALL,"1,152.00",HOMELESS PROJECTS,LEGAL FEES & COURT COSTS,2103242533,1000059226
06.04.2021,CUSTOMER EXPERIENCE HGF,HOMELY HOUSING LETS LTD,"10,336.00",NIGHTLY TA (NSC),EXTERNAL AGENCIES AND BODIES,5902464154,1000050013
06.04.2021,CUSTOMER EXPERIENCE HGF,TAAKSVALE HOUSING LTD,"11,235.00",NIGHTLY TA (NSC),EXTERNAL AGENCIES AND BODIES,5902464141,1000073665
06.04.2021,CUSTOMER EXPERIENCE HGF,TAAKSVALE HOUSING LTD,"54,955.80",NIGHTLY TA (NSC),EXTERNAL AGENCIES AND BODIES,5902464139,1000073665
06.04.2021,CUSTOMER EXPERIENCE HGF,SITTARA LTD,"1,148.00",NIGHTLY TA (NSC),EXTERNAL AGENCIES AND BODIES,5902464150,1000080857
06.04.2021,CUSTOMER EXPERIENCE HGF,SITTARA LTD,"1,148.00",NIGHTLY TA (NSC),EXTERNAL AGENCIES AND BODIES,5902464147,1000080857
06.04.2021,DSG,ALBION PRIMARY SCHOOL,"261,833.00",ALBION PRIMARY SCHOOL,SCHOOLS CAPITATION,5902464076,5001000000
06.04.2021,DSG,ALFRED SALTER PRIMARY SCHOOL,"240,656.00",ALFRED SALTER PRIMARY SCHOOL,SCHOOLS CAPITATION,5902464077,5001000005
06.04.2021,DSG,BELLENDEN PRIMARY SCHOOL,"145,956.00",BELLENDEN PRIMARY SCHOOL,SCHOOLS CAPITATION,5902464078,5001000007
06.04.2021,DSG,BESSEMER GRANGE PRIMARY SCHOOL,"335,029.00",BESSEMER GRANGE PRIMARY SCHOOL,SCHOOLS CAPITATION,5902464079,5001000009
06.04.2021,DSG,BOUCHER C OF E PRIMARY SCHOOL,"135,875.00",BOUTCHER CE PRIMARY SCHOOL,SCHOOLS CAPITATION,5902464080,5001000011
06.04.2021,DSG,BRUNSWICK PARK PRIMARY SCHOOL,"242,704.00",BRUNSWICK PARK PRIMARY SCHOOL,SCHOOLS CAPITATION,5902464081,5001000013
06.04.2021,DSG,CAMELOT PRIMARY SCHOOL,"222,751.00",CAMELOT PRIMARY SCHOOL,SCHOOLS CAPITATION,5902464082,5001000014
06.04.2021,DSG,CHARLOTTE  SHARMAN PRIMARY SCHOOL,"99,113.00",CHARLOTTE SHARMAN PRIMARY SCHOOL,SCHOOLS CAPITATION,5902464083,5001000016
06.04.2021,DSG,COBOURG PRIMARY SCHOOL,"174,174.00",COBOURG PRIMARY SCHOOL,SCHOOLS CAPITATION,5902464087,5001000021
06.04.2021,DSG,COMBER GROVE PRIMARY SCHOOL,"134,469.00",COMBER GROVE PRIMARY SCHOOL,SCHOOLS CAPITATION,5902464088,5001000022
06.04.2021,DSG,CRAMPTON PRIMARY SCHOOL,"132,375.00",CRAMPTON PRIMARY SCHOOL,SCHOOLS CAPITATION,5902464089,5001000023
06.04.2021,DSG,CRAWFORD PRIMARY SCHOOL,"289,217.00",CRAWFORD PRIMARY SCHOOL,SCHOOLS CAPITATION,5902464090,5001000024
06.04.2021,DSG,DOG KENNEL HILL PRIMARY SCHOOL,"168,692.00",DOG KENNEL HILL PRIMARY SCHOOL,SCHOOLS CAPITATION,5902464091,5001000025
06.04.2021,DSG,DULWICH VILLAGE CE INFANTS SCHOOL,"164,921.00",DULWICH VILLAGE CE INFANTS' SCHOOL,SCHOOLS CAPITATION,5902464092,5001000027
06.04.2021,DSG,DULWICH WOOD PRIMARY SCHOOL,"224,827.00",DULWICH WOOD PRIMARY SCHOOL,SCHOOLS CAPITATION,5902464104,5001000042
06.04.2021,DSG,ENGLISH MARTYRS RC PRIMARY SCHOOL,"196,047.00",ENGLISH MARTYRS RC PRIMARY SCHOOL,SCHOOLS CAPITATION,5902464095,5001000030
06.04.2021,DSG,FRIARS PRIMARY (FOUNDATION) SCHOOL,"121,913.00",FRIARS FOUNDATION PRIMARY SCHOOL,SCHOOLS CAPITATION,5902464097,5001000033
06.04.2021,DSG,GOODRICH PRIMARY SCHOOL,"324,063.00",GOODRICH PRIMARY SCHOOL,SCHOOLS CAPITATION,5902464093,5001000028
06.04.2021,DSG,GRANGE PRIMARY SCHOOL,"233,545.00",GRANGE PRIMARY SCHOOL,SCHOOLS CAPITATION,5902464094,5001000029
06.04.2021,DSG,HEBER PRIMARY SCHOOL,"217,127.00",HEBER PRIMARY SCHOOL,SCHOOLS CAPITATION,5902464098,5001000035
06.04.2021,DSG,HOLLYDALE PRIMARY SCHOOL,"124,804.00",HOLLYDALE PRIMARY SCHOOL,SCHOOLS CAPITATION,5902464099,5001000036
06.04.2021,DSG,ILDERTON PRIMARY SCHOOL,"199,356.00",ILDERTON PRIMARY SCHOOL,SCHOOLS CAPITATION,5902464100,5001000037
06.04.2021,DSG,IVYDALE PRIMARY SCHOOL,"274,454.00",IVYDALE PRIMARY SCHOOL,SCHOOLS CAPITATION,5902464101,5001000038
06.04.2021,DSG,JOHN RUSKIN PRIMARY SCHOOL,"273,583.00",JOHN RUSKIN PRIMARY SCHOOL,SCHOOLS CAPITATION,5902464102,5001000040
06.04.2021,DSG,KEYWORTH PRIMARY SCHOOL,"209,373.00",KEYWORTH PRIMARY SCHOOL,SCHOOLS CAPITATION,5902464103,5001000041
06.04.2021,DSG,MICHAEL FARADAY PRIMARY SCHOOL,"265,017.00",MICHAEL FARADAY PRIMARY SCHOOL,SCHOOLS CAPITATION,5902464105,5001000048
06.04.2021,DSG,NOTRE DAME RC GIRLS SCHOOL,"537,685.00",NOTRE DAME RC GIRLS' SCHOOL,SCHOOLS CAPITATION,5902464106,5001000050
06.04.2021,DSG,OLIVER GOLDSMITH PRIMARY SCHOOL,"228,988.00",OLIVER GOLDSMITH PRIMARY SCHOOL,SCHOOLS CAPITATION,5902464107,5001000051
06.04.2021,DSG,PETER HILLS CE SCHOOL,"105,775.00",PETER HILLS CE PRIMARY SCHOOL,SCHOOLS CAPITATION,5902464108,5001000053
06.04.2021,DSG,PHOENIX PRIMARY SCHOOL,"368,585.00",PHOENIX PRIMARY SCHOOL,SCHOOLS CAPITATION,5902464096,5001000032
06.04.2021,DSG,PILGRIM'S WAY PRIMARY SCHOOL,"132,369.00",PILGRIMS WAY PRIMARY SCHOOL,SCHOOLS CAPITATION,5902464109,5001000054
06.04.2021,DSG,RIVERSIDE PRIMARY SCHOOL,"201,735.00",RIVERSIDE PRIMARY SCHOOL,SCHOOLS CAPITATION,5902464110,5001000056
06.04.2021,DSG,ROBERT BROWNING PRIMARY SCHOOL,"136,599.00",ROBERT BROWNING PRIMARY SCHOOL,SCHOOLS CAPITATION,5902464111,5001000057
06.04.2021,DSG,ROTHERHITHE PRIMARY SCHOOL,"236,530.00",ROTHERHITHE PRIMARY SCHOOL,SCHOOLS CAPITATION,5902464112,5001000058
06.04.2021,DSG,RYE OAK PRIMARY SCHOOL,"186,539.00",RYE OAK PRIMARY SCHOOL,SCHOOLS CAPITATION,5902464113,5001000059
06.04.2021,DSG,SNOWSFIELDS PRIMARY SCHOOL,"135,308.00",SNOWSFIELDS PRIMARY SCHOOL,SCHOOLS CAPITATION,5902464114,5001000061
06.04.2021,DSG,SOUTHWARK PARK PRIMARY SCHOOL,"247,608.00",SOUTHWARK PARK PRIMARY SCHOOL,SCHOOLS CAPITATION,5902464115,5001000062
06.04.2021,DSG,ST ANTHONYS RC SCHOOL,"224,064.00",ST ANTHONY'S CATHOLIC PRIMARY SCHOOL,SCHOOLS CAPITATION,5902464116,5001000064
06.04.2021,DSG,ST FRANCESCA CABRINI PRIMARY SCHOOL,"151,063.00",ST FRANCESCA CABRINI PRIMARY SCHOOL,SCHOOLS CAPITATION,5902464117,5001000065
06.04.2021,DSG,ST FRANCIS'S RC PRIMARY SCHOOL,"235,673.00",ST FRANCIS RC PRIMARY SCHOOL,SCHOOLS CAPITATION,5902464118,5001000067
06.04.2021,DSG,ST GEORGES RC SCHOOL,"126,557.00",ST GEORGE'S CATHEDRAL RC PRIMARY SCHOOL,SCHOOLS CAPITATION,5902464119,5001000068
06.04.2021,DSG,ST GEORGES CE SCHOOL,"105,836.00",ST GEORGE'S CE PRIMARY SCHOOL,SCHOOLS CAPITATION,5902464120,5001000069
06.04.2021,DSG,ST JAMES CE SCHOOL,"300,865.00",ST JAMES' CE PRIMARY SCHOOL,SCHOOLS CAPITATION,5902464121,5001000070
06.04.2021,DSG,ST JAMES THE GREAT RC SCHOOL,"134,180.00",ST JAMES THE GREAT RC PRIMARY SCHOOL,SCHOOLS CAPITATION,5902464122,5001000071
06.04.2021,DSG,ST JOHNS & ST CLEMENTS CE SCHOOL,"219,683.00",ST JOHN'S & ST CLEMENT'S CE PRIMARY SCHO,SCHOOLS CAPITATION,5902464123,5001000073
06.04.2021,DSG,ST JOHNS RC PRIMARY SCHOOL,"136,813.00",ST JOHN'S RC PRIMARY SCHOOL,SCHOOLS CAPITATION,5902464126,5001000075
06.04.2021,DSG,ST JOSEPHS RC PRIMARY SCHOOL,"191,265.00",ST JOSEPHS RC (3475) PRIMARY SCHOOL,SCHOOLS CAPITATION,5902464128,5001000077
06.04.2021,DSG,ST JOSEPHS CATHOLIC PRIMARY SCHOOL,"137,417.00",ST JOSEPHS RC (3476) PRIMARY SCHOOL,SCHOOLS CAPITATION,5902464129,5001000078
06.04.2021,DSG,ST JOSEPHS CATHOLIC SCHOOL,"132,603.00",ST JOSEPHS RC (3484) SCHOOL,SCHOOLS CAPITATION,5902464127,5001000076
06.04.2021,DSG,ST JOSEPHS CATHOLIC INFANTS SCHOOL,"111,572.00",ST JOSEPHS RC INFANT(5204),SCHOOLS CAPITATION,5902464085,5001000018
06.04.2021,DSG,ST JOSEPHS RC JUNIOR  SCHOOL,"148,593.00",ST JOSEPHS RC JUNIOR(5203) SCHOOL,SCHOOLS CAPITATION,5902464084,5001000017
06.04.2021,DSG,ST JUDES CHURCH OF ENGLAND PRIMARY,"71,077.00",ST JUDE'S CE PRIMARY SCHOOL,SCHOOLS CAPITATION,5902464086,5001000019
06.04.2021,DSG,ST MARY MAGDALENE CE SCHOOL,"100,748.00",ST MARY MAGDALENE CE PRIMARY SCHOOL,SCHOOLS CAPITATION,5902464130,5001000080
06.04.2021,DSG,ST PETERS CE SCHOOL,"119,831.00",ST PETER'S CE PRIMARY SCHOOL,SCHOOLS CAPITATION,5902464131,5001000083
06.04.2021,DSG,ST SAVIOURS & ST OLAVES SCHOOL,"573,232.00",ST SAVIOUR & OLAVE'S CE,SCHOOLS CAPITATION,5902464133,5001000084
06.04.2021,DSG,CATHEDRAL SCHOOL OF ST SAVIOUR & MARY,"133,487.00",THE CATHEDRAL OF ST. SAVIOUR & ST OLAVES,SCHOOLS CAPITATION,5902464134,5001000088
06.04.2021,DSG,THE ST THOMAS THE APOSTLE COLLEGE,"727,821.00",THE ST THOMAS THE APOSTLE COLLEGE,SCHOOLS CAPITATION,5902464125,5001000074
06.04.2021,DSG,TOWER BRIDGE PRIMARY SCHOOL,"128,048.00",TOWER BRIDGE PRIMARY SCHOOL,SCHOOLS CAPITATION,5902464135,5001000095
06.04.2021,DSG,TOWNSEND PRIMARY SCHOOL,"139,309.00",TOWNSEND PRIMARY SCHOOL,SCHOOLS CAPITATION,5902464136,5001000096
06.04.2021,DSG,VICTORY SCHOOL,"95,507.00",VICTORY PRIMARY SCHOOL,SCHOOLS CAPITATION,5902464137,5001000098
06.04.2021,DSG,THE ST THOMAS THE APOSTLE COLLEGE,"102,830.00",YPLA SCHL SIXTH FORM,SCHOOLS CAPITATION,5902464124,5001000074
06.04.2021,DSG,ST SAVIOURS & ST OLAVES SCHOOL,"62,230.00",YPLA SCHL SIXTH FORM,SCHOOLS CAPITATION,5902464132,5001000084
06.04.2021,EDUCATION,RE TODAY SERVICES,"1,500.00",SACRE,CONSULTANTS SERVICES,5902464026,1000084088
06.04.2021,ENVIRONMENT AND LEISURE,BANKSIDE OPEN SPACES TRUST,"3,074.00",CAPITAL PS (LEISURE),CONSTRUCTION FEES  - EXTERNAL,5902464144,1000018290
06.04.2021,ENVIRONMENT DIRECTORATE,ACCESS HIRE NATIONWIDE LTD,"1,541.14",COMMERCIAL VEH CTRL A/C,HIRED VEHICLES,5902464212,1000048527
06.04.2021,ENVIRONMENT DIRECTORATE,ACCESS HIRE NATIONWIDE LTD,"1,541.14",COMMERCIAL VEH CTRL A/C,HIRED VEHICLES,5902464211,1000048527
06.04.2021,ENVIRONMENT DIRECTORATE,ACCESS HIRE NATIONWIDE LTD,"1,541.14",COMMERCIAL VEH CTRL A/C,HIRED VEHICLES,5902464210,1000048527
06.04.2021,ENVIRONMENT DIRECTORATE,ACCESS HIRE NATIONWIDE LTD,"1,541.14",COMMERCIAL VEH CTRL A/C,HIRED VEHICLES,5902464209,1000048527
06.04.2021,ENVIRONMENT DIRECTORATE,ACCESS HIRE NATIONWIDE LTD,"1,541.14",COMMERCIAL VEH CTRL A/C,HIRED VEHICLES,5902464207,1000048527
06.04.2021,ENVIRONMENT DIRECTORATE,ACCESS HIRE NATIONWIDE LTD,"1,541.14",COMMERCIAL VEH CTRL A/C,HIRED VEHICLES,5902464201,1000048527
06.04.2021,ENVIRONMENT DIRECTORATE,LEEDS COMMERCIAL LIMITED T/A LC VEHICLE HIRE,"1,035.00",COMMERCIAL VEH CTRL A/C,HIRED VEHICLES,5902464223,1000082730
06.04.2021,ENVIRONMENT DIRECTORATE,LEEDS COMMERCIAL LIMITED T/A LC VEHICLE HIRE,"1,035.00",COMMERCIAL VEH CTRL A/C,HIRED VEHICLES,5902464219,1000082730
06.04.2021,ENVIRONMENT DIRECTORATE,LEEDS COMMERCIAL LIMITED T/A LC VEHICLE HIRE,"1,610.00",COMMERCIAL VEH CTRL A/C,HIRED VEHICLES,5902464221,1000082730
06.04.2021,ENVIRONMENT DIRECTORATE,LEEDS COMMERCIAL LIMITED T/A LC VEHICLE HIRE,"1,610.00",COMMERCIAL VEH CTRL A/C,HIRED VEHICLES,5902464217,1000082730
06.04.2021,ENVIRONMENT DIRECTORATE,LEEDS COMMERCIAL LIMITED T/A LC VEHICLE HIRE,"2,875.00",COMMERCIAL VEH CTRL A/C,HIRED VEHICLES,5902464234,1000082730
06.04.2021,ENVIRONMENT DIRECTORATE,LEEDS COMMERCIAL LIMITED T/A LC VEHICLE HIRE,"2,990.00",COMMERCIAL VEH CTRL A/C,HIRED VEHICLES,5902464224,1000082730
06.04.2021,ENVIRONMENT DIRECTORATE,LONDON HIRE LIMITED,314.30,COMMERCIAL VEH CTRL A/C,VEHICLE REPAIRS & MAINTENANCE,5902464182,1383812
06.04.2021,ENVIRONMENT DIRECTORATE,FIVEWAYS MUNICIPAL VEHICLE HIRE LTD,500.00,COMMERCIAL VEH CTRL A/C,VEHICLE REPAIRS & MAINTENANCE,5902464165,1000023985
06.04.2021,ENVIRONMENT DIRECTORATE,FIVEWAYS MUNICIPAL VEHICLE HIRE LTD,597.90,COMMERCIAL VEH CTRL A/C,VEHICLE REPAIRS & MAINTENANCE,5902464153,1000023985
06.04.2021,ENVIRONMENT DIRECTORATE,QUARTERMAN WINDSCREENS LTD,260.80,FLEET INSURANCE WORKS,TRANSPORT INSURANCE COSTS,5902464194,1043709
06.04.2021,ENVIRONMENT DIRECTORATE,QUARTERMAN WINDSCREENS LTD,"1,045.68",FLEET INSURANCE WORKS,TRANSPORT INSURANCE COSTS,5902464193,1043709
06.04.2021,ENVIRONMENT DIRECTORATE,RYAN THOMPSON,300.00,FOOD SAFETY,LEGAL FEES & COURT COSTS,2103242597,1000068997
06.04.2021,ENVIRONMENT DIRECTORATE,RYAN THOMPSON,450.00,FOOD SAFETY,LEGAL FEES & COURT COSTS,2103242599,1000068997
06.04.2021,ENVIRONMENT DIRECTORATE,GEORGE WILLS,350.00,FOOD SAFETY,LEGAL FEES & COURT COSTS,2103242550,1000079988
06.04.2021,ENVIRONMENT DIRECTORATE,MATTHEW PARDOE,300.00,LICENSING,LEGAL FEES & COURT COSTS,2103242577,1000068983
06.04.2021,ENVIRONMENT DIRECTORATE,NICHOLAS HAM,300.00,LICENSING,LEGAL FEES & COURT COSTS,2103242580,1000068994
06.04.2021,ENVIRONMENT DIRECTORATE,NICHOLAS HAM,300.00,LICENSING,LEGAL FEES & COURT COSTS,2103242579,1000068994
06.04.2021,ENVIRONMENT DIRECTORATE,NICHOLAS HAM,750.00,LICENSING,LEGAL FEES & COURT COSTS,2103242581,1000068994
06.04.2021,ENVIRONMENT DIRECTORATE,CERTSURE LLP,475.00,PUBLIC LIGHTING,PRINTING,5902464251,1706379
06.04.2021,ENVIRONMENT DIRECTORATE,GEORGE WILLS,300.00,RESIDENTIAL SERVICES,LEGAL FEES & COURT COSTS,2103242555,1000079988
06.04.2021,ENVIRONMENT DIRECTORATE,GEORGE WILLS,350.00,RESIDENTIAL SERVICES,LEGAL FEES & COURT COSTS,2103242553,1000079988
06.04.2021,ENVIRONMENT DIRECTORATE,GEORGE WILLS,300.00,SASBU,LEGAL FEES & COURT COSTS,2103242551,1000079988
06.04.2021,ENVIRONMENT DIRECTORATE,RICHARD HELLER,300.00,STREET TRADING A/C,LEGAL FEES & COURT COSTS,2103242592,1000068996
06.04.2021,ENVIRONMENT DIRECTORATE,NICHOLAS HAM,"1,300.00",TRADING STANDARDS,LEGAL FEES & COURT COSTS,2103242578,1000068994
06.04.2021,ENVIRONMENT DIRECTORATE,RYAN THOMPSON,450.00,TRADING STANDARDS,LEGAL FEES & COURT COSTS,2103242600,1000068997
06.04.2021,F & C S EXCLUDING CORPORATE BUDGETS,DSI BILLING SERVICES LTD,"15,271.10",ADMINISTRATIVE SUPPORT,POSTAGES,5902464034,1000058640
06.04.2021,F & C S EXCLUDING CORPORATE BUDGETS,ARCUS GLOBAL LTD,"3,150.00",ADMINISTRATIVE SUPPORT,SOFTWARE,5902464214,1000080110
06.04.2021,F & C S EXCLUDING CORPORATE BUDGETS,PETER LINSTEAD,"4,150.00",CENTRAL COSTS,LEGAL FEES & COURT COSTS,2103242589,1000063417
06.04.2021,F & C S EXCLUDING CORPORATE BUDGETS,FINANCIAL DATA MANAGEMENT PLC,448.45,ELECTORAL REGISTRATION,POSTAGES,2103242545,1000031759
06.04.2021,F & C S EXCLUDING CORPORATE BUDGETS,FINANCIAL DATA MANAGEMENT PLC,473.03,ELECTORAL REGISTRATION,POSTAGES,2103242543,1000031759
06.04.2021,F & C S EXCLUDING CORPORATE BUDGETS,FINANCIAL DATA MANAGEMENT PLC,478.08,ELECTORAL REGISTRATION,POSTAGES,2103242537,1000031759
06.04.2021,F & C S EXCLUDING CORPORATE BUDGETS,FINANCIAL DATA MANAGEMENT PLC,726.01,ELECTORAL REGISTRATION,POSTAGES,2103242538,1000031759
06.04.2021,F & C S EXCLUDING CORPORATE BUDGETS,FINANCIAL DATA MANAGEMENT PLC,"1,246.89",ELECTORAL REGISTRATION,POSTAGES,2103242544,1000031759
06.04.2021,F & C S EXCLUDING CORPORATE BUDGETS,FINANCIAL DATA MANAGEMENT PLC,626.92,ELECTORAL REGISTRATION,PRINTING,2103242540,1000031759
06.04.2021,F & C S EXCLUDING CORPORATE BUDGETS,ELECTORAL REFORM SERVICES LTD,"3,783.38",ELECTORAL REGISTRATION,SUBSCRIPTIONS,2103242528,1052156
06.04.2021,F & C S EXCLUDING CORPORATE BUDGETS,THE ASSOCIATION OF ELECTORAL ADMINISTRATION,"1,666.67",ELECTORAL REGISTRATION,SUBSCRIPTIONS,2103242518,1000045146
06.04.2021,F & C S EXCLUDING CORPORATE BUDGETS,PETER LINSTEAD,"2,050.00",LEGAL CORP.CHARGES,LEGAL FEES & COURT COSTS,2103242590,1000063417
06.04.2021,F & C S EXCLUDING CORPORATE BUDGETS,PETER LINSTEAD,"3,000.00",LEGAL CORP.CHARGES,LEGAL FEES & COURT COSTS,2103242591,1000063417
06.04.2021,F & C S EXCLUDING CORPORATE BUDGETS,NIKOLAS CLARKE,810.00,LEGAL CORP.CHARGES,LEGAL FEES & COURT COSTS,2103242583,1000077342
06.04.2021,F & C S EXCLUDING CORPORATE BUDGETS,BEVAN BRITTAN LLP,451.20,LEGAL CORP.CHARGES,SOLICITORS FRAMEWORK LEGAL SERVICES,2103242519,1000047779
06.04.2021,F & C S EXCLUDING CORPORATE BUDGETS,BEVAN BRITTAN LLP,"1,233.50",LEGAL CORP.CHARGES,SOLICITORS FRAMEWORK LEGAL SERVICES,2103242520,1000047779
06.04.2021,F & C S EXCLUDING CORPORATE BUDGETS,REDACTED PERSONAL DATA,500.00,SESS,OTHER PAYMENTS FOR CLIENTS,REDACTED,REDACTED
06.04.2021,F & C S EXCLUDING CORPORATE BUDGETS,REDACTED PERSONAL DATA,500.00,SESS,OTHER PAYMENTS FOR CLIENTS,REDACTED,REDACTED
06.04.2021,HOUSING,SMITH & BYFORD LTD,"390,040.78",SMITH AND BYFORD,I-WORLD CONTRACTORS HOLDING ACCOUNT,2103242838,3000000520
06.04.2021,HOUSING HRA,CALFORD SEADEN LLP,"1,176.00",CAPITAL PS (HRA),CONSTRUCTION FEES  - EXTERNAL,5902464203,1061592
06.04.2021,HOUSING HRA,SHARPE PRITCHARD LLP,"2,200.00",CAPITAL PS (HRA),CONSTRUCTION FEES  - EXTERNAL,5902464198,1790085
06.04.2021,HOUSING HRA,SHARPE PRITCHARD LLP,"2,200.00",CAPITAL PS (HRA),CONSTRUCTION FEES  - EXTERNAL,5902464185,1790085
06.04.2021,HOUSING HRA,LUSTRE CONSULTING LTD,"1,288.00",CAPITAL PS (HRA),CONSTRUCTION FEES  - EXTERNAL,5902464228,1000074552
06.04.2021,HOUSING HRA,LUSTRE CONSULTING LTD,"1,295.00",CAPITAL PS (HRA),CONSTRUCTION FEES  - EXTERNAL,5902464227,1000074552
06.04.2021,HOUSING HRA,PJC CONSULTANCY LTD,545.00,CAPITAL PS (HRA),CONSTRUCTION FEES  - EXTERNAL,5902464216,1000077403
06.04.2021,HOUSING HRA,WEBB YATES ENGINEERS LTD,"2,000.00",CAPITAL PS (HRA),CONSTRUCTION FEES  - EXTERNAL,5902464174,1000085861
06.04.2021,HOUSING HRA,WHITBY WOOD LTD,"3,000.00",CAPITAL PS (HRA),CONSTRUCTION FEES  - EXTERNAL,5902464208,1000086224
06.04.2021,HOUSING HRA,DOWN TO EARTH TREES LTD,385.00,CAPITAL PS (HRA),CONSTRUCTION FEES  - EXTERNAL,5902464172,1000086428
06.04.2021,HOUSING HRA,PARKERJONES ACOUSTICS LIMITED,900.00,CAPITAL PS (HRA),CONSTRUCTION FEES  - EXTERNAL,5902464176,1000086440
06.04.2021,HOUSING HRA,COTTRELL AND VERMEULEN ARCH LTD,"8,173.00",CAPITAL PS (HRA),CONSTRUCTION FEES - ARCHITECT,5902464187,1000012119
06.04.2021,HOUSING HRA,POTTER RAPER LTD,412.50,CAPITAL PS (HRA),CONSTRUCTION FEES - EMPLOYERS AGENT,5902464189,1009369
06.04.2021,HOUSING HRA,CALFORD SEADEN LLP,"1,176.00",CAPITAL PS (HRA),CONSTRUCTION FEES - EMPLOYERS AGENT,5902462416,1061592
06.04.2021,HOUSING HRA,DJJH CONSULTING LTD,475.78,CAPITAL PS (HRA),CONSTRUCTION FEES - EMPLOYERS AGENT,5902464173,1000085261
06.04.2021,HOUSING HRA,DJJH CONSULTING LTD,483.18,CAPITAL PS (HRA),CONSTRUCTION FEES - EMPLOYERS AGENT,5902464171,1000085261
06.04.2021,HOUSING HRA,DJJH CONSULTING LTD,734.82,CAPITAL PS (HRA),CONSTRUCTION FEES - EMPLOYERS AGENT,5902464177,1000085261
06.04.2021,HOUSING HRA,DJJH CONSULTING LTD,"1,404.99",CAPITAL PS (HRA),CONSTRUCTION FEES - EMPLOYERS AGENT,5902464183,1000085261
06.04.2021,HOUSING HRA,AIREY MILLER LIMITED,"1,496.25",CAPITAL PS (HRA),CONSTRUCTION FEES - EMPLOYERS AGENT,5902464202,1000085476
06.04.2021,HOUSING HRA,AIREY MILLER LIMITED,"1,805.48",CAPITAL PS (HRA),CONSTRUCTION FEES - EMPLOYERS AGENT,5902464191,1000085476
06.04.2021,HOUSING HRA,AIREY MILLER LIMITED,"2,740.71",CAPITAL PS (HRA),CONSTRUCTION FEES - EMPLOYERS AGENT,5902464184,1000085476
06.04.2021,HOUSING HRA,SHARPE PRITCHARD LLP,"2,200.00",CAPITAL PS (HRA),CONSTRUCTION FEES - LEGAL,5902464197,1790085
06.04.2021,HOUSING HRA,SHARPE PRITCHARD LLP,"2,200.00",CAPITAL PS (HRA),CONSTRUCTION FEES - LEGAL,5902464188,1790085
06.04.2021,HOUSING HRA,SHARPE PRITCHARD LLP,"2,200.00",CAPITAL PS (HRA),CONSTRUCTION FEES - LEGAL,5902464181,1790085
06.04.2021,HOUSING HRA,PJC CONSULTANCY LTD,595.00,CAPITAL PS (HRA),CONSTRUCTION FEES - QUANTITY SURVEYOR,5902464215,1000077403
06.04.2021,HOUSING HRA,PARIS SMITH LLP,519.60,CAPITAL PS (HRA),LAND & BUILDINGS ACQUISITION FEES,2103242836,1000008059
06.04.2021,MODERNISATION HGF,SQUARE GAIN LTD,"1,000.00",MEMBER DEVELOPMENT,TRAINING,5902464248,1000086364
06.04.2021,NEW BUILD,TRANSPORT FOR LONDON BUSES,270.00,DEVELOPMENT DELIVERY,LEGAL FEES & COURT COSTS,2103242603,1000033685
06.04.2021,NEW BUILD,POTTER RAPER LTD,"3,971.10",DEVELOPMENT DELIVERY,PROFESSIONAL FEES,5902464250,1009369
06.04.2021,NEW BUILD,BELL PHILLIPS ARCHITECTS LTD,"1,000.00",DEVELOPMENT DELIVERY,PROFESSIONAL FEES,5902464145,1000069307
06.04.2021,NEW BUILD,WEBB YATES ENGINEERS LTD,"8,100.00",DEVELOPMENT DELIVERY,PROFESSIONAL FEES,5902464247,1000085861
06.04.2021,PLANNING AND TRANSPORT,ADMAS HABTESLASIE,625.00,BUM & SUPPORT COSTS,LEGAL FEES & COURT COSTS,2103242514,1000084048
06.04.2021,PLANNING AND TRANSPORT,RICHARD HELLER,575.00,COMPLIANCE & MONITORING,LEGAL FEES & COURT COSTS,2103242593,1000068996
06.04.2021,PLANNING AND TRANSPORT,GEORGE WILLS,300.00,COMPLIANCE & MONITORING,LEGAL FEES & COURT COSTS,2103242552,1000079988
06.04.2021,PLANNING AND TRANSPORT,GEORGE WILLS,350.00,COMPLIANCE & MONITORING,LEGAL FEES & COURT COSTS,2103242548,1000079988
06.04.2021,PLANNING AND TRANSPORT,RICHARD TURNEY,400.00,PLANNING APPEALS AND INQUIRIES,LEGAL FEES & COURT COSTS,2103242594,1000066524
06.04.2021,PUBLIC HEALTH,IMPACT UNION LTD,"3,000.00",PLACE & HEALTH IMPROVEMENT,EXTERNAL AGENCIES AND BODIES,5902464235,1000085136
06.04.2021,REGENERATION,CLYDE & CO,304.00,9 HOLYROOD STREET,SOLICITORS FRAMEWORK LEGAL SERVICES,5902464156,1000067838
06.04.2021,REGENERATION,NIGEL GIFFIN QC,"1,440.00",CANADA WATER,LEGAL FEES & COURT COSTS,2103242582,1000043288
06.04.2021,REGENERATION,MONTAGU EVANS LLP,"4,950.00",CPHA SURPLUS,PROFESSIONAL FEES,5902464195,1000073283
06.04.2021,REGENERATION,PLAN LONDON LTD,"2,550.00",SITES - PHASE 1,PROFESSIONAL FEES,5902464246,1000056065
06.04.2021,RESIDENT SERVICES,LISA CLARKE,300.00,OPERATIONS/OFFICES ACCOMMODATION,LEGAL FEES & COURT COSTS,2103242572,1000030215
06.04.2021,RESIDENT SERVICES,K3 PROPERTY MANAGEMENT LTD,"2,356.00",TA PLACEMENTS,EXTERNAL AGENCIES AND BODIES,5902464035,1000068219
06.04.2021,SBS SUPPORT,LONDON SOUTH BANK UNIVERSITY,"4,625.00",R & M OVERHEADS,TRAINING,5902464143,1000051012
06.04.2021,SBS SUPPORT,LONDON SOUTH BANK UNIVERSITY,"4,625.00",R & M OVERHEADS,TRAINING,5902464142,1000051012
07.04.2021,ADULT SOCIAL CARE,REDACTED PERSONAL DATA,279.85,APPOINTEESHIPS,OTHER PAYMENTS FOR CLIENTS,REDACTED,REDACTED
07.04.2021,ADULT SOCIAL CARE,LONDON CARE LTD,354.42,CARERS SERVICES,HOMECARE - SPOT,2103243561,1000003398
07.04.2021,ADULT SOCIAL CARE,INTRADO SOLUTIONS LIMITED,314.55,DIR OF ASC,LEGAL FEES & COURT COSTS,5902464397,1000084959
07.04.2021,ADULT SOCIAL CARE,INTRADO SOLUTIONS LIMITED,368.69,DIR OF ASC,LEGAL FEES & COURT COSTS,5902464401,1000084959
07.04.2021,ADULT SOCIAL CARE,REDACTED PERSONAL DATA,"1,094.60",DISABILITIES LAC,PAYMENTS TO CARERS,REDACTED,REDACTED
07.04.2021,ADULT SOCIAL CARE,REDACTED PERSONAL DATA,"1,632.00",DISABILITIES LAC,PAYMENTS TO CARERS,REDACTED,REDACTED
07.04.2021,ADULT SOCIAL CARE,REDACTED PERSONAL DATA,756.00,DISABILITIES LAC,PAYMENTS TO CARERS,REDACTED,REDACTED
07.04.2021,ADULT SOCIAL CARE,REDACTED PERSONAL DATA,854.00,DISABILITIES LAC,PAYMENTS TO CARERS,REDACTED,REDACTED
07.04.2021,ADULT SOCIAL CARE,LONDON CARE LTD,"2,972.50",DISCHARGE TO ACCESS,HOMECARE - C&V,2103243599,1000003398
07.04.2021,ADULT SOCIAL CARE,SUPREME CARE SERVICES LTD,628.20,LD LTS 65+,HOMECARE - C&V,2103243545,1000059416
07.04.2021,ADULT SOCIAL CARE,SUPREME CARE SERVICES LTD,610.76,MEM LTS 65+,HOMECARE - C&V,2103243515,1000059416
07.04.2021,ADULT SOCIAL CARE,SUPREME CARE SERVICES LTD,785.24,MEM LTS 65+,HOMECARE - C&V,2103243557,1000059416
07.04.2021,ADULT SOCIAL CARE,SUPREME CARE SERVICES LTD,279.20,MH LTS 18-64,HOMECARE - C&V,2103243532,1000059416
07.04.2021,ADULT SOCIAL CARE,SUPREME CARE SERVICES LTD,488.60,MH LTS 18-64,HOMECARE - C&V,2103243550,1000059416
07.04.2021,ADULT SOCIAL CARE,SUPREME CARE SERVICES LTD,680.56,MH LTS 65+,HOMECARE - C&V,2103243518,1000059416
07.04.2021,ADULT SOCIAL CARE,SUPREME CARE SERVICES LTD,"1,116.80",MH LTS 65+,HOMECARE - C&V,2103243554,1000059416
07.04.2021,ADULT SOCIAL CARE,LONDON CARE LTD,255.17,PHY LTS 18-64,HOMECARE - C&V,2103243578,1000003398
07.04.2021,ADULT SOCIAL CARE,LONDON CARE LTD,"1,678.54",PHY LTS 18-64,HOMECARE - C&V,2103243564,1000003398
07.04.2021,ADULT SOCIAL CARE,SUPREME CARE SERVICES LTD,436.24,PHY LTS 18-64,HOMECARE - C&V,2103243558,1000059416
07.04.2021,ADULT SOCIAL CARE,SUPREME CARE SERVICES LTD,488.60,PHY LTS 18-64,HOMECARE - C&V,2103243552,1000059416
07.04.2021,ADULT SOCIAL CARE,SUPREME CARE SERVICES LTD,610.76,PHY LTS 18-64,HOMECARE - C&V,2103243551,1000059416
07.04.2021,ADULT SOCIAL CARE,SUPREME CARE SERVICES LTD,610.76,PHY LTS 18-64,HOMECARE - C&V,2103243516,1000059416
07.04.2021,ADULT SOCIAL CARE,SUPREME CARE SERVICES LTD,680.56,PHY LTS 18-64,HOMECARE - C&V,2103243531,1000059416
07.04.2021,ADULT SOCIAL CARE,SUPREME CARE SERVICES LTD,"1,221.52",PHY LTS 18-64,HOMECARE - C&V,2103243526,1000059416
07.04.2021,ADULT SOCIAL CARE,LONDON CARE LTD,250.60,PHY LTS 65+,HOMECARE - C&V,2103243576,1000003398
07.04.2021,ADULT SOCIAL CARE,LONDON CARE LTD,501.20,PHY LTS 65+,HOMECARE - C&V,2103243600,1000003398
07.04.2021,ADULT SOCIAL CARE,LONDON CARE LTD,501.20,PHY LTS 65+,HOMECARE - C&V,2103243583,1000003398
07.04.2021,ADULT SOCIAL CARE,LONDON CARE LTD,554.96,PHY LTS 65+,HOMECARE - C&V,2103243623,1000003398
07.04.2021,ADULT SOCIAL CARE,LONDON CARE LTD,693.77,PHY LTS 65+,HOMECARE - C&V,2103243587,1000003398
07.04.2021,ADULT SOCIAL CARE,LONDON CARE LTD,751.80,PHY LTS 65+,HOMECARE - C&V,2103243601,1000003398
07.04.2021,ADULT SOCIAL CARE,LONDON CARE LTD,850.42,PHY LTS 65+,HOMECARE - C&V,2103243562,1000003398
07.04.2021,ADULT SOCIAL CARE,LONDON CARE LTD,877.24,PHY LTS 65+,HOMECARE - C&V,2103243565,1000003398
07.04.2021,ADULT SOCIAL CARE,LONDON CARE LTD,878.08,PHY LTS 65+,HOMECARE - C&V,2103243570,1000003398
07.04.2021,ADULT SOCIAL CARE,LONDON CARE LTD,944.37,PHY LTS 65+,HOMECARE - C&V,2103243621,1000003398
07.04.2021,ADULT SOCIAL CARE,LONDON CARE LTD,955.27,PHY LTS 65+,HOMECARE - C&V,2103243579,1000003398
07.04.2021,ADULT SOCIAL CARE,LONDON CARE LTD,"1,069.53",PHY LTS 65+,HOMECARE - C&V,2103243595,1000003398
07.04.2021,ADULT SOCIAL CARE,LONDON CARE LTD,"1,127.84",PHY LTS 65+,HOMECARE - C&V,2103243596,1000003398
07.04.2021,ADULT SOCIAL CARE,LONDON CARE LTD,"1,240.94",PHY LTS 65+,HOMECARE - C&V,2103243627,1000003398
07.04.2021,ADULT SOCIAL CARE,LONDON CARE LTD,"1,306.84",PHY LTS 65+,HOMECARE - C&V,2103243569,1000003398
07.04.2021,ADULT SOCIAL CARE,SUPREME CARE SERVICES LTD,261.76,PHY LTS 65+,HOMECARE - C&V,2103243523,1000059416
07.04.2021,ADULT SOCIAL CARE,SUPREME CARE SERVICES LTD,383.92,PHY LTS 65+,HOMECARE - C&V,2103243537,1000059416
07.04.2021,ADULT SOCIAL CARE,SUPREME CARE SERVICES LTD,488.60,PHY LTS 65+,HOMECARE - C&V,2103243541,1000059416
07.04.2021,ADULT SOCIAL CARE,SUPREME CARE SERVICES LTD,488.60,PHY LTS 65+,HOMECARE - C&V,2103243529,1000059416
07.04.2021,ADULT SOCIAL CARE,SUPREME CARE SERVICES LTD,488.60,PHY LTS 65+,HOMECARE - C&V,2103243519,1000059416
07.04.2021,ADULT SOCIAL CARE,SUPREME CARE SERVICES LTD,488.60,PHY LTS 65+,HOMECARE - C&V,2103243510,1000059416
07.04.2021,ADULT SOCIAL CARE,SUPREME CARE SERVICES LTD,506.04,PHY LTS 65+,HOMECARE - C&V,2103243538,1000059416
07.04.2021,ADULT SOCIAL CARE,SUPREME CARE SERVICES LTD,506.04,PHY LTS 65+,HOMECARE - C&V,2103243524,1000059416
07.04.2021,ADULT SOCIAL CARE,SUPREME CARE SERVICES LTD,575.84,PHY LTS 65+,HOMECARE - C&V,2103243544,1000059416
07.04.2021,ADULT SOCIAL CARE,SUPREME CARE SERVICES LTD,610.76,PHY LTS 65+,HOMECARE - C&V,2103243546,1000059416
07.04.2021,ADULT SOCIAL CARE,SUPREME CARE SERVICES LTD,610.76,PHY LTS 65+,HOMECARE - C&V,2103243543,1000059416
07.04.2021,ADULT SOCIAL CARE,SUPREME CARE SERVICES LTD,610.76,PHY LTS 65+,HOMECARE - C&V,2103243542,1000059416
07.04.2021,ADULT SOCIAL CARE,SUPREME CARE SERVICES LTD,610.76,PHY LTS 65+,HOMECARE - C&V,2103243522,1000059416
07.04.2021,ADULT SOCIAL CARE,SUPREME CARE SERVICES LTD,680.56,PHY LTS 65+,HOMECARE - C&V,2103243555,1000059416
07.04.2021,ADULT SOCIAL CARE,SUPREME CARE SERVICES LTD,732.92,PHY LTS 65+,HOMECARE - C&V,2103243553,1000059416
07.04.2021,ADULT SOCIAL CARE,SUPREME CARE SERVICES LTD,785.24,PHY LTS 65+,HOMECARE - C&V,2103243517,1000059416
07.04.2021,ADULT SOCIAL CARE,SUPREME CARE SERVICES LTD,837.60,PHY LTS 65+,HOMECARE - C&V,2103243527,1000059416
07.04.2021,ADULT SOCIAL CARE,SUPREME CARE SERVICES LTD,855.04,PHY LTS 65+,HOMECARE - C&V,2103243514,1000059416
07.04.2021,ADULT SOCIAL CARE,SUPREME CARE SERVICES LTD,872.52,PHY LTS 65+,HOMECARE - C&V,2103243535,1000059416
07.04.2021,ADULT SOCIAL CARE,SUPREME CARE SERVICES LTD,959.76,PHY LTS 65+,HOMECARE - C&V,2103243525,1000059416
07.04.2021,ADULT SOCIAL CARE,SUPREME CARE SERVICES LTD,977.20,PHY LTS 65+,HOMECARE - C&V,2103243547,1000059416
07.04.2021,ADULT SOCIAL CARE,SUPREME CARE SERVICES LTD,"1,099.36",PHY LTS 65+,HOMECARE - C&V,2103243536,1000059416
07.04.2021,ADULT SOCIAL CARE,SUPREME CARE SERVICES LTD,"1,099.36",PHY LTS 65+,HOMECARE - C&V,2103243521,1000059416
07.04.2021,ADULT SOCIAL CARE,SUPREME CARE SERVICES LTD,"1,101.86",PHY LTS 65+,HOMECARE - C&V,2103243560,1000059416
07.04.2021,ADULT SOCIAL CARE,SUPREME CARE SERVICES LTD,"1,221.52",PHY LTS 65+,HOMECARE - C&V,2103243534,1000059416
07.04.2021,ADULT SOCIAL CARE,SUPREME CARE SERVICES LTD,"1,465.80",PHY LTS 65+,HOMECARE - C&V,2103243533,1000059416
07.04.2021,ADULT SOCIAL CARE,SUPREME CARE SERVICES LTD,"1,535.60",PHY LTS 65+,HOMECARE - C&V,2103243556,1000059416
07.04.2021,ADULT SOCIAL CARE,SUPREME CARE SERVICES LTD,"1,919.52",PHY LTS 65+,HOMECARE - C&V,2103243528,1000059416
07.04.2021,ADULT SOCIAL CARE,SUPREME CARE SERVICES LTD,"2,076.56",PHY LTS 65+,HOMECARE - C&V,2103243512,1000059416
07.04.2021,ADULT SOCIAL CARE,SUPREME CARE SERVICES LTD,"2,198.72",PHY LTS 65+,HOMECARE - C&V,2103243540,1000059416
07.04.2021,ADULT SOCIAL CARE,SUPREME CARE SERVICES LTD,"2,338.32",PHY LTS 65+,HOMECARE - C&V,2103243509,1000059416
07.04.2021,ADULT SOCIAL CARE,SUPREME CARE SERVICES LTD,"2,792.00",PHY LTS 65+,HOMECARE - C&V,2103243549,1000059416
07.04.2021,ADULT SOCIAL CARE,LONDON CARE LTD,255.10,PHY STS 18-64,HOMECARE - IC,2103243593,1000003398
07.04.2021,ADULT SOCIAL CARE,LONDON CARE LTD,326.68,PHY STS 18-64,HOMECARE - IC,2103243625,1000003398
07.04.2021,ADULT SOCIAL CARE,LONDON CARE LTD,326.72,PHY STS 18-64,HOMECARE - IC,2103243615,1000003398
07.04.2021,ADULT SOCIAL CARE,LONDON CARE LTD,340.10,PHY STS 18-64,HOMECARE - IC,2103243609,1000003398
07.04.2021,ADULT SOCIAL CARE,LONDON CARE LTD,563.94,PHY STS 18-64,HOMECARE - IC,2103243572,1000003398
07.04.2021,ADULT SOCIAL CARE,LONDON CARE LTD,282.03,PHY STS 65+,HOMECARE - IC,2103243622,1000003398
07.04.2021,ADULT SOCIAL CARE,LONDON CARE LTD,304.41,PHY STS 65+,HOMECARE - IC,2103243585,1000003398
07.04.2021,ADULT SOCIAL CARE,LONDON CARE LTD,361.93,PHY STS 65+,HOMECARE - IC,2103243568,1000003398
07.04.2021,ADULT SOCIAL CARE,LONDON CARE LTD,375.90,PHY STS 65+,HOMECARE - IC,2103243613,1000003398
07.04.2021,ADULT SOCIAL CARE,LONDON CARE LTD,380.47,PHY STS 65+,HOMECARE - IC,2103243610,1000003398
07.04.2021,ADULT SOCIAL CARE,LONDON CARE LTD,474.35,PHY STS 65+,HOMECARE - IC,2103243580,1000003398
07.04.2021,ADULT SOCIAL CARE,LONDON CARE LTD,478.83,PHY STS 65+,HOMECARE - IC,2103243573,1000003398
07.04.2021,ADULT SOCIAL CARE,LONDON CARE LTD,496.84,PHY STS 65+,HOMECARE - IC,2103243577,1000003398
07.04.2021,ADULT SOCIAL CARE,LONDON CARE LTD,501.20,PHY STS 65+,HOMECARE - IC,2103243612,1000003398
07.04.2021,ADULT SOCIAL CARE,LONDON CARE LTD,555.16,PHY STS 65+,HOMECARE - IC,2103243611,1000003398
07.04.2021,ADULT SOCIAL CARE,LONDON CARE LTD,738.52,PHY STS 65+,HOMECARE - IC,2103243626,1000003398
07.04.2021,ADULT SOCIAL CARE,LONDON CARE LTD,742.94,PHY STS 65+,HOMECARE - IC,2103243604,1000003398
07.04.2021,ADULT SOCIAL CARE,LONDON CARE LTD,823.40,PHY STS 65+,HOMECARE - IC,2103243614,1000003398
07.04.2021,ADULT SOCIAL CARE,LONDON CARE LTD,868.25,PHY STS 65+,HOMECARE - IC,2103243608,1000003398
07.04.2021,ADULT SOCIAL CARE,LONDON CARE LTD,957.78,PHY STS 65+,HOMECARE - IC,2103243571,1000003398
07.04.2021,ADULT SOCIAL CARE,LONDON CARE LTD,980.03,PHY STS 65+,HOMECARE - IC,2103243619,1000003398
07.04.2021,ADULT SOCIAL CARE,LONDON CARE LTD,993.58,PHY STS 65+,HOMECARE - IC,2103243620,1000003398
07.04.2021,ADULT SOCIAL CARE,LONDON CARE LTD,"1,230.75",PHY STS 65+,HOMECARE - IC,2103243581,1000003398
07.04.2021,ADULT SOCIAL CARE,LONDON CARE LTD,"1,489.61",PHY STS 65+,HOMECARE - IC,2103243575,1000003398
07.04.2021,ADULT SOCIAL CARE,LONDON CARE LTD,"1,611.56",PHY STS 65+,HOMECARE - IC,2103243566,1000003398
07.04.2021,ADULT SOCIAL CARE,LONDON CARE LTD,"1,785.73",PHY STS 65+,HOMECARE - IC,2103243602,1000003398
07.04.2021,ADULT SOCIAL CARE,LONDON CARE LTD,"2,228.85",PHY STS 65+,HOMECARE - IC,2103243563,1000003398
07.04.2021,ADULT SOCIAL CARE,GUYS & ST THOMAS NHS FOUNDATION TRUST,987.27,REABLEMENT SERVICE,EXTERNAL AGENCIES AND BODIES,5902464281,1765536
07.04.2021,ADULT SOCIAL CARE,GUYS & ST THOMAS NHS FOUNDATION TRUST,"2,638.46",REABLEMENT SERVICE,EXTERNAL AGENCIES AND BODIES,5902464281,1765536
07.04.2021,ADULT SOCIAL CARE,SUPREME CARE SERVICES LTD,855.04,SEN LTS 65+,HOMECARE - C&V,2103243513,1000059416
07.04.2021,ADULT SOCIAL CARE,SUPREME CARE SERVICES LTD,"2,198.72",SOCIAL ISOLATION,HOMECARE - C&V,2103243511,1000059416
07.04.2021,ADULT SOCIAL CARE,LONDON CARE LTD,"1,723.51",SOCIAL ISOLATION,HOMECARE - IC,2103243586,1000003398
07.04.2021,ASSET MANAGEMENT,CHESHIRE ESTATE AND LEGAL LTD,500.00,DISREPAIR,PAYMENTS FOR LEGAL SERVICES,2103243729,1000081908
07.04.2021,ASSET MANAGEMENT,CHESHIRE ESTATE AND LEGAL LTD,"1,672.24",DISREPAIR,PAYMENTS FOR LEGAL SERVICES,2103243732,1000081908
07.04.2021,ASSET MANAGEMENT,CHESHIRE ESTATE AND LEGAL LTD,"7,757.15",DISREPAIR,PAYMENTS FOR LEGAL SERVICES,2103243733,1000081908
07.04.2021,ASSET MANAGEMENT,CHESHIRE ESTATE AND LEGAL LTD,"13,105.26",DISREPAIR,PAYMENTS FOR LEGAL SERVICES,2103243730,1000081908
07.04.2021,ASSET MANAGEMENT,JUDGE AND PRIESTLEY SOLICITORS,750.00,DISREPAIR,PAYMENTS FOR LEGAL SERVICES,5902464446,1472217
07.04.2021,ASSET MANAGEMENT,ANTONY HODARI  SOLICITORS,"3,500.00",DISREPAIR,PAYMENTS FOR LEGAL SERVICES,2103243731,1000031040
07.04.2021,ASSET MANAGEMENT,ANTONY HODARI  SOLICITORS,"7,205.00",DISREPAIR,PAYMENTS FOR LEGAL SERVICES,2103243728,1000031040
07.04.2021,ASSET MANAGEMENT,BOND TURNER  SOLICITORS,"2,950.00",DISREPAIR,PAYMENTS FOR LEGAL SERVICES,2103243727,1000085362
07.04.2021,ASSET MANAGEMENT,LONDON FIRE BRIGADE,346.00,ENG CONTRACTS (NORTH),LIFTS,5902464262,1000083629
07.04.2021,ASSET MANAGEMENT,LONDON FIRE BRIGADE,346.00,ENG CONTRACTS (NORTH),LIFTS,5902464260,1000083629
07.04.2021,ASSET MANAGEMENT,LONDON FIRE BRIGADE,346.00,ENG CONTRACTS (NORTH),LIFTS,5902464258,1000083629
07.04.2021,ASSET MANAGEMENT HGF,FERRET INFORMATION SYSTEMS LTD,513.00,HOME IMPROVEMNT AGENCY,SOFTWARE,5902464283,1086863
07.04.2021,CENTRAL FUNCTIONS,QUEST SOFTWARE INTERNATIONAL LTD,856.12,BUSINESS APPLICATIONS,SOFTWARE,5902464435,1000080218
07.04.2021,CENTRAL FUNCTIONS,CAPITA BUSINESS SERVICES LTD,"26,257.43",EXCHEQUER RENTS,OTHER CONTRACTORS,5902464275,1000006291
07.04.2021,CHIEF EXECUTIVE,LBOX COMMUNICATIONS,"2,835.20",CAPITAL PS (REGEN),CONSTRUCTION,5902464305,1000044844
07.04.2021,CHIEF EXECUTIVE,LBOX COMMUNICATIONS,"3,067.42",CAPITAL PS (REGEN),CONSTRUCTION,5902464304,1000044844
07.04.2021,CHIEF EXECUTIVE,BIG LOCAL WORKS,"20,000.00",CAPITAL PS (REGEN),CONSTRUCTION,5902464297,1000082263
07.04.2021,CHIEF EXECUTIVE,HAYATSU ARCHITECTS LTD,"4,137.40",CAPITAL PS (REGEN),CONSTRUCTION FEES,5902464298,1000082843
07.04.2021,CHIEF EXECUTIVE,SHARPE PRITCHARD LLP,928.00,CAPITAL PS (REGEN),CONSTRUCTION FEES - ARCHITECT,5902464285,1790085
07.04.2021,CHILDREN AND FAMILIES,REDACTED PERSONAL DATA,559.06,ADOPTION ALLOWANCES,PAYMENTS TO CARERS,REDACTED,REDACTED
07.04.2021,CHILDREN AND FAMILIES,REDACTED PERSONAL DATA,695.04,ADOPTION ALLOWANCES,PAYMENTS TO CARERS,REDACTED,REDACTED
07.04.2021,CHILDREN AND FAMILIES,REDACTED PERSONAL DATA,375.54,ADOPTION ALLOWANCES,PAYMENTS TO CARERS,REDACTED,REDACTED
07.04.2021,CHILDREN AND FAMILIES,REDACTED PERSONAL DATA,375.54,ADOPTION ALLOWANCES,PAYMENTS TO CARERS,REDACTED,REDACTED
07.04.2021,CHILDREN AND FAMILIES,REDACTED PERSONAL DATA,500.00,ADOPTION ALLOWANCES,PAYMENTS TO CARERS,REDACTED,REDACTED
07.04.2021,CHILDREN AND FAMILIES,REDACTED PERSONAL DATA,635.34,ADOPTION ALLOWANCES,PAYMENTS TO CARERS,REDACTED,REDACTED
07.04.2021,CHILDREN AND FAMILIES,REDACTED PERSONAL DATA,375.54,ADOPTION ALLOWANCES,PAYMENTS TO CARERS,REDACTED,REDACTED
07.04.2021,CHILDREN AND FAMILIES,REDACTED PERSONAL DATA,653.06,ADOPTION ALLOWANCES,PAYMENTS TO CARERS,REDACTED,REDACTED
07.04.2021,CHILDREN AND FAMILIES,REDACTED PERSONAL DATA,465.54,ADOPTION ALLOWANCES,PAYMENTS TO CARERS,REDACTED,REDACTED
07.04.2021,CHILDREN AND FAMILIES,REDACTED PERSONAL DATA,465.54,ADOPTION ALLOWANCES,PAYMENTS TO CARERS,REDACTED,REDACTED
07.04.2021,CHILDREN AND FAMILIES,REDACTED PERSONAL DATA,375.54,ADOPTION ALLOWANCES,PAYMENTS TO CARERS,REDACTED,REDACTED
07.04.2021,CHILDREN AND FAMILIES,REDACTED PERSONAL DATA,451.80,ADOPTION ALLOWANCES,PAYMENTS TO CARERS,REDACTED,REDACTED
07.04.2021,CHILDREN AND FAMILIES,REDACTED PERSONAL DATA,"2,875.52",ADOPTION ALLOWANCES,PAYMENTS TO CARERS,REDACTED,REDACTED
07.04.2021,CHILDREN AND FAMILIES,REDACTED PERSONAL DATA,319.36,ADOPTION ALLOWANCES,PAYMENTS TO CARERS,REDACTED,REDACTED
07.04.2021,CHILDREN AND FAMILIES,REDACTED PERSONAL DATA,465.48,ADOPTION ALLOWANCES,PAYMENTS TO CARERS,REDACTED,REDACTED
07.04.2021,CHILDREN AND FAMILIES,REDACTED PERSONAL DATA,386.00,ADOPTION ALLOWANCES,PAYMENTS TO CARERS,REDACTED,REDACTED
07.04.2021,CHILDREN AND FAMILIES,REDACTED PERSONAL DATA,465.54,ADOPTION ALLOWANCES,PAYMENTS TO CARERS,REDACTED,REDACTED
07.04.2021,CHILDREN AND FAMILIES,REDACTED PERSONAL DATA,269.22,ADOPTION ALLOWANCES,PAYMENTS TO CARERS,REDACTED,REDACTED
07.04.2021,CHILDREN AND FAMILIES,REDACTED PERSONAL DATA,705.24,ADOPTION ALLOWANCES,PAYMENTS TO CARERS,REDACTED,REDACTED
07.04.2021,CHILDREN AND FAMILIES,REDACTED PERSONAL DATA,777.36,ADOPTION ALLOWANCES,PAYMENTS TO CARERS,REDACTED,REDACTED
07.04.2021,CHILDREN AND FAMILIES,REDACTED PERSONAL DATA,512.02,ADOPTION ALLOWANCES,PAYMENTS TO CARERS,REDACTED,REDACTED
07.04.2021,CHILDREN AND FAMILIES,REDACTED PERSONAL DATA,251.12,ADOPTION ALLOWANCES,PAYMENTS TO CARERS,REDACTED,REDACTED
07.04.2021,CHILDREN AND FAMILIES,REDACTED PERSONAL DATA,375.54,ADOPTION ALLOWANCES,PAYMENTS TO CARERS,REDACTED,REDACTED
07.04.2021,CHILDREN AND FAMILIES,REDACTED PERSONAL DATA,375.54,ADOPTION ALLOWANCES,PAYMENTS TO CARERS,REDACTED,REDACTED
07.04.2021,CHILDREN AND FAMILIES,REDACTED PERSONAL DATA,457.14,ADOPTION ALLOWANCES,PAYMENTS TO CARERS,REDACTED,REDACTED
07.04.2021,CHILDREN AND FAMILIES,REDACTED PERSONAL DATA,502.00,ADOPTION ALLOWANCES,PAYMENTS TO CARERS,REDACTED,REDACTED
07.04.2021,CHILDREN AND FAMILIES,REDACTED PERSONAL DATA,375.54,ADOPTION ALLOWANCES,PAYMENTS TO CARERS,REDACTED,REDACTED
07.04.2021,CHILDREN AND FAMILIES,REDACTED PERSONAL DATA,640.90,ADOPTION ALLOWANCES,PAYMENTS TO CARERS,REDACTED,REDACTED
07.04.2021,CHILDREN AND FAMILIES,REDACTED PERSONAL DATA,382.30,ADOPTION ALLOWANCES,PAYMENTS TO CARERS,REDACTED,REDACTED
07.04.2021,CHILDREN AND FAMILIES,REDACTED PERSONAL DATA,382.30,ADOPTION ALLOWANCES,PAYMENTS TO CARERS,REDACTED,REDACTED
07.04.2021,CHILDREN AND FAMILIES,REDACTED PERSONAL DATA,375.54,ADOPTION ALLOWANCES,PAYMENTS TO CARERS,REDACTED,REDACTED
07.04.2021,CHILDREN AND FAMILIES,REDACTED PERSONAL DATA,304.26,ADOPTION ALLOWANCES,PAYMENTS TO CARERS,REDACTED,REDACTED
07.04.2021,CHILDREN AND FAMILIES,REDACTED PERSONAL DATA,278.54,ADOPTION ALLOWANCES,PAYMENTS TO CARERS,REDACTED,REDACTED
07.04.2021,CHILDREN AND FAMILIES,REDACTED PERSONAL DATA,485.22,ADOPTION ALLOWANCES,PAYMENTS TO CARERS,REDACTED,REDACTED
07.04.2021,CHILDREN AND FAMILIES,REDACTED PERSONAL DATA,368.52,ADOPTION ALLOWANCES,PAYMENTS TO CARERS,REDACTED,REDACTED
07.04.2021,CHILDREN AND FAMILIES,REDACTED PERSONAL DATA,252.90,ADOPTION ALLOWANCES,PAYMENTS TO CARERS,REDACTED,REDACTED
07.04.2021,CHILDREN AND FAMILIES,REDACTED PERSONAL DATA,253.56,ADOPTION ALLOWANCES,PAYMENTS TO CARERS,REDACTED,REDACTED
07.04.2021,CHILDREN AND FAMILIES,REDACTED PERSONAL DATA,382.30,ADOPTION ALLOWANCES,PAYMENTS TO CARERS,REDACTED,REDACTED
07.04.2021,CHILDREN AND FAMILIES,REDACTED PERSONAL DATA,382.30,ADOPTION ALLOWANCES,PAYMENTS TO CARERS,REDACTED,REDACTED
07.04.2021,CHILDREN AND FAMILIES,REDACTED PERSONAL DATA,351.42,ADOPTION ALLOWANCES,PAYMENTS TO CARERS,REDACTED,REDACTED
07.04.2021,CHILDREN AND FAMILIES,REDACTED PERSONAL DATA,484.92,ADOPTION ALLOWANCES,PAYMENTS TO CARERS,REDACTED,REDACTED
07.04.2021,CHILDREN AND FAMILIES,REDACTED PERSONAL DATA,530.00,ADOPTION ALLOWANCES,PAYMENTS TO CARERS,REDACTED,REDACTED
07.04.2021,CHILDREN AND FAMILIES,REDACTED PERSONAL DATA,908.00,ADOPTION ALLOWANCES,PAYMENTS TO CARERS,REDACTED,REDACTED
07.04.2021,CHILDREN AND FAMILIES,REDACTED PERSONAL DATA,738.32,ADOPTION ALLOWANCES,PAYMENTS TO CARERS,REDACTED,REDACTED
07.04.2021,CHILDREN AND FAMILIES,REDACTED PERSONAL DATA,695.12,ADOPTION ALLOWANCES,PAYMENTS TO CARERS,REDACTED,REDACTED
07.04.2021,CHILDREN AND FAMILIES,REDACTED PERSONAL DATA,293.98,ADOPTION ALLOWANCES,PAYMENTS TO CARERS,REDACTED,REDACTED
07.04.2021,CHILDREN AND FAMILIES,REDACTED PERSONAL DATA,251.94,ADOPTION ALLOWANCES,PAYMENTS TO CARERS,REDACTED,REDACTED
07.04.2021,CHILDREN AND FAMILIES,REDACTED PERSONAL DATA,652.90,ADOPTION ALLOWANCES,PAYMENTS TO CARERS,REDACTED,REDACTED
07.04.2021,CHILDREN AND FAMILIES,REDACTED PERSONAL DATA,652.90,ADOPTION ALLOWANCES,PAYMENTS TO CARERS,REDACTED,REDACTED
07.04.2021,CHILDREN AND FAMILIES,REDACTED PERSONAL DATA,712.30,ADOPTION ALLOWANCES,PAYMENTS TO CARERS,REDACTED,REDACTED
07.04.2021,CHILDREN AND FAMILIES,REDACTED PERSONAL DATA,767.68,ADOPTION ALLOWANCES,PAYMENTS TO CARERS,REDACTED,REDACTED
07.04.2021,CHILDREN AND FAMILIES,REDACTED PERSONAL DATA,510.96,ADOPTION ALLOWANCES,PAYMENTS TO CARERS,REDACTED,REDACTED
07.04.2021,CHILDREN AND FAMILIES,REDACTED PERSONAL DATA,682.30,ADOPTION ALLOWANCES,PAYMENTS TO CARERS,REDACTED,REDACTED
07.04.2021,CHILDREN AND FAMILIES,REDACTED PERSONAL DATA,682.30,ADOPTION ALLOWANCES,PAYMENTS TO CARERS,REDACTED,REDACTED
07.04.2021,CHILDREN AND FAMILIES,REDACTED PERSONAL DATA,588.42,ADOPTION ALLOWANCES,PAYMENTS TO CARERS,REDACTED,REDACTED
07.04.2021,CHILDREN AND FAMILIES,REDACTED PERSONAL DATA,"1,053.20",ADOPTION ALLOWANCES,PAYMENTS TO CARERS,REDACTED,REDACTED
07.04.2021,CHILDREN AND FAMILIES,REDACTED PERSONAL DATA,386.00,ADOPTION ALLOWANCES,PAYMENTS TO CARERS,REDACTED,REDACTED
07.04.2021,CHILDREN AND FAMILIES,REDACTED PERSONAL DATA,618.60,ADOPTION ALLOWANCES,PAYMENTS TO CARERS,REDACTED,REDACTED
07.04.2021,CHILDREN AND FAMILIES,REDACTED PERSONAL DATA,660.00,ADOPTION ALLOWANCES,PAYMENTS TO CARERS,REDACTED,REDACTED
07.04.2021,CHILDREN AND FAMILIES,REDACTED PERSONAL DATA,660.00,ADOPTION ALLOWANCES,PAYMENTS TO CARERS,REDACTED,REDACTED
07.04.2021,CHILDREN AND FAMILIES,REDACTED PERSONAL DATA,276.10,ADOPTION ALLOWANCES,PAYMENTS TO CARERS,REDACTED,REDACTED
07.04.2021,CHILDREN AND FAMILIES,REDACTED PERSONAL DATA,676.00,ADOPTION ALLOWANCES,PAYMENTS TO CARERS,REDACTED,REDACTED
07.04.2021,CHILDREN AND FAMILIES,REDACTED PERSONAL DATA,660.00,ADOPTION ALLOWANCES,PAYMENTS TO CARERS,REDACTED,REDACTED
07.04.2021,CHILDREN AND FAMILIES,REDACTED PERSONAL DATA,268.62,ADOPTION ALLOWANCES,PAYMENTS TO CARERS,REDACTED,REDACTED
07.04.2021,CHILDREN AND FAMILIES,REDACTED PERSONAL DATA,282.86,ADOPTION ALLOWANCES,PAYMENTS TO CARERS,REDACTED,REDACTED
07.04.2021,CHILDREN AND FAMILIES,REDACTED PERSONAL DATA,435.00,ADOPTION SUPP FUND,PROFESSIONAL FEES,REDACTED,REDACTED
07.04.2021,CHILDREN AND FAMILIES,REDACTED PERSONAL DATA,490.00,ADOPTION SUPP FUND,PROFESSIONAL FEES,REDACTED,REDACTED
07.04.2021,CHILDREN AND FAMILIES,REDACTED PERSONAL DATA,585.00,ADOPTION SUPP FUND,PROFESSIONAL FEES,REDACTED,REDACTED
07.04.2021,CHILDREN AND FAMILIES,REDACTED PERSONAL DATA,300.00,FE SUPPORT,CLIENT TRANSPORT,REDACTED,REDACTED
07.04.2021,CHILDREN AND FAMILIES,REDACTED PERSONAL DATA,300.00,FE SUPPORT,CLIENT TRANSPORT,REDACTED,REDACTED
07.04.2021,CHILDREN AND FAMILIES,REDACTED PERSONAL DATA,300.00,FE SUPPORT,CLIENT TRANSPORT,REDACTED,REDACTED
07.04.2021,CHILDREN AND FAMILIES,REDACTED PERSONAL DATA,300.00,FOSTERING ALLOWANCES,ADDITIONAL PAYMENTS TO AGENCIES/CARERS,REDACTED,REDACTED
07.04.2021,CHILDREN AND FAMILIES,REDACTED PERSONAL DATA,300.00,FOSTERING ALLOWANCES,ADDITIONAL PAYMENTS TO AGENCIES/CARERS,REDACTED,REDACTED
07.04.2021,CHILDREN AND FAMILIES,REDACTED PERSONAL DATA,850.00,FOSTERING ALLOWANCES,ADDITIONAL PAYMENTS TO AGENCIES/CARERS,REDACTED,REDACTED
07.04.2021,CHILDREN AND FAMILIES,REDACTED PERSONAL DATA,756.00,FOSTERING ALLOWANCES,PAYMENTS TO CARERS,REDACTED,REDACTED
07.04.2021,CHILDREN AND FAMILIES,REDACTED PERSONAL DATA,854.00,FOSTERING ALLOWANCES,PAYMENTS TO CARERS,REDACTED,REDACTED
07.04.2021,CHILDREN AND FAMILIES,REDACTED PERSONAL DATA,946.00,FOSTERING ALLOWANCES,PAYMENTS TO CARERS,REDACTED,REDACTED
07.04.2021,CHILDREN AND FAMILIES,REDACTED PERSONAL DATA,854.00,FOSTERING ALLOWANCES,PAYMENTS TO CARERS,REDACTED,REDACTED
07.04.2021,CHILDREN AND FAMILIES,REDACTED PERSONAL DATA,"2,162.29",FOSTERING ALLOWANCES,PAYMENTS TO CARERS,REDACTED,REDACTED
07.04.2021,CHILDREN AND FAMILIES,REDACTED PERSONAL DATA,854.00,FOSTERING ALLOWANCES,PAYMENTS TO CARERS,REDACTED,REDACTED
07.04.2021,CHILDREN AND FAMILIES,REDACTED PERSONAL DATA,946.00,FOSTERING ALLOWANCES,PAYMENTS TO CARERS,REDACTED,REDACTED
07.04.2021,CHILDREN AND FAMILIES,REDACTED PERSONAL DATA,854.00,FOSTERING ALLOWANCES,PAYMENTS TO CARERS,REDACTED,REDACTED
07.04.2021,CHILDREN AND FAMILIES,REDACTED PERSONAL DATA,946.00,FOSTERING ALLOWANCES,PAYMENTS TO CARERS,REDACTED,REDACTED
07.04.2021,CHILDREN AND FAMILIES,REDACTED PERSONAL DATA,507.43,FOSTERING ALLOWANCES,PAYMENTS TO CARERS,REDACTED,REDACTED
07.04.2021,CHILDREN AND FAMILIES,REDACTED PERSONAL DATA,"2,331.43",FOSTERING ALLOWANCES,PAYMENTS TO CARERS,REDACTED,REDACTED
07.04.2021,CHILDREN AND FAMILIES,REDACTED PERSONAL DATA,854.00,FOSTERING ALLOWANCES,PAYMENTS TO CARERS,REDACTED,REDACTED
07.04.2021,CHILDREN AND FAMILIES,REDACTED PERSONAL DATA,854.00,FOSTERING ALLOWANCES,PAYMENTS TO CARERS,REDACTED,REDACTED
07.04.2021,CHILDREN AND FAMILIES,REDACTED PERSONAL DATA,888.00,FOSTERING ALLOWANCES,PAYMENTS TO CARERS,REDACTED,REDACTED
07.04.2021,CHILDREN AND FAMILIES,REDACTED PERSONAL DATA,946.00,FOSTERING ALLOWANCES,PAYMENTS TO CARERS,REDACTED,REDACTED
07.04.2021,CHILDREN AND FAMILIES,REDACTED PERSONAL DATA,712.30,FOSTERING ALLOWANCES,PAYMENTS TO CARERS,REDACTED,REDACTED
07.04.2021,CHILDREN AND FAMILIES,REDACTED PERSONAL DATA,824.00,FOSTERING ALLOWANCES,PAYMENTS TO CARERS,REDACTED,REDACTED
07.04.2021,CHILDREN AND FAMILIES,REDACTED PERSONAL DATA,756.00,FOSTERING ALLOWANCES,PAYMENTS TO CARERS,REDACTED,REDACTED
07.04.2021,CHILDREN AND FAMILIES,REDACTED PERSONAL DATA,756.00,FOSTERING ALLOWANCES,PAYMENTS TO CARERS,REDACTED,REDACTED
07.04.2021,CHILDREN AND FAMILIES,REDACTED PERSONAL DATA,854.00,FOSTERING ALLOWANCES,PAYMENTS TO CARERS,REDACTED,REDACTED
07.04.2021,CHILDREN AND FAMILIES,REDACTED PERSONAL DATA,856.00,FOSTERING ALLOWANCES,PAYMENTS TO CARERS,REDACTED,REDACTED
07.04.2021,CHILDREN AND FAMILIES,REDACTED PERSONAL DATA,"1,632.00",FOSTERING ALLOWANCES,PAYMENTS TO CARERS,REDACTED,REDACTED
07.04.2021,CHILDREN AND FAMILIES,REDACTED PERSONAL DATA,854.00,FOSTERING ALLOWANCES,PAYMENTS TO CARERS,REDACTED,REDACTED
07.04.2021,CHILDREN AND FAMILIES,REDACTED PERSONAL DATA,856.00,FOSTERING ALLOWANCES,PAYMENTS TO CARERS,REDACTED,REDACTED
07.04.2021,CHILDREN AND FAMILIES,REDACTED PERSONAL DATA,856.00,FOSTERING ALLOWANCES,PAYMENTS TO CARERS,REDACTED,REDACTED
07.04.2021,CHILDREN AND FAMILIES,REDACTED PERSONAL DATA,946.00,FOSTERING ALLOWANCES,PAYMENTS TO CARERS,REDACTED,REDACTED
07.04.2021,CHILDREN AND FAMILIES,REDACTED PERSONAL DATA,856.00,FOSTERING ALLOWANCES,PAYMENTS TO CARERS,REDACTED,REDACTED
07.04.2021,CHILDREN AND FAMILIES,REDACTED PERSONAL DATA,794.85,FOSTERING ALLOWANCES,PAYMENTS TO CARERS,REDACTED,REDACTED
07.04.2021,CHILDREN AND FAMILIES,REDACTED PERSONAL DATA,"1,632.00",FOSTERING ALLOWANCES,PAYMENTS TO CARERS,REDACTED,REDACTED
07.04.2021,CHILDREN AND FAMILIES,REDACTED PERSONAL DATA,854.00,FOSTERING ALLOWANCES,PAYMENTS TO CARERS,REDACTED,REDACTED
07.04.2021,CHILDREN AND FAMILIES,REDACTED PERSONAL DATA,396.00,FOSTERING ALLOWANCES,PAYMENTS TO CARERS,REDACTED,REDACTED
07.04.2021,CHILDREN AND FAMILIES,REDACTED PERSONAL DATA,856.00,FOSTERING ALLOWANCES,PAYMENTS TO CARERS,REDACTED,REDACTED
07.04.2021,CHILDREN AND FAMILIES,REDACTED PERSONAL DATA,946.00,FOSTERING ALLOWANCES,PAYMENTS TO CARERS,REDACTED,REDACTED
07.04.2021,CHILDREN AND FAMILIES,REDACTED PERSONAL DATA,856.00,FOSTERING ALLOWANCES,PAYMENTS TO CARERS,REDACTED,REDACTED
07.04.2021,CHILDREN AND FAMILIES,REDACTED PERSONAL DATA,"1,734.00",FOSTERING ALLOWANCES,PAYMENTS TO CARERS,REDACTED,REDACTED
07.04.2021,CHILDREN AND FAMILIES,REDACTED PERSONAL DATA,856.00,FOSTERING ALLOWANCES,PAYMENTS TO CARERS,REDACTED,REDACTED
07.04.2021,CHILDREN AND FAMILIES,REDACTED PERSONAL DATA,660.00,FOSTERING ALLOWANCES,PAYMENTS TO CARERS,REDACTED,REDACTED
07.04.2021,CHILDREN AND FAMILIES,REDACTED PERSONAL DATA,854.00,FOSTERING ALLOWANCES,PAYMENTS TO CARERS,REDACTED,REDACTED
07.04.2021,CHILDREN AND FAMILIES,REDACTED PERSONAL DATA,854.00,FOSTERING ALLOWANCES,PAYMENTS TO CARERS,REDACTED,REDACTED
07.04.2021,CHILDREN AND FAMILIES,REDACTED PERSONAL DATA,856.00,FOSTERING ALLOWANCES,PAYMENTS TO CARERS,REDACTED,REDACTED
07.04.2021,CHILDREN AND FAMILIES,REDACTED PERSONAL DATA,946.00,FOSTERING ALLOWANCES,PAYMENTS TO CARERS,REDACTED,REDACTED
07.04.2021,CHILDREN AND FAMILIES,REDACTED PERSONAL DATA,706.00,FOSTERING ALLOWANCES,PAYMENTS TO CARERS,REDACTED,REDACTED
07.04.2021,CHILDREN AND FAMILIES,REDACTED PERSONAL DATA,"1,632.00",FOSTERING ALLOWANCES,PAYMENTS TO CARERS,REDACTED,REDACTED
07.04.2021,CHILDREN AND FAMILIES,REDACTED PERSONAL DATA,"1,632.00",FOSTERING ALLOWANCES,PAYMENTS TO CARERS,REDACTED,REDACTED
07.04.2021,CHILDREN AND FAMILIES,REDACTED PERSONAL DATA,976.00,FOSTERING ALLOWANCES,PAYMENTS TO CARERS,REDACTED,REDACTED
07.04.2021,CHILDREN AND FAMILIES,REDACTED PERSONAL DATA,706.00,FOSTERING ALLOWANCES,PAYMENTS TO CARERS,REDACTED,REDACTED
07.04.2021,CHILDREN AND FAMILIES,REDACTED PERSONAL DATA,"1,166.00",FOSTERING ALLOWANCES,PAYMENTS TO CARERS,REDACTED,REDACTED
07.04.2021,CHILDREN AND FAMILIES,REDACTED PERSONAL DATA,676.00,FOSTERING ALLOWANCES,PAYMENTS TO CARERS,REDACTED,REDACTED
07.04.2021,CHILDREN AND FAMILIES,REDACTED PERSONAL DATA,824.00,FOSTERING ALLOWANCES,PAYMENTS TO CARERS,REDACTED,REDACTED
07.04.2021,CHILDREN AND FAMILIES,REDACTED PERSONAL DATA,912.00,FOSTERING ALLOWANCES,PAYMENTS TO CARERS,REDACTED,REDACTED
07.04.2021,CHILDREN AND FAMILIES,REDACTED PERSONAL DATA,-302.57,FOSTERING ALLOWANCES,PAYMENTS TO CARERS,REDACTED,REDACTED
07.04.2021,CHILDREN AND FAMILIES,REDACTED PERSONAL DATA,854.00,FOSTERING ALLOWANCES,PAYMENTS TO CARERS,REDACTED,REDACTED
07.04.2021,CHILDREN AND FAMILIES,REDACTED PERSONAL DATA,854.00,FOSTERING ALLOWANCES,PAYMENTS TO CARERS,REDACTED,REDACTED
07.04.2021,CHILDREN AND FAMILIES,REDACTED PERSONAL DATA,854.00,FOSTERING ALLOWANCES,PAYMENTS TO CARERS,REDACTED,REDACTED
07.04.2021,CHILDREN AND FAMILIES,REDACTED PERSONAL DATA,946.00,FOSTERING ALLOWANCES,PAYMENTS TO CARERS,REDACTED,REDACTED
07.04.2021,CHILDREN AND FAMILIES,REDACTED PERSONAL DATA,888.00,FOSTERING ALLOWANCES,PAYMENTS TO CARERS,REDACTED,REDACTED
07.04.2021,CHILDREN AND FAMILIES,REDACTED PERSONAL DATA,854.00,FOSTERING ALLOWANCES,PAYMENTS TO CARERS,REDACTED,REDACTED
07.04.2021,CHILDREN AND FAMILIES,REDACTED PERSONAL DATA,854.00,FOSTERING ALLOWANCES,PAYMENTS TO CARERS,REDACTED,REDACTED
07.04.2021,CHILDREN AND FAMILIES,REDACTED PERSONAL DATA,856.00,FOSTERING ALLOWANCES,PAYMENTS TO CARERS,REDACTED,REDACTED
07.04.2021,CHILDREN AND FAMILIES,REDACTED PERSONAL DATA,856.00,FOSTERING ALLOWANCES,PAYMENTS TO CARERS,REDACTED,REDACTED
07.04.2021,CHILDREN AND FAMILIES,REDACTED PERSONAL DATA,706.00,FOSTERING ALLOWANCES,PAYMENTS TO CARERS,REDACTED,REDACTED
07.04.2021,CHILDREN AND FAMILIES,REDACTED PERSONAL DATA,946.00,FOSTERING ALLOWANCES,PAYMENTS TO CARERS,REDACTED,REDACTED
07.04.2021,CHILDREN AND FAMILIES,REDACTED PERSONAL DATA,854.00,FOSTERING ALLOWANCES,PAYMENTS TO CARERS,REDACTED,REDACTED
07.04.2021,CHILDREN AND FAMILIES,REDACTED PERSONAL DATA,854.00,FOSTERING ALLOWANCES,PAYMENTS TO CARERS,REDACTED,REDACTED
07.04.2021,CHILDREN AND FAMILIES,REDACTED PERSONAL DATA,706.00,FOSTERING ALLOWANCES,PAYMENTS TO CARERS,REDACTED,REDACTED
07.04.2021,CHILDREN AND FAMILIES,REDACTED PERSONAL DATA,706.00,FOSTERING ALLOWANCES,PAYMENTS TO CARERS,REDACTED,REDACTED
07.04.2021,CHILDREN AND FAMILIES,REDACTED PERSONAL DATA,854.00,FOSTERING ALLOWANCES,PAYMENTS TO CARERS,REDACTED,REDACTED
07.04.2021,CHILDREN AND FAMILIES,REDACTED PERSONAL DATA,854.00,FOSTERING ALLOWANCES,PAYMENTS TO CARERS,REDACTED,REDACTED
07.04.2021,CHILDREN AND FAMILIES,REDACTED PERSONAL DATA,856.00,FOSTERING ALLOWANCES,PAYMENTS TO CARERS,REDACTED,REDACTED
07.04.2021,CHILDREN AND FAMILIES,REDACTED PERSONAL DATA,854.00,FOSTERING ALLOWANCES,PAYMENTS TO CARERS,REDACTED,REDACTED
07.04.2021,CHILDREN AND FAMILIES,REDACTED PERSONAL DATA,856.00,FOSTERING ALLOWANCES,PAYMENTS TO CARERS,REDACTED,REDACTED
07.04.2021,CHILDREN AND FAMILIES,REDACTED PERSONAL DATA,856.00,FOSTERING ALLOWANCES,PAYMENTS TO CARERS,REDACTED,REDACTED
07.04.2021,CHILDREN AND FAMILIES,REDACTED PERSONAL DATA,856.00,FOSTERING ALLOWANCES,PAYMENTS TO CARERS,REDACTED,REDACTED
07.04.2021,CHILDREN AND FAMILIES,REDACTED PERSONAL DATA,856.00,FOSTERING ALLOWANCES,PAYMENTS TO CARERS,REDACTED,REDACTED
07.04.2021,CHILDREN AND FAMILIES,REDACTED PERSONAL DATA,856.00,FOSTERING ALLOWANCES,PAYMENTS TO CARERS,REDACTED,REDACTED
07.04.2021,CHILDREN AND FAMILIES,REDACTED PERSONAL DATA,353.00,FOSTERING ALLOWANCES,PAYMENTS TO CARERS,REDACTED,REDACTED
07.04.2021,CHILDREN AND FAMILIES,REDACTED PERSONAL DATA,706.00,FOSTERING ALLOWANCES,PAYMENTS TO CARERS,REDACTED,REDACTED
07.04.2021,CHILDREN AND FAMILIES,REDACTED PERSONAL DATA,706.00,FOSTERING ALLOWANCES,PAYMENTS TO CARERS,REDACTED,REDACTED
07.04.2021,CHILDREN AND FAMILIES,REDACTED PERSONAL DATA,824.00,FOSTERING ALLOWANCES,PAYMENTS TO CARERS,REDACTED,REDACTED
07.04.2021,CHILDREN AND FAMILIES,REDACTED PERSONAL DATA,854.00,FOSTERING ALLOWANCES,PAYMENTS TO CARERS,REDACTED,REDACTED
07.04.2021,CHILDREN AND FAMILIES,REDACTED PERSONAL DATA,856.00,FOSTERING ALLOWANCES,PAYMENTS TO CARERS,REDACTED,REDACTED
07.04.2021,CHILDREN AND FAMILIES,REDACTED PERSONAL DATA,946.00,FOSTERING ALLOWANCES,PAYMENTS TO CARERS,REDACTED,REDACTED
07.04.2021,CHILDREN AND FAMILIES,REDACTED PERSONAL DATA,756.00,FOSTERING ALLOWANCES,PAYMENTS TO CARERS,REDACTED,REDACTED
07.04.2021,CHILDREN AND FAMILIES,REDACTED PERSONAL DATA,854.00,FOSTERING ALLOWANCES,PAYMENTS TO CARERS,REDACTED,REDACTED
07.04.2021,CHILDREN AND FAMILIES,REDACTED PERSONAL DATA,854.00,FOSTERING ALLOWANCES,PAYMENTS TO CARERS,REDACTED,REDACTED
07.04.2021,CHILDREN AND FAMILIES,REDACTED PERSONAL DATA,676.00,FOSTERING ALLOWANCES,PAYMENTS TO CARERS,REDACTED,REDACTED
07.04.2021,CHILDREN AND FAMILIES,REDACTED PERSONAL DATA,726.00,FOSTERING ALLOWANCES,PAYMENTS TO CARERS,REDACTED,REDACTED
07.04.2021,CHILDREN AND FAMILIES,REDACTED PERSONAL DATA,706.00,FOSTERING ALLOWANCES,PAYMENTS TO CARERS,REDACTED,REDACTED
07.04.2021,CHILDREN AND FAMILIES,REDACTED PERSONAL DATA,854.00,FOSTERING ALLOWANCES,PAYMENTS TO CARERS,REDACTED,REDACTED
07.04.2021,CHILDREN AND FAMILIES,REDACTED PERSONAL DATA,854.00,FOSTERING ALLOWANCES,PAYMENTS TO CARERS,REDACTED,REDACTED
07.04.2021,CHILDREN AND FAMILIES,REDACTED PERSONAL DATA,854.00,FOSTERING ALLOWANCES,PAYMENTS TO CARERS,REDACTED,REDACTED
07.04.2021,CHILDREN AND FAMILIES,REDACTED PERSONAL DATA,706.00,FOSTERING ALLOWANCES,PAYMENTS TO CARERS,REDACTED,REDACTED
07.04.2021,CHILDREN AND FAMILIES,REDACTED PERSONAL DATA,756.00,FOSTERING ALLOWANCES,PAYMENTS TO CARERS,REDACTED,REDACTED
07.04.2021,CHILDREN AND FAMILIES,REDACTED PERSONAL DATA,854.00,FOSTERING ALLOWANCES,PAYMENTS TO CARERS,REDACTED,REDACTED
07.04.2021,CHILDREN AND FAMILIES,REDACTED PERSONAL DATA,706.00,FOSTERING ALLOWANCES,PAYMENTS TO CARERS,REDACTED,REDACTED
07.04.2021,CHILDREN AND FAMILIES,REDACTED PERSONAL DATA,854.00,FOSTERING ALLOWANCES,PAYMENTS TO CARERS,REDACTED,REDACTED
07.04.2021,CHILDREN AND FAMILIES,REDACTED PERSONAL DATA,854.00,FOSTERING ALLOWANCES,PAYMENTS TO CARERS,REDACTED,REDACTED
07.04.2021,CHILDREN AND FAMILIES,REDACTED PERSONAL DATA,854.00,FOSTERING ALLOWANCES,PAYMENTS TO CARERS,REDACTED,REDACTED
07.04.2021,CHILDREN AND FAMILIES,REDACTED PERSONAL DATA,854.00,FOSTERING ALLOWANCES,PAYMENTS TO CARERS,REDACTED,REDACTED
07.04.2021,CHILDREN AND FAMILIES,REDACTED PERSONAL DATA,756.00,FOSTERING ALLOWANCES,PAYMENTS TO CARERS,REDACTED,REDACTED
07.04.2021,CHILDREN AND FAMILIES,REDACTED PERSONAL DATA,824.00,FOSTERING ALLOWANCES,PAYMENTS TO CARERS,REDACTED,REDACTED
07.04.2021,CHILDREN AND FAMILIES,REDACTED PERSONAL DATA,824.00,FOSTERING ALLOWANCES,PAYMENTS TO CARERS,REDACTED,REDACTED
07.04.2021,CHILDREN AND FAMILIES,REDACTED PERSONAL DATA,824.00,FOSTERING ALLOWANCES,PAYMENTS TO CARERS,REDACTED,REDACTED
07.04.2021,CHILDREN AND FAMILIES,REDACTED PERSONAL DATA,856.00,FOSTERING ALLOWANCES,PAYMENTS TO CARERS,REDACTED,REDACTED
07.04.2021,CHILDREN AND FAMILIES,REDACTED PERSONAL DATA,726.00,FOSTERING ALLOWANCES,PAYMENTS TO CARERS,REDACTED,REDACTED
07.04.2021,CHILDREN AND FAMILIES,REDACTED PERSONAL DATA,946.00,FOSTERING ALLOWANCES,PAYMENTS TO CARERS,REDACTED,REDACTED
07.04.2021,CHILDREN AND FAMILIES,REDACTED PERSONAL DATA,726.00,FOSTERING ALLOWANCES,PAYMENTS TO CARERS,REDACTED,REDACTED
07.04.2021,CHILDREN AND FAMILIES,REDACTED PERSONAL DATA,726.00,FOSTERING ALLOWANCES,PAYMENTS TO CARERS,REDACTED,REDACTED
07.04.2021,CHILDREN AND FAMILIES,REDACTED PERSONAL DATA,854.00,FOSTERING ALLOWANCES,PAYMENTS TO CARERS,REDACTED,REDACTED
07.04.2021,CHILDREN AND FAMILIES,REDACTED PERSONAL DATA,776.08,FOSTERING ALLOWANCES,PAYMENTS TO CARERS,REDACTED,REDACTED
07.04.2021,CHILDREN AND FAMILIES,REDACTED PERSONAL DATA,756.00,FOSTERING ALLOWANCES,PAYMENTS TO CARERS,REDACTED,REDACTED
07.04.2021,CHILDREN AND FAMILIES,REDACTED PERSONAL DATA,706.00,FOSTERING ALLOWANCES,PAYMENTS TO CARERS,REDACTED,REDACTED
07.04.2021,CHILDREN AND FAMILIES,REDACTED PERSONAL DATA,756.00,FOSTERING ALLOWANCES,PAYMENTS TO CARERS,REDACTED,REDACTED
07.04.2021,CHILDREN AND FAMILIES,REDACTED PERSONAL DATA,284.43,FOSTERING ALLOWANCES,PAYMENTS TO CARERS,REDACTED,REDACTED
07.04.2021,CHILDREN AND FAMILIES,REDACTED PERSONAL DATA,"1,632.00",FOSTERING ALLOWANCES,PAYMENTS TO CARERS,REDACTED,REDACTED
07.04.2021,CHILDREN AND FAMILIES,REDACTED PERSONAL DATA,854.00,FOSTERING ALLOWANCES,PAYMENTS TO CARERS,REDACTED,REDACTED
07.04.2021,CHILDREN AND FAMILIES,REDACTED PERSONAL DATA,856.00,FOSTERING ALLOWANCES,PAYMENTS TO CARERS,REDACTED,REDACTED
07.04.2021,CHILDREN AND FAMILIES,REDACTED PERSONAL DATA,824.00,FOSTERING ALLOWANCES,PAYMENTS TO CARERS,REDACTED,REDACTED
07.04.2021,CHILDREN AND FAMILIES,REDACTED PERSONAL DATA,854.00,FOSTERING ALLOWANCES,PAYMENTS TO CARERS,REDACTED,REDACTED
07.04.2021,CHILDREN AND FAMILIES,REDACTED PERSONAL DATA,854.00,FOSTERING ALLOWANCES,PAYMENTS TO CARERS,REDACTED,REDACTED
07.04.2021,CHILDREN AND FAMILIES,REDACTED PERSONAL DATA,856.00,FOSTERING ALLOWANCES,PAYMENTS TO CARERS,REDACTED,REDACTED
07.04.2021,CHILDREN AND FAMILIES,REDACTED PERSONAL DATA,912.00,FOSTERING ALLOWANCES,PAYMENTS TO CARERS,REDACTED,REDACTED
07.04.2021,CHILDREN AND FAMILIES,REDACTED PERSONAL DATA,824.00,FOSTERING ALLOWANCES,PAYMENTS TO CARERS,REDACTED,REDACTED
07.04.2021,CHILDREN AND FAMILIES,REDACTED PERSONAL DATA,726.00,FOSTERING ALLOWANCES,PAYMENTS TO CARERS,REDACTED,REDACTED
07.04.2021,CHILDREN AND FAMILIES,REDACTED PERSONAL DATA,912.00,FOSTERING ALLOWANCES,PAYMENTS TO CARERS,REDACTED,REDACTED
07.04.2021,CHILDREN AND FAMILIES,REDACTED PERSONAL DATA,676.00,FOSTERING ALLOWANCES,PAYMENTS TO CARERS,REDACTED,REDACTED
07.04.2021,CHILDREN AND FAMILIES,REDACTED PERSONAL DATA,912.00,FOSTERING ALLOWANCES,PAYMENTS TO CARERS,REDACTED,REDACTED
07.04.2021,CHILDREN AND FAMILIES,REDACTED PERSONAL DATA,726.00,FOSTERING ALLOWANCES,PAYMENTS TO CARERS,REDACTED,REDACTED
07.04.2021,CHILDREN AND FAMILIES,REDACTED PERSONAL DATA,676.00,FOSTERING ALLOWANCES,PAYMENTS TO CARERS,REDACTED,REDACTED
07.04.2021,CHILDREN AND FAMILIES,REDACTED PERSONAL DATA,824.00,FOSTERING ALLOWANCES,PAYMENTS TO CARERS,REDACTED,REDACTED
07.04.2021,CHILDREN AND FAMILIES,REDACTED PERSONAL DATA,912.00,FOSTERING ALLOWANCES,PAYMENTS TO CARERS,REDACTED,REDACTED
07.04.2021,CHILDREN AND FAMILIES,REDACTED PERSONAL DATA,830.00,FOSTERING ALLOWANCES,PAYMENTS TO CARERS,REDACTED,REDACTED
07.04.2021,CHILDREN AND FAMILIES,REDACTED PERSONAL DATA,912.00,FRIENDS &FAMILY FOST,PAYMENTS TO CARERS,REDACTED,REDACTED
07.04.2021,CHILDREN AND FAMILIES,REDACTED PERSONAL DATA,348.00,FRIENDS &FAMILY FOST,PAYMENTS TO CARERS,REDACTED,REDACTED
07.04.2021,CHILDREN AND FAMILIES,REDACTED PERSONAL DATA,476.08,FRIENDS &FAMILY FOST,PAYMENTS TO CARERS,REDACTED,REDACTED
07.04.2021,CHILDREN AND FAMILIES,REDACTED PERSONAL DATA,900.00,FRIENDS &FAMILY FOST,PAYMENTS TO CARERS,REDACTED,REDACTED
07.04.2021,CHILDREN AND FAMILIES,REDACTED PERSONAL DATA,824.00,FRIENDS &FAMILY FOST,PAYMENTS TO CARERS,REDACTED,REDACTED
07.04.2021,CHILDREN AND FAMILIES,REDACTED PERSONAL DATA,824.00,FRIENDS &FAMILY FOST,PAYMENTS TO CARERS,REDACTED,REDACTED
07.04.2021,CHILDREN AND FAMILIES,REDACTED PERSONAL DATA,716.00,FRIENDS &FAMILY FOST,PAYMENTS TO CARERS,REDACTED,REDACTED
07.04.2021,CHILDREN AND FAMILIES,REDACTED PERSONAL DATA,824.00,FRIENDS &FAMILY FOST,PAYMENTS TO CARERS,REDACTED,REDACTED
07.04.2021,CHILDREN AND FAMILIES,REDACTED PERSONAL DATA,824.00,FRIENDS &FAMILY FOST,PAYMENTS TO CARERS,REDACTED,REDACTED
07.04.2021,CHILDREN AND FAMILIES,REDACTED PERSONAL DATA,824.00,FRIENDS &FAMILY FOST,PAYMENTS TO CARERS,REDACTED,REDACTED
07.04.2021,CHILDREN AND FAMILIES,REDACTED PERSONAL DATA,716.00,FRIENDS &FAMILY FOST,PAYMENTS TO CARERS,REDACTED,REDACTED
07.04.2021,CHILDREN AND FAMILIES,REDACTED PERSONAL DATA,824.00,FRIENDS &FAMILY FOST,PAYMENTS TO CARERS,REDACTED,REDACTED
07.04.2021,CHILDREN AND FAMILIES,REDACTED PERSONAL DATA,854.00,FRIENDS &FAMILY FOST,PAYMENTS TO CARERS,REDACTED,REDACTED
07.04.2021,CHILDREN AND FAMILIES,REDACTED PERSONAL DATA,946.00,FRIENDS &FAMILY FOST,PAYMENTS TO CARERS,REDACTED,REDACTED
07.04.2021,CHILDREN AND FAMILIES,REDACTED PERSONAL DATA,726.00,FRIENDS &FAMILY FOST,PAYMENTS TO CARERS,REDACTED,REDACTED
07.04.2021,CHILDREN AND FAMILIES,REDACTED PERSONAL DATA,824.00,FRIENDS &FAMILY FOST,PAYMENTS TO CARERS,REDACTED,REDACTED
07.04.2021,CHILDREN AND FAMILIES,REDACTED PERSONAL DATA,394.00,FRIENDS &FAMILY FOST,PAYMENTS TO CARERS,REDACTED,REDACTED
07.04.2021,CHILDREN AND FAMILIES,REDACTED PERSONAL DATA,394.00,FRIENDS &FAMILY FOST,PAYMENTS TO CARERS,REDACTED,REDACTED
07.04.2021,CHILDREN AND FAMILIES,REDACTED PERSONAL DATA,824.00,FRIENDS &FAMILY FOST,PAYMENTS TO CARERS,REDACTED,REDACTED
07.04.2021,CHILDREN AND FAMILIES,REDACTED PERSONAL DATA,726.00,FRIENDS &FAMILY FOST,PAYMENTS TO CARERS,REDACTED,REDACTED
07.04.2021,CHILDREN AND FAMILIES,REDACTED PERSONAL DATA,824.00,FRIENDS &FAMILY FOST,PAYMENTS TO CARERS,REDACTED,REDACTED
07.04.2021,CHILDREN AND FAMILIES,REDACTED PERSONAL DATA,726.00,FRIENDS &FAMILY FOST,PAYMENTS TO CARERS,REDACTED,REDACTED
07.04.2021,CHILDREN AND FAMILIES,REDACTED PERSONAL DATA,726.00,FRIENDS &FAMILY FOST,PAYMENTS TO CARERS,REDACTED,REDACTED
07.04.2021,CHILDREN AND FAMILIES,REDACTED PERSONAL DATA,824.00,FRIENDS &FAMILY FOST,PAYMENTS TO CARERS,REDACTED,REDACTED
07.04.2021,CHILDREN AND FAMILIES,REDACTED PERSONAL DATA,666.00,FRIENDS &FAMILY FOST,PAYMENTS TO CARERS,REDACTED,REDACTED
07.04.2021,CHILDREN AND FAMILIES,REDACTED PERSONAL DATA,462.00,FRIENDS &FAMILY FOST,PAYMENTS TO CARERS,REDACTED,REDACTED
07.04.2021,CHILDREN AND FAMILIES,REDACTED PERSONAL DATA,394.00,FRIENDS &FAMILY FOST,PAYMENTS TO CARERS,REDACTED,REDACTED
07.04.2021,CHILDREN AND FAMILIES,REDACTED PERSONAL DATA,822.00,FRIENDS &FAMILY FOST,PAYMENTS TO CARERS,REDACTED,REDACTED
07.04.2021,CHILDREN AND FAMILIES,REDACTED PERSONAL DATA,824.00,FRIENDS &FAMILY FOST,PAYMENTS TO CARERS,REDACTED,REDACTED
07.04.2021,CHILDREN AND FAMILIES,REDACTED PERSONAL DATA,462.00,FRIENDS &FAMILY FOST,PAYMENTS TO CARERS,REDACTED,REDACTED
07.04.2021,CHILDREN AND FAMILIES,REDACTED PERSONAL DATA,824.00,FRIENDS &FAMILY FOST,PAYMENTS TO CARERS,REDACTED,REDACTED
07.04.2021,CHILDREN AND FAMILIES,REDACTED PERSONAL DATA,726.00,FRIENDS &FAMILY FOST,PAYMENTS TO CARERS,REDACTED,REDACTED
07.04.2021,CHILDREN AND FAMILIES,REDACTED PERSONAL DATA,824.00,FRIENDS &FAMILY FOST,PAYMENTS TO CARERS,REDACTED,REDACTED
07.04.2021,CHILDREN AND FAMILIES,REDACTED PERSONAL DATA,676.00,FRIENDS &FAMILY FOST,PAYMENTS TO CARERS,REDACTED,REDACTED
07.04.2021,CHILDREN AND FAMILIES,REDACTED PERSONAL DATA,666.00,FRIENDS &FAMILY FOST,PAYMENTS TO CARERS,REDACTED,REDACTED
07.04.2021,CHILDREN AND FAMILIES,REDACTED PERSONAL DATA,824.00,FRIENDS &FAMILY FOST,PAYMENTS TO CARERS,REDACTED,REDACTED
07.04.2021,CHILDREN AND FAMILIES,REDACTED PERSONAL DATA,676.00,FRIENDS &FAMILY FOST,PAYMENTS TO CARERS,REDACTED,REDACTED
07.04.2021,CHILDREN AND FAMILIES,REDACTED PERSONAL DATA,726.00,FRIENDS &FAMILY FOST,PAYMENTS TO CARERS,REDACTED,REDACTED
07.04.2021,CHILDREN AND FAMILIES,REDACTED PERSONAL DATA,824.00,FRIENDS &FAMILY FOST,PAYMENTS TO CARERS,REDACTED,REDACTED
07.04.2021,CHILDREN AND FAMILIES,REDACTED PERSONAL DATA,824.00,FRIENDS &FAMILY FOST,PAYMENTS TO CARERS,REDACTED,REDACTED
07.04.2021,CHILDREN AND FAMILIES,REDACTED PERSONAL DATA,394.00,FRIENDS &FAMILY FOST,PAYMENTS TO CARERS,REDACTED,REDACTED
07.04.2021,CHILDREN AND FAMILIES,REDACTED PERSONAL DATA,418.00,FRIENDS &FAMILY FOST,PAYMENTS TO CARERS,REDACTED,REDACTED
07.04.2021,CHILDREN AND FAMILIES,REDACTED PERSONAL DATA,304.00,FRIENDS &FAMILY FOST,PAYMENTS TO CARERS,REDACTED,REDACTED
07.04.2021,CHILDREN AND FAMILIES,REDACTED PERSONAL DATA,932.00,FRIENDS &FAMILY FOST,PAYMENTS TO CARERS,REDACTED,REDACTED
07.04.2021,CHILDREN AND FAMILIES,REDACTED PERSONAL DATA,676.00,FRIENDS &FAMILY FOST,PAYMENTS TO CARERS,REDACTED,REDACTED
07.04.2021,CHILDREN AND FAMILIES,REDACTED PERSONAL DATA,676.00,FRIENDS &FAMILY FOST,PAYMENTS TO CARERS,REDACTED,REDACTED
07.04.2021,CHILDREN AND FAMILIES,REDACTED PERSONAL DATA,348.00,FRIENDS &FAMILY FOST,PAYMENTS TO CARERS,REDACTED,REDACTED
07.04.2021,CHILDREN AND FAMILIES,REDACTED PERSONAL DATA,348.00,FRIENDS &FAMILY FOST,PAYMENTS TO CARERS,REDACTED,REDACTED
07.04.2021,CHILDREN AND FAMILIES,REDACTED PERSONAL DATA,342.00,FRIENDS &FAMILY FOST,PAYMENTS TO CARERS,REDACTED,REDACTED
07.04.2021,CHILDREN AND FAMILIES,REDACTED PERSONAL DATA,394.00,FRIENDS &FAMILY FOST,PAYMENTS TO CARERS,REDACTED,REDACTED
07.04.2021,CHILDREN AND FAMILIES,REDACTED PERSONAL DATA,348.00,FRIENDS &FAMILY FOST,PAYMENTS TO CARERS,REDACTED,REDACTED
07.04.2021,CHILDREN AND FAMILIES,REDACTED PERSONAL DATA,348.00,FRIENDS &FAMILY FOST,PAYMENTS TO CARERS,REDACTED,REDACTED
07.04.2021,CHILDREN AND FAMILIES,REDACTED PERSONAL DATA,348.00,FRIENDS &FAMILY FOST,PAYMENTS TO CARERS,REDACTED,REDACTED
07.04.2021,CHILDREN AND FAMILIES,REDACTED PERSONAL DATA,348.00,FRIENDS &FAMILY FOST,PAYMENTS TO CARERS,REDACTED,REDACTED
07.04.2021,CHILDREN AND FAMILIES,REDACTED PERSONAL DATA,824.00,FRIENDS &FAMILY FOST,PAYMENTS TO CARERS,REDACTED,REDACTED
07.04.2021,CHILDREN AND FAMILIES,REDACTED PERSONAL DATA,310.00,FRIENDS &FAMILY FOST,PAYMENTS TO CARERS,REDACTED,REDACTED
07.04.2021,CHILDREN AND FAMILIES,REDACTED PERSONAL DATA,394.00,FRIENDS &FAMILY FOST,PAYMENTS TO CARERS,REDACTED,REDACTED
07.04.2021,CHILDREN AND FAMILIES,REDACTED PERSONAL DATA,310.00,FRIENDS &FAMILY FOST,PAYMENTS TO CARERS,REDACTED,REDACTED
07.04.2021,CHILDREN AND FAMILIES,REDACTED PERSONAL DATA,394.00,FRIENDS &FAMILY FOST,PAYMENTS TO CARERS,REDACTED,REDACTED
07.04.2021,CHILDREN AND FAMILIES,REDACTED PERSONAL DATA,394.00,FRIENDS &FAMILY FOST,PAYMENTS TO CARERS,REDACTED,REDACTED
07.04.2021,CHILDREN AND FAMILIES,REDACTED PERSONAL DATA,500.00,LEAVING CARE GRANT,OTHER PAYMENTS FOR CLIENTS,REDACTED,REDACTED
07.04.2021,CHILDREN AND FAMILIES,REDACTED PERSONAL DATA,"2,000.00",LEAVING CARE GRANT,OTHER PAYMENTS FOR CLIENTS,REDACTED,REDACTED
07.04.2021,CHILDREN AND FAMILIES,REDACTED PERSONAL DATA,375.00,P & R CARE TEAM,OTHER PAYMENTS FOR CLIENTS,REDACTED,REDACTED
07.04.2021,CHILDREN AND FAMILIES,REDACTED PERSONAL DATA,400.00,P & R CARE TEAM,OTHER PAYMENTS FOR CLIENTS,REDACTED,REDACTED
07.04.2021,CHILDREN AND FAMILIES,REDACTED PERSONAL DATA,400.00,SEMI-IND CARELEAVERS,OTHER PAYMENTS FOR CLIENTS,REDACTED,REDACTED
07.04.2021,CHILDREN AND FAMILIES,REDACTED PERSONAL DATA,266.00,SEMI-IND CARELEAVERS,OTHER PAYMENTS FOR CLIENTS,REDACTED,REDACTED
07.04.2021,CHILDREN AND FAMILIES,REDACTED PERSONAL DATA,388.04,SPECIAL GUARDIANSHIP,PAYMENTS TO CARERS,REDACTED,REDACTED
07.04.2021,CHILDREN AND FAMILIES,REDACTED PERSONAL DATA,342.45,SPECIAL GUARDIANSHIP,PAYMENTS TO CARERS,REDACTED,REDACTED
07.04.2021,CHILDREN AND FAMILIES,REDACTED PERSONAL DATA,389.34,SPECIAL GUARDIANSHIP,PAYMENTS TO CARERS,REDACTED,REDACTED
07.04.2021,CHILDREN AND FAMILIES,REDACTED PERSONAL DATA,356.15,SPECIAL GUARDIANSHIP,PAYMENTS TO CARERS,REDACTED,REDACTED
07.04.2021,CHILDREN AND FAMILIES,REDACTED PERSONAL DATA,403.04,SPECIAL GUARDIANSHIP,PAYMENTS TO CARERS,REDACTED,REDACTED
07.04.2021,CHILDREN AND FAMILIES,REDACTED PERSONAL DATA,525.00,SPECIAL GUARDIANSHIP,PAYMENTS TO CARERS,REDACTED,REDACTED
07.04.2021,CHILDREN AND FAMILIES,REDACTED PERSONAL DATA,525.00,SPECIAL GUARDIANSHIP,PAYMENTS TO CARERS,REDACTED,REDACTED
07.04.2021,CHILDREN AND FAMILIES,REDACTED PERSONAL DATA,341.15,SPECIAL GUARDIANSHIP,PAYMENTS TO CARERS,REDACTED,REDACTED
07.04.2021,CHILDREN AND FAMILIES,REDACTED PERSONAL DATA,535.62,SPECIAL GUARDIANSHIP,PAYMENTS TO CARERS,REDACTED,REDACTED
07.04.2021,CHILDREN AND FAMILIES,REDACTED PERSONAL DATA,500.00,STAYPUT- FOST CARERS,PAYMENTS TO CARERS,REDACTED,REDACTED
07.04.2021,CHILDREN AND FAMILIES,REDACTED PERSONAL DATA,500.00,STAYPUT- FOST CARERS,PAYMENTS TO CARERS,REDACTED,REDACTED
07.04.2021,CHILDREN AND FAMILIES,REDACTED PERSONAL DATA,500.00,STAYPUT- FOST CARERS,PAYMENTS TO CARERS,REDACTED,REDACTED
07.04.2021,CHILDREN AND FAMILIES,REDACTED PERSONAL DATA,500.00,STAYPUT- FOST CARERS,PAYMENTS TO CARERS,REDACTED,REDACTED
07.04.2021,CHILDREN AND FAMILIES,REDACTED PERSONAL DATA,500.00,STAYPUT- FOST CARERS,PAYMENTS TO CARERS,REDACTED,REDACTED
07.04.2021,CHILDREN AND FAMILIES,REDACTED PERSONAL DATA,500.00,STAYPUT- FOST CARERS,PAYMENTS TO CARERS,REDACTED,REDACTED
07.04.2021,CHILDREN AND FAMILIES,REDACTED PERSONAL DATA,500.00,STAYPUT- FOST CARERS,PAYMENTS TO CARERS,REDACTED,REDACTED
07.04.2021,CHILDREN AND FAMILIES,REDACTED PERSONAL DATA,500.00,STAYPUT- FOST CARERS,PAYMENTS TO CARERS,REDACTED,REDACTED
07.04.2021,CHILDREN AND FAMILIES,REDACTED PERSONAL DATA,500.00,STAYPUT- FOST CARERS,PAYMENTS TO CARERS,REDACTED,REDACTED
07.04.2021,CHILDREN AND FAMILIES,REDACTED PERSONAL DATA,500.00,STAYPUT- FOST CARERS,PAYMENTS TO CARERS,REDACTED,REDACTED
07.04.2021,CHILDREN AND FAMILIES,REDACTED PERSONAL DATA,500.00,STAYPUT- FOST CARERS,PAYMENTS TO CARERS,REDACTED,REDACTED
07.04.2021,CHILDREN AND FAMILIES,REDACTED PERSONAL DATA,500.00,STAYPUT- FOST CARERS,PAYMENTS TO CARERS,REDACTED,REDACTED
07.04.2021,CHILDREN AND FAMILIES,REDACTED PERSONAL DATA,500.00,STAYPUT- FOST CARERS,PAYMENTS TO CARERS,REDACTED,REDACTED
07.04.2021,CHILDREN AND FAMILIES,REDACTED PERSONAL DATA,500.00,STAYPUT- FOST CARERS,PAYMENTS TO CARERS,REDACTED,REDACTED
07.04.2021,CHILDREN AND FAMILIES,REDACTED PERSONAL DATA,500.00,STAYPUT- FOST CARERS,PAYMENTS TO CARERS,REDACTED,REDACTED
07.04.2021,CHILDREN AND FAMILIES,REDACTED PERSONAL DATA,700.00,STAYPUT- FOST CARERS,PAYMENTS TO CARERS,REDACTED,REDACTED
07.04.2021,CHILDREN AND FAMILIES,REDACTED PERSONAL DATA,500.00,STAYPUT- FOST CARERS,PAYMENTS TO CARERS,REDACTED,REDACTED
07.04.2021,CHILDREN AND FAMILIES,REDACTED PERSONAL DATA,500.00,STAYPUT- FOST CARERS,PAYMENTS TO CARERS,REDACTED,REDACTED
07.04.2021,CHILDREN AND FAMILIES,REDACTED PERSONAL DATA,500.00,STAYPUT- FOST CARERS,PAYMENTS TO CARERS,REDACTED,REDACTED
07.04.2021,CHILDREN AND FAMILIES,REDACTED PERSONAL DATA,852.00,STAYPUT- FOST CARERS,PAYMENTS TO CARERS,REDACTED,REDACTED
07.04.2021,CHILDREN AND FAMILIES,REDACTED PERSONAL DATA,500.00,STAYPUT- FOST CARERS,PAYMENTS TO CARERS,REDACTED,REDACTED
07.04.2021,CHILDREN AND FAMILIES,REDACTED PERSONAL DATA,500.00,STAYPUT- FOST CARERS,PAYMENTS TO CARERS,REDACTED,REDACTED
07.04.2021,CHILDREN AND FAMILIES,REDACTED PERSONAL DATA,500.00,STAYPUT- FOST CARERS,PAYMENTS TO CARERS,REDACTED,REDACTED
07.04.2021,CHILDREN AND FAMILIES,REDACTED PERSONAL DATA,500.00,STAYPUT- FOST CARERS,PAYMENTS TO CARERS,REDACTED,REDACTED
07.04.2021,CHILDREN AND FAMILIES,REDACTED PERSONAL DATA,500.00,STAYPUT- FOST CARERS,PAYMENTS TO CARERS,REDACTED,REDACTED
07.04.2021,CHILDREN AND FAMILIES,REDACTED PERSONAL DATA,265.40,STAYPUT- FOST CARERS,PAYMENTS TO CARERS,REDACTED,REDACTED
07.04.2021,CHILDREN AND FAMILIES,REDACTED PERSONAL DATA,500.00,STAYPUT- FOST CARERS,PAYMENTS TO CARERS,REDACTED,REDACTED
07.04.2021,CHILDREN AND FAMILIES,REDACTED PERSONAL DATA,500.00,STAYPUT- FOST CARERS,PAYMENTS TO CARERS,REDACTED,REDACTED
07.04.2021,CHILDREN AND FAMILIES,REDACTED PERSONAL DATA,832.00,STAYPUT- FOST CARERS,PAYMENTS TO CARERS,REDACTED,REDACTED
07.04.2021,CHILDREN AND FAMILIES,REDACTED PERSONAL DATA,784.00,STAYPUT- FOST CARERS,PAYMENTS TO CARERS,REDACTED,REDACTED
07.04.2021,CHILDREN AND FAMILIES,REDACTED PERSONAL DATA,500.00,STAYPUT- FOST CARERS,PAYMENTS TO CARERS,REDACTED,REDACTED
07.04.2021,CHILDREN AND FAMILIES,REDACTED PERSONAL DATA,500.00,STAYPUT- FOST CARERS,PAYMENTS TO CARERS,REDACTED,REDACTED
07.04.2021,CHILDREN AND FAMILIES,REDACTED PERSONAL DATA,558.00,STAYPUT- FOST CARERS,PAYMENTS TO CARERS,REDACTED,REDACTED
07.04.2021,CHILDREN AND FAMILIES,REDACTED PERSONAL DATA,500.00,STAYPUT- FOST CARERS,PAYMENTS TO CARERS,REDACTED,REDACTED
07.04.2021,CHILDREN AND FAMILIES,REDACTED PERSONAL DATA,700.00,STAYPUT- FOST CARERS,PAYMENTS TO CARERS,REDACTED,REDACTED
07.04.2021,CHILDREN AND FAMILIES,REDACTED PERSONAL DATA,"5,228.57",STAYPUT- FOST CARERS,PAYMENTS TO CARERS,REDACTED,REDACTED
07.04.2021,CHILDREN AND FAMILIES,CARE O LINE,"1,058.75",TEAM B,OTHER PAYMENTS FOR CLIENTS,5902464356,11241743
07.04.2021,CHILDREN AND FAMILIES,CARE O LINE,"1,540.00",TEAM B,OTHER PAYMENTS FOR CLIENTS,5902464373,11241743
07.04.2021,CHILDREN AND FAMILIES,CARE O LINE,"2,529.04",TEAM B,OTHER PAYMENTS FOR CLIENTS,5902464374,11241743
07.04.2021,CHILDREN AND FAMILIES,CARE O LINE,"3,651.86",TEAM B,OTHER PAYMENTS FOR CLIENTS,5902464369,11241743
07.04.2021,CHILDREN AND FAMILIES,CARE O LINE,"3,958.40",TEAM B,OTHER PAYMENTS FOR CLIENTS,5902464362,11241743
07.04.2021,CHILDREN AND FAMILIES,CARE O LINE,"3,958.40",TEAM B,OTHER PAYMENTS FOR CLIENTS,5902464357,11241743
07.04.2021,CHILDREN AND FAMILIES,CARE O LINE,"4,040.90",TEAM B,OTHER PAYMENTS FOR CLIENTS,5902464361,11241743
07.04.2021,CHILDREN AND FAMILIES,CARE O LINE,"4,151.54",TEAM B,OTHER PAYMENTS FOR CLIENTS,5902464378,11241743
07.04.2021,CHILDREN AND FAMILIES,CARE O LINE,"4,160.61",TEAM B,OTHER PAYMENTS FOR CLIENTS,5902464365,11241743
07.04.2021,CHILDREN AND FAMILIES,CARE O LINE,"4,842.50",TEAM B,OTHER PAYMENTS FOR CLIENTS,5902464375,11241743
07.04.2021,CHILDREN AND FAMILIES,CARE O LINE,"5,457.50",TEAM B,OTHER PAYMENTS FOR CLIENTS,5902464379,11241743
07.04.2021,CHILDREN AND FAMILIES,CARE O LINE,"5,705.00",TEAM B,OTHER PAYMENTS FOR CLIENTS,5902464367,11241743
07.04.2021,CHILDREN AND FAMILIES,DOBBIN & SULLIVAN LTD,"5,616.44",THE NEST 255 RYELANE,RENTS,2103242846,1000084055
07.04.2021,CHILDREN AND FAMILIES,DOBBIN & SULLIVAN LTD,"12,500.00",THE NEST 255 RYELANE,RENTS,2103242851,1000084055
07.04.2021,CHILDREN AND FAMILIES,DOBBIN & SULLIVAN LTD,"12,500.00",THE NEST 255 RYELANE,RENTS,2103242849,1000084055
07.04.2021,CHILDREN AND FAMILIES,DOBBIN & SULLIVAN LTD,"12,500.00",THE NEST 255 RYELANE,RENTS,2103242848,1000084055
07.04.2021,CHILDREN AND FAMILIES,DOBBIN & SULLIVAN LTD,"12,500.00",THE NEST 255 RYELANE,RENTS,2103242847,1000084055
07.04.2021,CHILDREN AND FAMILIES,REDACTED PERSONAL DATA,270.00,UASC CARELEAVERS,OTHER PAYMENTS FOR CLIENTS,REDACTED,REDACTED
07.04.2021,COMMUNITIES,LONDON CARE LTD,"1,105.47",NO RECOURSE TO PUBLIC FUNDS,HOMECARE - C&V,2103243590,1000003398
07.04.2021,COMMUNITIES,LONDON CARE LTD,"1,124.43",NO RECOURSE TO PUBLIC FUNDS,HOMECARE - C&V,2103243588,1000003398
07.04.2021,CUSTOMER EXPERIENCE HGF,J&J ABC LTD,"2,796.12",HOMELESS PROJECTS,GRANTS,5902464377,1000086516
07.04.2021,CUSTOMER EXPERIENCE HGF,LEASE FOR LIFE HOUSING LTD,"1,276.52",HOMELESS PROJECTS,GRANTS,5902464296,1000086523
07.04.2021,CUSTOMER EXPERIENCE HGF,DAVENPORT VENTURES LTD T/A DREYTONS,"2,381.94",HOMELESS PROJECTS,GRANTS,5902464308,1000086524
07.04.2021,CUSTOMER EXPERIENCE HGF,URVE OPIK,337.00,HOUSING OPTIONS,PROFESSIONAL FEES,5902464372,1000084778
07.04.2021,CUSTOMER EXPERIENCE HGF,URVE OPIK,450.00,HOUSING OPTIONS,PROFESSIONAL FEES,5902464366,1000084778
07.04.2021,CUSTOMER EXPERIENCE HGF,URVE OPIK,450.00,HOUSING OPTIONS,PROFESSIONAL FEES,5902464354,1000084778
07.04.2021,CUSTOMER EXPERIENCE HGF,PROPERTYPLACEBOOK LTD,"53,179.00",NIGHTLY TA (NSC),EXTERNAL AGENCIES AND BODIES,5902464380,1000077817
07.04.2021,DSG,DARRICK WOOD SCHOOL,"1,200.00",VIRTUAL SCHOOL PP,SCHOOLS CAPITATION,5902464451,1000073293
07.04.2021,EDUCATION,PYLON DESIGN CONSULTANTS LTD,"2,985.00",SCHOOLS HR TRADED SERVICES,PROFESSIONAL FEES,5902464311,1000040083
07.04.2021,ENVIRONMENT AND LEISURE,CJS PLANTS,548.62,CAPITAL PS (LEISURE),CONST'N MAIN CONTRACT - NON CERTIFICATED,5902464295,1000025370
07.04.2021,ENVIRONMENT AND LEISURE,WHATEVER DESIGN LTD,480.00,COVID-19 TEST & TRACE SUPPORT GRANT,MARKETING & PUBLICITY SERVICES,5902464430,1000036500
07.04.2021,ENVIRONMENT DIRECTORATE,VOLKSWAGEN FINANCIAL SERVICES (UK),-767.96,CAR LEASING CTRL A/C,VEHICLE LEASING CHARGES,5902464358,1000079245
07.04.2021,ENVIRONMENT DIRECTORATE,VOLKSWAGEN FINANCIAL SERVICES (UK),-755.64,CAR LEASING CTRL A/C,VEHICLE LEASING CHARGES,5902463620,1000079245
07.04.2021,ENVIRONMENT DIRECTORATE,VOLKSWAGEN FINANCIAL SERVICES (UK),-622.02,CAR LEASING CTRL A/C,VEHICLE LEASING CHARGES,5902463692,1000079245
07.04.2021,ENVIRONMENT DIRECTORATE,VOLKSWAGEN FINANCIAL SERVICES (UK),-400.12,CAR LEASING CTRL A/C,VEHICLE LEASING CHARGES,5902463661,1000079245
07.04.2021,ENVIRONMENT DIRECTORATE,VOLKSWAGEN FINANCIAL SERVICES (UK),-360.75,CAR LEASING CTRL A/C,VEHICLE LEASING CHARGES,5902463639,1000079245
07.04.2021,ENVIRONMENT DIRECTORATE,VOLKSWAGEN FINANCIAL SERVICES (UK),-338.96,CAR LEASING CTRL A/C,VEHICLE LEASING CHARGES,5902464364,1000079245
07.04.2021,ENVIRONMENT DIRECTORATE,VOLKSWAGEN FINANCIAL SERVICES (UK),833.55,CAR LEASING CTRL A/C,VEHICLE LEASING CHARGES,5902464349,1000079245
07.04.2021,ENVIRONMENT DIRECTORATE,PACE ACCIDENT REPAIRS CENTRE LTD,380.00,COMMERCIAL VEH CTRL A/C,HIRED VEHICLES,5902464421,1000069899
07.04.2021,ENVIRONMENT DIRECTORATE,PACE ACCIDENT REPAIRS CENTRE LTD,380.00,COMMERCIAL VEH CTRL A/C,HIRED VEHICLES,5902464417,1000069899
07.04.2021,ENVIRONMENT DIRECTORATE,PACE ACCIDENT REPAIRS CENTRE LTD,380.00,COMMERCIAL VEH CTRL A/C,HIRED VEHICLES,5902464415,1000069899
07.04.2021,ENVIRONMENT DIRECTORATE,CLOSE BROTHERS VEHICLE HIRE LTD,331.20,COMMERCIAL VEH CTRL A/C,HIRED VEHICLES,5902464351,1000074394
07.04.2021,ENVIRONMENT DIRECTORATE,LEEDS COMMERCIAL LIMITED T/A LC VEHICLE HIRE,340.00,COMMERCIAL VEH CTRL A/C,HIRED VEHICLES,5902464347,1000082730
07.04.2021,ENVIRONMENT DIRECTORATE,AUTOMOTIVE LEASING,753.00,FLEET INSURANCE WORKS,TRANSPORT INSURANCE COSTS,5902464370,11014756
07.04.2021,ENVIRONMENT DIRECTORATE,LONDON SOUTH BANK UNIVERSITY,"4,625.00",HIGHWAY MAINTENANCE OVERHEADS,TRAINING,5902464278,1000051012
07.04.2021,ENVIRONMENT DIRECTORATE,CADENCE INNOVA LTD.,"24,130.00",RESIDENTIAL SERVICES,EXTERNAL AGENCIES AND BODIES,5902464310,1000085771
07.04.2021,ENVIRONMENT DIRECTORATE,CALM MEDIATION,350.00,SASBU,CONSULTANTS SERVICES,5902464307,1000086031
07.04.2021,ENVIRONMENT DIRECTORATE,CALM MEDIATION,"1,750.00",SASBU,CONSULTANTS SERVICES,5902464307,1000086031
07.04.2021,ENVIRONMENT DIRECTORATE,STREET TREE CARE LTD,"21,500.00",SECTION 278 & 38,HIGHWAYS TERM CONTRACT,5902464403,1000055901
07.04.2021,ENVIRONMENT DIRECTORATE,SOUTHWARK NEWSPAPER LTD,360.00,STREET WORKS OVERHEADS,MARKETING & PUBLICITY SERVICES,5902464402,1556957
07.04.2021,F & C S EXCLUDING CORPORATE BUDGETS,REDACTED PERSONAL DATA,500.00,SESS,OTHER PAYMENTS FOR CLIENTS,REDACTED,REDACTED
07.04.2021,F & C S EXCLUDING CORPORATE BUDGETS,REDACTED PERSONAL DATA,500.00,SESS,OTHER PAYMENTS FOR CLIENTS,REDACTED,REDACTED
07.04.2021,HOUSING GENERAL FUND,WF EDUCATION GROUP LIMITED,530.00,CAPITAL PS (REGEN),ICT ACQUISITION,5902464449,1000086286
07.04.2021,HOUSING HRA,CALFORD SEADEN LLP,"2,352.00",CAPITAL PS (HRA),CONSTRUCTION FEES  - EXTERNAL,5902464263,1061592
07.04.2021,HOUSING HRA,CARTER JONAS LLP,"4,250.00",CAPITAL PS (HRA),LAND & BUILDINGS ACQUISITION FEES,5902464309,1000073124
07.04.2021,HOUSING HRA,PARIS SMITH LLP,519.60,CAPITAL PS (HRA),LAND & BUILDINGS ACQUISITION FEES,2103243737,1000008059
07.04.2021,LEISURE DIRECTORATE,CHUBB FIRE & SECURITY LTD,378.27,SDM BUDGET,OTHER R&M,5902464337,11166155
07.04.2021,LEISURE DIRECTORATE,CHUBB FIRE & SECURITY LTD,"1,281.00",SDM BUDGET,OTHER R&M,5902464294,11166155
07.04.2021,LEISURE DIRECTORATE,REGENT OFFICE CARE LTD,898.64,SDM BUDGET,PREMISES CLEANING,5902464280,1000063340
07.04.2021,LEISURE DIRECTORATE,HAVENSTAR MMS LTD,"4,337.17",SDM BUDGET,SOFTWARE,5902464391,1000011436
07.04.2021,PLANNING AND TRANSPORT,SOUTHWARK NEWSPAPER LTD,504.00,DEVELOPMENT CONTROL ADMINSTRATION,MARKETING & PUBLICITY SERVICES,5902464454,1556957
07.04.2021,PUBLIC HEALTH,TRINITY IN CAMBERWELL,"2,640.00",PLACE & HEALTH IMPROVEMENT,EXTERNAL AGENCIES AND BODIES,5902464385,1000071860
07.04.2021,REGENERATION,ALI EKBER BULUT,"1,750.00",CPHA  MANAGED PROPERTIES,RENTS,2103242845,1000080799
07.04.2021,SBS OPERATIONS,PEARSON GLAZING LIMITED,325.00,SBS COMMUNAL REPAIRS,MATERIALS,5902464330,1891977
07.04.2021,SBS OPERATIONS,HOWDENS JOINERY CO,286.72,SBS DISREPAIR,MATERIALS,5902464345,1000027491
07.04.2021,SBS OPERATIONS,LAKEDALE POWER TOOLS,439.00,SBS LEAKS FROM ABOVE,MATERIALS,5902464326,1015368
07.04.2021,SBS SUPPORT,T4 INTELLIGENT INFRASTRUCTURE,"6,953.63",SBS - HOLDING ACCOUNT,OTHER CONTRACTORS,2103242841,3000001985
07.04.2021,SBS SUPPORT,LAKEDALE POWER TOOLS,315.00,STORES / LOGISTICS,EQUIPMENT PURCHASE & REPAIR,5902464327,1015368
07.04.2021,SOUTHWARK BUILDING SERVICES,"BROWNING, JONES & MORRIS LTD",375.00,STORES/LOGISTICS,CREDITORS -GR/IR CLEARING ACCOUNT,5902464360,1027429
07.04.2021,SOUTHWARK BUILDING SERVICES,"BROWNING, JONES & MORRIS LTD",478.80,STORES/LOGISTICS,CREDITORS -GR/IR CLEARING ACCOUNT,5902464360,1027429
07.04.2021,SOUTHWARK BUILDING SERVICES,"BROWNING, JONES & MORRIS LTD",899.40,STORES/LOGISTICS,CREDITORS -GR/IR CLEARING ACCOUNT,5902464360,1027429
07.04.2021,SOUTHWARK BUILDING SERVICES,MARTIN VITERA LTD,303.20,STORES/LOGISTICS,CREDITORS -GR/IR CLEARING ACCOUNT,5902464340,1560597
07.04.2021,SOUTHWARK BUILDING SERVICES,AKW MEDI-CARE LTD,513.00,STORES/LOGISTICS,CREDITORS -GR/IR CLEARING ACCOUNT,5902464332,1000047103
08.04.2021,ADULT SOCIAL CARE,HOUSE OF SERENITY FUNERAL SERVICES,"5,560.00",APPOINTEESHIPS,OTHER PAYMENTS FOR CLIENTS,2103243926,1000086544
08.04.2021,ADULT SOCIAL CARE,THE CAMDEN SOCIETY (SOCIAL CARE),376.80,LD LTS 18-64,DAYCARE,2103243777,1000036369
08.04.2021,ADULT SOCIAL CARE,THE CAMDEN SOCIETY (SOCIAL CARE),384.00,LD LTS 18-64,DAYCARE,2103243853,1000036369
08.04.2021,ADULT SOCIAL CARE,THE CAMDEN SOCIETY (SOCIAL CARE),480.00,LD LTS 18-64,DAYCARE,2103243809,1000036369
08.04.2021,ADULT SOCIAL CARE,THE CAMDEN SOCIETY (SOCIAL CARE),480.00,LD LTS 18-64,DAYCARE,2103243791,1000036369
08.04.2021,ADULT SOCIAL CARE,THE CAMDEN SOCIETY (SOCIAL CARE),480.00,LD LTS 18-64,DAYCARE,2103243785,1000036369
08.04.2021,ADULT SOCIAL CARE,THE CAMDEN SOCIETY (SOCIAL CARE),500.00,LD LTS 18-64,DAYCARE,2103243851,1000036369
08.04.2021,ADULT SOCIAL CARE,THE CAMDEN SOCIETY (SOCIAL CARE),500.00,LD LTS 18-64,DAYCARE,2103243779,1000036369
08.04.2021,ADULT SOCIAL CARE,THE CAMDEN SOCIETY (SOCIAL CARE),594.00,LD LTS 18-64,DAYCARE,2103243841,1000036369
08.04.2021,ADULT SOCIAL CARE,THE CAMDEN SOCIETY (SOCIAL CARE),599.36,LD LTS 18-64,DAYCARE,2103243839,1000036369
08.04.2021,ADULT SOCIAL CARE,THE CAMDEN SOCIETY (SOCIAL CARE),609.60,LD LTS 18-64,DAYCARE,2103243805,1000036369
08.04.2021,ADULT SOCIAL CARE,THE CAMDEN SOCIETY (SOCIAL CARE),612.00,LD LTS 18-64,DAYCARE,2103243789,1000036369
08.04.2021,ADULT SOCIAL CARE,THE CAMDEN SOCIETY (SOCIAL CARE),674.16,LD LTS 18-64,DAYCARE,2103243845,1000036369
08.04.2021,ADULT SOCIAL CARE,THE CAMDEN SOCIETY (SOCIAL CARE),704.00,LD LTS 18-64,DAYCARE,2103243849,1000036369
08.04.2021,ADULT SOCIAL CARE,THE CAMDEN SOCIETY (SOCIAL CARE),704.00,LD LTS 18-64,DAYCARE,2103243833,1000036369
08.04.2021,ADULT SOCIAL CARE,THE CAMDEN SOCIETY (SOCIAL CARE),704.00,LD LTS 18-64,DAYCARE,2103243821,1000036369
08.04.2021,ADULT SOCIAL CARE,THE CAMDEN SOCIETY (SOCIAL CARE),704.00,LD LTS 18-64,DAYCARE,2103243787,1000036369
08.04.2021,ADULT SOCIAL CARE,THE CAMDEN SOCIETY (SOCIAL CARE),705.60,LD LTS 18-64,DAYCARE,2103243843,1000036369
08.04.2021,ADULT SOCIAL CARE,THE CAMDEN SOCIETY (SOCIAL CARE),705.60,LD LTS 18-64,DAYCARE,2103243807,1000036369
08.04.2021,ADULT SOCIAL CARE,THE CAMDEN SOCIETY (SOCIAL CARE),705.60,LD LTS 18-64,DAYCARE,2103243781,1000036369
08.04.2021,ADULT SOCIAL CARE,THE CAMDEN SOCIETY (SOCIAL CARE),903.60,LD LTS 18-64,DAYCARE,2103243803,1000036369
08.04.2021,ADULT SOCIAL CARE,THE CAMDEN SOCIETY (SOCIAL CARE),960.00,LD LTS 18-64,DAYCARE,2103243863,1000036369
08.04.2021,ADULT SOCIAL CARE,THE CAMDEN SOCIETY (SOCIAL CARE),960.00,LD LTS 18-64,DAYCARE,2103243773,1000036369
08.04.2021,ADULT SOCIAL CARE,THE CAMDEN SOCIETY (SOCIAL CARE),968.00,LD LTS 18-64,DAYCARE,2103243771,1000036369
08.04.2021,ADULT SOCIAL CARE,THE CAMDEN SOCIETY (SOCIAL CARE),988.00,LD LTS 18-64,DAYCARE,2103243827,1000036369
08.04.2021,ADULT SOCIAL CARE,THE CAMDEN SOCIETY (SOCIAL CARE),"1,056.00",LD LTS 18-64,DAYCARE,2103243861,1000036369
08.04.2021,ADULT SOCIAL CARE,THE CAMDEN SOCIETY (SOCIAL CARE),"1,056.00",LD LTS 18-64,DAYCARE,2103243857,1000036369
08.04.2021,ADULT SOCIAL CARE,THE CAMDEN SOCIETY (SOCIAL CARE),"1,056.00",LD LTS 18-64,DAYCARE,2103243837,1000036369
08.04.2021,ADULT SOCIAL CARE,THE CAMDEN SOCIETY (SOCIAL CARE),"1,200.00",LD LTS 18-64,DAYCARE,2103243793,1000036369
08.04.2021,ADULT SOCIAL CARE,THE CAMDEN SOCIETY (SOCIAL CARE),"1,408.00",LD LTS 18-64,DAYCARE,2103243829,1000036369
08.04.2021,ADULT SOCIAL CARE,THE CAMDEN SOCIETY (SOCIAL CARE),"1,408.00",LD LTS 18-64,DAYCARE,2103243823,1000036369
08.04.2021,ADULT SOCIAL CARE,THE CAMDEN SOCIETY (SOCIAL CARE),"1,451.52",LD LTS 18-64,DAYCARE,2103243775,1000036369
08.04.2021,ADULT SOCIAL CARE,THE CAMDEN SOCIETY (SOCIAL CARE),"1,500.00",LD LTS 18-64,DAYCARE,2103243811,1000036369
08.04.2021,ADULT SOCIAL CARE,THE CAMDEN SOCIETY (SOCIAL CARE),"1,536.00",LD LTS 18-64,DAYCARE,2103243797,1000036369
08.04.2021,ADULT SOCIAL CARE,THE CAMDEN SOCIETY (SOCIAL CARE),"1,760.00",LD LTS 18-64,DAYCARE,2103243859,1000036369
08.04.2021,ADULT SOCIAL CARE,THE CAMDEN SOCIETY (SOCIAL CARE),"1,760.00",LD LTS 18-64,DAYCARE,2103243795,1000036369
08.04.2021,ADULT SOCIAL CARE,THE CAMDEN SOCIETY (SOCIAL CARE),"1,824.40",LD LTS 18-64,DAYCARE,2103243819,1000036369
08.04.2021,ADULT SOCIAL CARE,THE CAMDEN SOCIETY (SOCIAL CARE),"1,848.00",LD LTS 18-64,DAYCARE,2103243835,1000036369
08.04.2021,ADULT SOCIAL CARE,THE CAMDEN SOCIETY (SOCIAL CARE),"2,000.00",LD LTS 18-64,DAYCARE,2103243801,1000036369
08.04.2021,ADULT SOCIAL CARE,THE CAMDEN SOCIETY (SOCIAL CARE),"2,020.00",LD LTS 18-64,DAYCARE,2103243817,1000036369
08.04.2021,ADULT SOCIAL CARE,THE CAMDEN SOCIETY (SOCIAL CARE),"2,160.00",LD LTS 18-64,DAYCARE,2103243855,1000036369
08.04.2021,ADULT SOCIAL CARE,THE CAMDEN SOCIETY (SOCIAL CARE),"2,448.00",LD LTS 18-64,DAYCARE,2103243813,1000036369
08.04.2021,ADULT SOCIAL CARE,THE CAMDEN SOCIETY (SOCIAL CARE),"3,160.00",LD LTS 18-64,DAYCARE,2103243783,1000036369
08.04.2021,ADULT SOCIAL CARE,THE CAMDEN SOCIETY (SOCIAL CARE),"3,534.00",LD LTS 18-64,DAYCARE,2103243825,1000036369
08.04.2021,ADULT SOCIAL CARE,REMARK LTD,288.00,LD LTS 18-64,SUPPORTED LIVING,2103243758,1000081741
08.04.2021,ADULT SOCIAL CARE,REMARK LTD,920.00,LD LTS 18-64,SUPPORTED LIVING,2103243753,1000081741
08.04.2021,ADULT SOCIAL CARE,BUDDI LTD,360.00,MEM LTS 65+,EQUIPMENT PURCHASE & REPAIR,2103243763,1000067243
08.04.2021,ADULT SOCIAL CARE,THE CAMDEN SOCIETY (SOCIAL CARE),705.60,PHY LTS 18-64,DAYCARE,2103243847,1000036369
08.04.2021,ADULT SOCIAL CARE,LONDON CARE LTD,"3,374.15",PHY LTS 18-64,HOMECARE - C&V,2103243865,1000003398
08.04.2021,ADULT SOCIAL CARE,REMARK LTD,920.00,PHY LTS 18-64,SUPPORTED LIVING,2103243756,1000081741
08.04.2021,ADULT SOCIAL CARE,BUDDI LTD,370.00,PHY LTS 65+,EQUIPMENT PURCHASE & REPAIR,2103243761,1000067243
08.04.2021,ADULT SOCIAL CARE,LONDON CARE LTD,335.75,PHY LTS 65+,HOMECARE - C&V,2103243767,1000003398
08.04.2021,ADULT SOCIAL CARE,LONDON CARE LTD,375.92,PHY LTS 65+,HOMECARE - C&V,2103243769,1000003398
08.04.2021,ASSET MANAGEMENT,PARS LTD,"1,321.00",ADAPTATIONS,BUILDING R&M,2103244486,3000001275
08.04.2021,ASSET MANAGEMENT,FDIS LTD,500.00,HEALTH AND SAFETY,TRAINING,5902464524,1000086542
08.04.2021,CHIEF EXECUTIVE,CARTER JONAS LLP,"1,895.00",CAPITAL PS (REGEN),CONSTRUCTION FEES,5902463903,1000073124
08.04.2021,CHIEF EXECUTIVE,SWAT.IO,"2,545.29",E-COMMUNICATIONS,CONSULTANTS SERVICES,6101976015,INTERNATIONAL PAYMENT
08.04.2021,CHIEF EXECUTIVE,SWAT.IO,"4,389.01",E-COMMUNICATIONS,CONSULTANTS SERVICES,6101977024,INTERNATIONAL PAYMENT
08.04.2021,CHILDREN AND FAMILIES,FAMILY FUTURES CIC,"5,000.00",ADOPTION SUPP FUND,EXTERNAL AGENCIES AND BODIES,5902464561,1000027893
08.04.2021,CHILDREN AND FAMILIES,SOUTH LONDON & MAUDSLEY HOSPITAL,"2,500.00",ADOPTION SUPP FUND,PROFESSIONAL FEES,5902464568,1000013096
08.04.2021,CHILDREN AND FAMILIES,SOUTH LONDON & MAUDSLEY HOSPITAL,"2,502.00",ADOPTION SUPP FUND,PROFESSIONAL FEES,5902464550,1000013096
08.04.2021,CHILDREN AND FAMILIES,FAMILY FUTURES CIC,"14,880.00",ADOPTION SUPP FUND,PROFESSIONAL FEES,5902464644,1000027893
08.04.2021,CHILDREN AND FAMILIES,THE FAMILY PLACE LTD,357.00,ADOPTION SUPP FUND,PROFESSIONAL FEES,5902464560,1000077965
08.04.2021,CHILDREN AND FAMILIES,THE SENSORY SMART CHILD LTD,630.00,ADOPTION SUPP FUND,PROFESSIONAL FEES,5902464542,1000085374
08.04.2021,CHILDREN AND FAMILIES,ALICE MALLORIE THERAPY SERVICE,720.00,ADOPTION SUPP FUND,PROFESSIONAL FEES,5902464562,1000085491
08.04.2021,CHILDREN AND FAMILIES,CHROMA THERAPIES LTD,897.00,ADOPTION SUPP FUND,PROFESSIONAL FEES,5902464543,1000085537
08.04.2021,CHILDREN AND FAMILIES,CHROMA THERAPIES LTD,"1,404.00",ADOPTION SUPP FUND,PROFESSIONAL FEES,5902464544,1000085537
08.04.2021,CHILDREN AND FAMILIES,PLAY THERAPY SERVICES LTD,"1,900.00",ADOPTION SUPP FUND,PROFESSIONAL FEES,5902464545,1000085546
08.04.2021,CHILDREN AND FAMILIES,RICHMOND MUSIC TRUST LTD,495.00,ADOPTION SUPP FUND,PROFESSIONAL FEES,5902464556,1000085665
08.04.2021,CHILDREN AND FAMILIES,RICHMOND MUSIC TRUST LTD,540.00,ADOPTION SUPP FUND,PROFESSIONAL FEES,5902464555,1000085665
08.04.2021,CHILDREN AND FAMILIES,RICHMOND MUSIC TRUST LTD,540.00,ADOPTION SUPP FUND,PROFESSIONAL FEES,5902464554,1000085665
08.04.2021,CHILDREN AND FAMILIES,RICHMOND MUSIC TRUST LTD,540.00,ADOPTION SUPP FUND,PROFESSIONAL FEES,5902464553,1000085665
08.04.2021,CHILDREN AND FAMILIES,RICHMOND MUSIC TRUST LTD,540.00,ADOPTION SUPP FUND,PROFESSIONAL FEES,5902464552,1000085665
08.04.2021,CHILDREN AND FAMILIES,RICHMOND MUSIC TRUST LTD,660.00,ADOPTION SUPP FUND,PROFESSIONAL FEES,5902464551,1000085665
08.04.2021,CHILDREN AND FAMILIES,WHOLE CHILD THERAPY LTD,"1,480.00",ADOPTION SUPP FUND,PROFESSIONAL FEES,5902464547,1000086004
08.04.2021,CHILDREN AND FAMILIES,REDACTED PERSONAL DATA,"4,230.00",ADOPTION SUPP FUND,PROFESSIONAL FEES,REDACTED,REDACTED
08.04.2021,CHILDREN AND FAMILIES,REDACTED PERSONAL DATA,982.50,ADOPTION SUPP FUND,PROFESSIONAL FEES,REDACTED,REDACTED
08.04.2021,CHILDREN AND FAMILIES,REDACTED PERSONAL DATA,522.50,ADOPTION SUPP FUND,PROFESSIONAL FEES,REDACTED,REDACTED
08.04.2021,CHILDREN AND FAMILIES,REDACTED PERSONAL DATA,"2,450.00",ADOPTION SUPP FUND,PROFESSIONAL FEES,REDACTED,REDACTED
08.04.2021,CHILDREN AND FAMILIES,REDACTED PERSONAL DATA,720.00,ADOPTION SUPP FUND,PROFESSIONAL FEES,REDACTED,REDACTED
08.04.2021,CHILDREN AND FAMILIES,REDACTED PERSONAL DATA,504.00,ADOPTION SUPP FUND,PROFESSIONAL FEES,REDACTED,REDACTED
08.04.2021,CHILDREN AND FAMILIES,REDACTED PERSONAL DATA,"2,330.00",ADOPTION SUPP FUND,PROFESSIONAL FEES,REDACTED,REDACTED
08.04.2021,CHILDREN AND FAMILIES,LONDON BUBBLE THEATRE COMPANY,"1,100.00",CENTRAL SUPPORT,EXTERNAL AGENCIES AND BODIES,5902464564,11022517
08.04.2021,CHILDREN AND FAMILIES,INTERPRETING DIRECT CO (UK) LTD,"3,243.60",CENTRAL SUPPORT,TRANSLATION SERVICES,5902464604,1000070133
08.04.2021,CHILDREN AND FAMILIES,EGOLI 2020 LTD,"1,750.00",DIRECTOR OF C&F,PROFESSIONAL FEES,5902464635,1000084442
08.04.2021,CHILDREN AND FAMILIES,EGOLI 2020 LTD,"1,750.00",DIRECTOR OF C&F,PROFESSIONAL FEES,5902464634,1000084442
08.04.2021,CHILDREN AND FAMILIES,EGOLI 2020 LTD,"1,750.00",DIRECTOR OF C&F,PROFESSIONAL FEES,5902464633,1000084442
08.04.2021,CHILDREN AND FAMILIES,RISTARDOS LTD,"30,250.00",DIRECTOR OF C&F,PROFESSIONAL FEES,5902464637,1000086037
08.04.2021,CHILDREN AND FAMILIES,CORAL COMMUNITY ASSESSMENTS LTD,"1,700.00",FAMILY ASSESS RESID,RESIDENTIAL CARE,5902463923,1000056464
08.04.2021,CHILDREN AND FAMILIES,CORAL COMMUNITY ASSESSMENTS LTD,"1,889.00",FAMILY ASSESS RESID,RESIDENTIAL CARE,5902464467,1000056464
08.04.2021,CHILDREN AND FAMILIES,CORAL COMMUNITY ASSESSMENTS LTD,"3,188.00",FAMILY ASSESS RESID,RESIDENTIAL CARE,5902463922,1000056464
08.04.2021,CHILDREN AND FAMILIES,CORAL COMMUNITY ASSESSMENTS LTD,"3,320.00",FAMILY ASSESS RESID,RESIDENTIAL CARE,5902463928,1000056464
08.04.2021,CHILDREN AND FAMILIES,CORAL COMMUNITY ASSESSMENTS LTD,"3,482.80",FAMILY ASSESS RESID,RESIDENTIAL CARE,5902464459,1000056464
08.04.2021,CHILDREN AND FAMILIES,CORAL COMMUNITY ASSESSMENTS LTD,"3,800.00",FAMILY ASSESS RESID,RESIDENTIAL CARE,5902463926,1000056464
08.04.2021,CHILDREN AND FAMILIES,CORAL COMMUNITY ASSESSMENTS LTD,"4,800.00",FAMILY ASSESS RESID,RESIDENTIAL CARE,5902464465,1000056464
08.04.2021,CHILDREN AND FAMILIES,CORAL COMMUNITY ASSESSMENTS LTD,"5,520.00",FAMILY ASSESS RESID,RESIDENTIAL CARE,5902464462,1000056464
08.04.2021,CHILDREN AND FAMILIES,CORAL COMMUNITY ASSESSMENTS LTD,"5,839.00",FAMILY ASSESS RESID,RESIDENTIAL CARE,5902464464,1000056464
08.04.2021,CHILDREN AND FAMILIES,CORAL COMMUNITY ASSESSMENTS LTD,"8,400.00",FAMILY ASSESS RESID,RESIDENTIAL CARE,5902464458,1000056464
08.04.2021,CHILDREN AND FAMILIES,REDACTED PERSONAL DATA,496.94,FAMILY GROUP CONF�S,PROFESSIONAL FEES,REDACTED,REDACTED
08.04.2021,CHILDREN AND FAMILIES,REDACTED PERSONAL DATA,"1,591.01",LEAVING CARE GRANT,OTHER PAYMENTS FOR CLIENTS,REDACTED,REDACTED
08.04.2021,CHILDREN AND FAMILIES,REDACTED PERSONAL DATA,515.71,SEMI-IND LAC 16-17,OTHER PAYMENTS FOR CLIENTS,REDACTED,REDACTED
08.04.2021,CHILDREN AND FAMILIES,ARC COMMUNITY TRUSTEES,650.00,SPECIAL GUARDIANSHIP,EXTERNAL AGENCIES AND BODIES,5902464535,1000046206
08.04.2021,CHILDREN AND FAMILIES,CARE O LINE,"1,690.00",TEAM B,OTHER PAYMENTS FOR CLIENTS,2103243751,11241743
08.04.2021,CHILDREN AND FAMILIES,CARE O LINE,"4,040.90",TEAM B,OTHER PAYMENTS FOR CLIENTS,2103243749,11241743
08.04.2021,CHILDREN AND FAMILIES,CARE O LINE,"4,040.90",TEAM B,OTHER PAYMENTS FOR CLIENTS,2103243746,11241743
08.04.2021,CHILDREN AND FAMILIES,IMAGO LTD,"27,819.00",YOUNG CARERS SERVICE,EXTERNAL AGENCIES AND BODIES,5902464565,1000076913
08.04.2021,COMMISSIONING & CENTRAL,HATS GROUP LTD,-756.76,STRATEGIC DIRECTOR OF C&AS,HIRED VEHICLES,5902464036,1000042743
08.04.2021,COMMISSIONING & CENTRAL,HATS GROUP LTD,"42,672.00",STRATEGIC DIRECTOR OF C&AS,HIRED VEHICLES,5902464030,1000042743
08.04.2021,COMMUNITIES,APPLEGARTH HOUSE COOPERATIVE LTD,"18,949.00",APPLEGARTH HOUSE CO-OP,M&M ALLOWANCE CO-OPS,5902464630,1296074
08.04.2021,COMMUNITIES,SOUTHWARK LAW CENTRE,"84,000.00",LEGAL GRANTS,EXTERNAL AGENCIES AND BODIES,5902464236,1981325
08.04.2021,CUSTOMER EXPERIENCE,ARGOS BUSINESS SOLUTIONS LTD,290.49,PECKHAM MSSP,OFFICE EXPENSES,5902464549,1000001734
08.04.2021,CUSTOMER EXPERIENCE HGF,REGEXCEL CONSULTING LIMITED,"1,500.00",CORONER'S,PROFESSIONAL FEES,5902464579,1000086545
08.04.2021,CUSTOMER EXPERIENCE HGF,HENRY WILTSHIRE LTD,"1,884.61",HOMELESS PROJECTS,GRANTS,5902464469,1000086532
08.04.2021,CUSTOMER EXPERIENCE HGF,EARL BARRINGTON BENEOCHRIST,"1,245.00",HOMELESS PROJECTS,GRANTS,5902464645,1000086531
08.04.2021,CUSTOMER EXPERIENCE HGF,BIRCHAM DYSON BELL,"4,568.00",LONDON BRIDGE INQUEST,LEGAL FEES & COURT COSTS,5902464513,1000048605
08.04.2021,CUSTOMER EXPERIENCE HGF,SK HOUSING LTD,"9,616.20",NIGHTLY TA (NSC),EXTERNAL AGENCIES AND BODIES,5902464602,1000070716
08.04.2021,CUSTOMER EXPERIENCE HGF,J & M OASIS LTD,"6,426.50",NIGHTLY TA (NSC),EXTERNAL AGENCIES AND BODIES,5902464498,1000072169
08.04.2021,CUSTOMER EXPERIENCE HGF,SOUTH OF THE RIVER INVESTMENTS LTD,"4,087.85",NIGHTLY TA (NSC),EXTERNAL AGENCIES AND BODIES,5902464590,1000073638
08.04.2021,DSG,EKC SCHOOLS TRUST,"1,500.00",VIRTUAL SCHOOL PP,SCHOOLS CAPITATION,5902464632,1000086537
08.04.2021,EDUCATION,STEPPING STONES,"4,500.00",ALC COMMUNITY LEARNING,GRANTS,5902464619,1000051807
08.04.2021,EDUCATION,PULSE HEALTHCARE LTD,308.00,SCH TRANS � TRAVEL,AGENCY STAFF,5902463782,1000035063
08.04.2021,EDUCATION,HATS GROUP LTD,"-2,891.70",SCH TRANS � TRAVEL,EXTERNAL AGENCIES AND BODIES,5902464500,1000042743
08.04.2021,EDUCATION,HATS GROUP LTD,"165,240.00",SCH TRANS � TRAVEL,EXTERNAL AGENCIES AND BODIES,5902464499,1000042743
08.04.2021,EDUCATION,HATS GROUP LTD,"-11,335.45",SCH TRANS � TRAVEL,HIRED VEHICLES,5902464483,1000042743
08.04.2021,EDUCATION,HATS GROUP LTD,"-1,824.34",SCH TRANS � TRAVEL,HIRED VEHICLES,5902463924,1000042743
08.04.2021,EDUCATION,HATS GROUP LTD,"11,614.20",SCH TRANS � TRAVEL,HIRED VEHICLES,5902463931,1000042743
08.04.2021,EDUCATION,HATS GROUP LTD,"104,248.08",SCH TRANS � TRAVEL,HIRED VEHICLES,5902463917,1000042743
08.04.2021,EDUCATION,HATS GROUP LTD,"647,740.20",SCH TRANS � TRAVEL,HIRED VEHICLES,5902464480,1000042743
08.04.2021,ENVIRONMENT AND LEISURE,HERBS AND SPACES,"6,620.00",CAPITAL PS (LEISURE),CAPITAL GRANTS,5902464569,1000081440
08.04.2021,ENVIRONMENT AND LEISURE,QUADRON SERVICES LIMITED,335.16,CAPITAL PS (LEISURE),CONSTRUCTION,5902463975,1000066528
08.04.2021,ENVIRONMENT AND LEISURE,QUADRON SERVICES LIMITED,743.16,CAPITAL PS (LEISURE),CONSTRUCTION,5902463978,1000066528
08.04.2021,ENVIRONMENT DIRECTORATE,LEX AUTOLEASE,"-1,356.04",CAR LEASING CTRL A/C,VEHICLE LEASING CHARGES,5902460781,1000069462
08.04.2021,ENVIRONMENT DIRECTORATE,LEX AUTOLEASE,-823.32,CAR LEASING CTRL A/C,VEHICLE LEASING CHARGES,5902460762,1000069462
08.04.2021,ENVIRONMENT DIRECTORATE,LEX AUTOLEASE,-313.52,CAR LEASING CTRL A/C,VEHICLE LEASING CHARGES,5902463656,1000069462
08.04.2021,ENVIRONMENT DIRECTORATE,DAWSON RENTALS BUS & COACH LTD,"1,455.65",COMMERCIAL VEH CTRL A/C,HIRED VEHICLES,5902464617,1000042174
08.04.2021,ENVIRONMENT DIRECTORATE,TIPPERHIRE LTD,598.00,COMMERCIAL VEH CTRL A/C,HIRED VEHICLES,5902464611,1000055357
08.04.2021,ENVIRONMENT DIRECTORATE,TIPPERHIRE LTD,"1,380.00",COMMERCIAL VEH CTRL A/C,HIRED VEHICLES,5902464618,1000055357
08.04.2021,ENVIRONMENT DIRECTORATE,TIPPERHIRE LTD,"1,380.00",COMMERCIAL VEH CTRL A/C,HIRED VEHICLES,5902464607,1000055357
08.04.2021,ENVIRONMENT DIRECTORATE,TIPPERHIRE LTD,"1,380.00",COMMERCIAL VEH CTRL A/C,HIRED VEHICLES,5902464601,1000055357
08.04.2021,ENVIRONMENT DIRECTORATE,LEX AUTOLEASE,-358.90,COMMERCIAL VEH CTRL A/C,HIRED VEHICLES,5902464600,1000069462
08.04.2021,ENVIRONMENT DIRECTORATE,LEX AUTOLEASE,368.90,COMMERCIAL VEH CTRL A/C,HIRED VEHICLES,5902464595,1000069462
08.04.2021,ENVIRONMENT DIRECTORATE,LEX AUTOLEASE,589.12,COMMERCIAL VEH CTRL A/C,HIRED VEHICLES,5902464605,1000069462
08.04.2021,ENVIRONMENT DIRECTORATE,LEX AUTOLEASE,750.00,COMMERCIAL VEH CTRL A/C,HIRED VEHICLES,5902462483,1000069462
08.04.2021,ENVIRONMENT DIRECTORATE,LEX AUTOLEASE,"4,807.54",COMMERCIAL VEH CTRL A/C,HIRED VEHICLES,5902464608,1000069462
08.04.2021,ENVIRONMENT DIRECTORATE,ENTERPRISE FLEX E RENT,596.75,COMMERCIAL VEH CTRL A/C,HIRED VEHICLES,5902464594,1000069585
08.04.2021,ENVIRONMENT DIRECTORATE,ENTERPRISE FLEX E RENT,596.75,COMMERCIAL VEH CTRL A/C,HIRED VEHICLES,5902464592,1000069585
08.04.2021,ENVIRONMENT DIRECTORATE,ENTERPRISE FLEX E RENT,647.67,COMMERCIAL VEH CTRL A/C,HIRED VEHICLES,5902464597,1000069585
08.04.2021,ENVIRONMENT DIRECTORATE,ENTERPRISE FLEX E RENT,647.67,COMMERCIAL VEH CTRL A/C,HIRED VEHICLES,5902464591,1000069585
08.04.2021,ENVIRONMENT DIRECTORATE,DAWSONGROUP VANS LTD,324.11,COMMERCIAL VEH CTRL A/C,HIRED VEHICLES,5902464624,1000082230
08.04.2021,ENVIRONMENT DIRECTORATE,DAWSONGROUP VANS LTD,777.00,COMMERCIAL VEH CTRL A/C,HIRED VEHICLES,5902464485,1000082230
08.04.2021,ENVIRONMENT DIRECTORATE,DAWSONGROUP VANS LTD,840.01,COMMERCIAL VEH CTRL A/C,HIRED VEHICLES,5902464490,1000082230
08.04.2021,ENVIRONMENT DIRECTORATE,DAWSONGROUP VANS LTD,921.78,COMMERCIAL VEH CTRL A/C,HIRED VEHICLES,5902464488,1000082230
08.04.2021,ENVIRONMENT DIRECTORATE,GREENHAM TRADING LTD,"1,487.92",ESTATE CLEANING-GENERAL,MATERIALS,5902464639,1000006610
08.04.2021,ENVIRONMENT DIRECTORATE,THE T P PARTNERSHIP,445.00,ESTATE CLEANING-GENERAL,OTHER CONTRACTORS,5902464504,1000045906
08.04.2021,F & C S EXCLUDING CORPORATE BUDGETS,CAPITA BUSINESS SERVICES LTD,"36,820.84",CAPITA,OTHER CONTRACTORS,5902464503,1000049446
08.04.2021,F & C S EXCLUDING CORPORATE BUDGETS,HAYS RECRUITING EXPERTS WORLDWIDE,"3,000.00",PROCUREMENT ADVICE TEAM,PROFESSIONAL FEES,5902464533,11319307
08.04.2021,HOUSING,DUCTCLEAN (UK) LTD,"3,106.60",DUCTCLEAN,I-WORLD CONTRACTORS HOLDING ACCOUNT,2103243741,3000001635
08.04.2021,HOUSING,DUCTCLEAN (UK) LTD,"48,446.70",DUCTCLEAN,I-WORLD CONTRACTORS HOLDING ACCOUNT,2103243741,3000001635
08.04.2021,HOUSING,SILK & MACKMAN SERVICES LTD,"99,891.65",ENG CONTRACTS (NORTH),I-WORLD CONTRACTORS HOLDING ACCOUNT,5902463647,1000035282
08.04.2021,HOUSING GENERAL FUND,ASTRAL PS LTD,"10,563.86",CAPITAL PS (HOUSING GF),CAPITAL GRANTS,5902464558,1000073720
08.04.2021,HOUSING GENERAL FUND,2CQR LTD,"9,765.00",CAPITAL PS (REGEN),ICT ACQUISITION,5902464232,1000083086
08.04.2021,HOUSING HRA,STAFFINO,"1,425.00",ADMINISTRATION SUPPORT,SOFTWARE,6101976014,INTERNATIONAL PAYMENT
08.04.2021,HOUSING HRA,PARS LTD,"1,693.00",CAPITAL PS (HRA),CONST'N MAIN CONTRACT - NON CERTIFICATED,2103243742,3000001275
08.04.2021,HOUSING HRA,POINT 2 SURVEYORS LTD,"8,050.00",CAPITAL PS (HRA),CONSTRUCTION FEES  - EXTERNAL,5902464566,1000076513
08.04.2021,HOUSING HRA,PAUL MEW ASSOCIATES LTD,"1,900.00",CAPITAL PS (HRA),CONSTRUCTION FEES  - EXTERNAL,5902464571,1000082276
08.04.2021,HOUSING HRA,GEOFFREY OSBORNE LIMITED,"41,904.73",CAPITAL PS (HRA),CONSTRUCTION MAIN CONTRACT -CERTIFICATED,2103244487,3000000753
08.04.2021,HOUSING HRA,STAFFINO,"1,092.50",HOME OWNERSHIP,SOFTWARE,6101976014,INTERNATIONAL PAYMENT
08.04.2021,LEISURE DIRECTORATE,QUADRON SERVICES LIMITED,416.50,BURGESS SPORTS CENTRE,PROFESSIONAL FEES,5902463616,1000066528
08.04.2021,LEISURE DIRECTORATE,QUADRON SERVICES LIMITED,416.50,BURGESS SPORTS CENTRE,PROFESSIONAL FEES,5902463614,1000066528
08.04.2021,LEISURE DIRECTORATE,QUADRON SERVICES LIMITED,641.41,BURGESS SPORTS CENTRE,PROFESSIONAL FEES,5902463613,1000066528
08.04.2021,LEISURE DIRECTORATE,VIVEDIA LIMITED,"1,927.99",CREMATORIUM,OP LEASE/HIRE CHARGES:PLANT/EQUIP/FURNIT,5902463888,1000064867
08.04.2021,LEISURE DIRECTORATE,CLEAN MACHINES,406.56,SDM BUDGET,MATERIALS,5902464541,1000070921
08.04.2021,LEISURE DIRECTORATE,P D CONSTRUCTION LTD,"1,960.00",SOUTHWARK AREA TEAM,OTHER R&M,5902464471,1000000390
08.04.2021,MODERNISATION HGF,PRECISELY EUROPE SOFTWARE & DATA LTD,"3,316.00",APPLICATIONS,SUBSCRIPTIONS,5902463892,1476232
08.04.2021,MODERNISATION HGF,PRECISELY EUROPE SOFTWARE & DATA LTD,"12,584.00",APPLICATIONS,SUBSCRIPTIONS,5902463890,1476232
08.04.2021,MODERNISATION HGF,PRECISELY EUROPE SOFTWARE & DATA LTD,"13,789.85",APPLICATIONS,SUBSCRIPTIONS,5902463890,1476232
08.04.2021,MODERNISATION HGF,PRECISELY EUROPE SOFTWARE & DATA LTD,"15,548.00",APPLICATIONS,SUBSCRIPTIONS,5902463890,1476232
08.04.2021,PLANNING AND TRANSPORT,UNBOXED CONSULTING LTD,"80,000.00",PLANNING POLICY TEAM,CONSULTANTS SERVICES,5902464532,1000082469
08.04.2021,PUBLIC HEALTH,QUALITY MEDICAL SOLUTIONS LTD (QMS),"11,918.00",HEALTH CHECKS CONTRACTS,EXTERNAL AGENCIES AND BODIES,5902463602,1000072192
08.04.2021,PUBLIC HEALTH,QUALITY EDUCATION SOLUTIONS LTD,"9,979.82",HEALTH PROTECTION,CONTRACT CHARGES - EXTERNAL CLIENTS,5902464570,1000084042
08.04.2021,PUBLIC HEALTH,IVYDALE PRIMARY SCHOOL,"1,088.00",PLACE & HEALTH IMPROVEMENT,EXTERNAL AGENCIES AND BODIES,5902463538,5001000038
08.04.2021,REGENERATION,AGY CONSULTANTS LTD,"59,499.96",GIS,PROFESSIONAL FEES,5902463789,1000002277
08.04.2021,RESIDENT SERVICES,KNOWLEDGE EXCHANGE GROUP LTD,999.00,CENTRAL AREA RUNNING COSTS,TRAINING,5902464576,1000081232
08.04.2021,SBS OPERATIONS,AKW MEDI-CARE LTD,652.14,SUPPORTED HOUSING - REPAIRS,MATERIALS,5902464331,1000047103
08.04.2021,SBS SUPPORT,SPECTRA-GLAZE SERVICES,592.93,SBS - HOLDING ACCOUNT,OTHER CONTRACTORS,5902464516,1000077605
08.04.2021,STRATEGIC FINANCING BUDGETS,COMENSURA LTD,"515,128.42",WEEKLY PAYMENTS,AGENCY STAFF,5902464640,1000051261
09.04.2021,ADULT SOCIAL CARE,THAMES WATER UTILITIES LTD,297.11,APPOINTEESHIPS,OTHER PAYMENTS FOR CLIENTS,2103244492,11003005
09.04.2021,ADULT SOCIAL CARE,THAMES WATER UTILITIES LTD,406.04,APPOINTEESHIPS,OTHER PAYMENTS FOR CLIENTS,2103244493,11003005
09.04.2021,ADULT SOCIAL CARE,THAMES WATER UTILITIES LTD,406.04,APPOINTEESHIPS,OTHER PAYMENTS FOR CLIENTS,2103244491,11003005
09.04.2021,ADULT SOCIAL CARE,INMIND HEALTHCARE GROUP,300.00,APPOINTEESHIPS,OTHER PAYMENTS FOR CLIENTS,2103244490,1000074724
09.04.2021,ADULT SOCIAL CARE,HOUSING & CARE 21,"1,990.00",APPOINTEESHIPS,OTHER PAYMENTS FOR CLIENTS,2103244489,1000076203
09.04.2021,ADULT SOCIAL CARE,INDEPENDENT PEOPLE HOMECARE LTD,"3,985.71",CARERS SERVICES,PLACEMENTS - RESPITE,2103245761,1000083488
09.04.2021,ADULT SOCIAL CARE,THAMES HOMECARE SERVICE LTD,367.94,DISCHARGE TO ACCESS,HOMECARE - C&V,2103245699,1000079295
09.04.2021,ADULT SOCIAL CARE,PEOPLEPLUS ILS,318.12,DISCHARGE TO ACCESS,PAYMENTS TO CLIENTS (DIRECT PAYMENTS),2103245417,1000061886
09.04.2021,ADULT SOCIAL CARE,PEOPLEPLUS ILS,"2,266.72",DISCHARGE TO ACCESS,PAYMENTS TO CLIENTS (DIRECT PAYMENTS),2103244924,1000061886
09.04.2021,ADULT SOCIAL CARE,PEOPLEPLUS ILS,"3,015.60",DISCHARGE TO ACCESS,PAYMENTS TO CLIENTS (DIRECT PAYMENTS),2103245483,1000061886
09.04.2021,ADULT SOCIAL CARE,REDACTED PERSONAL DATA,791.84,DISCHARGE TO ACCESS,PAYMENTS TO CLIENTS (DIRECT PAYMENTS),REDACTED,REDACTED
09.04.2021,ADULT SOCIAL CARE,REDACTED PERSONAL DATA,296.96,DISCHARGE TO ACCESS,PAYMENTS TO CLIENTS (DIRECT PAYMENTS),REDACTED,REDACTED
09.04.2021,ADULT SOCIAL CARE,REDACTED PERSONAL DATA,898.80,DISCHARGE TO ACCESS,PAYMENTS TO CLIENTS (DIRECT PAYMENTS),REDACTED,REDACTED
09.04.2021,ADULT SOCIAL CARE,REDACTED PERSONAL DATA,826.00,DISCHARGE TO ACCESS,PAYMENTS TO CLIENTS (DIRECT PAYMENTS),REDACTED,REDACTED
09.04.2021,ADULT SOCIAL CARE,LONDON CARE LTD,700.00,EXTRA CARE CONTRACT,HOMECARE - C&V,5902464020,1000003398
09.04.2021,ADULT SOCIAL CARE,LONDON CARE LTD,"12,413.43",EXTRA CARE CONTRACT,HOMECARE - C&V,5902464509,1000003398
09.04.2021,ADULT SOCIAL CARE,LONDON CARE LTD,"34,014.07",EXTRA CARE CONTRACT,HOMECARE - C&V,5902464509,1000003398
09.04.2021,ADULT SOCIAL CARE,LONDON CARE LTD,"44,703.75",EXTRA CARE CONTRACT,HOMECARE - C&V,5902464014,1000003398
09.04.2021,ADULT SOCIAL CARE,LONDON CARE LTD,"55,037.50",EXTRA CARE CONTRACT,HOMECARE - C&V,5902464022,1000003398
09.04.2021,ADULT SOCIAL CARE,ACCESS MOBILITY TRANSPORT LTD,"2,824.40",LD LTS 18-64,CLIENT TRANSPORT,2103245757,1000074637
09.04.2021,ADULT SOCIAL CARE,THE CAMDEN SOCIETY (SOCIAL CARE),480.00,LD LTS 18-64,DAYCARE,2103245765,1000036369
09.04.2021,ADULT SOCIAL CARE,PEOPLEPLUS ILS,-769.80,LD LTS 18-64,DISCRETIONARY FLEXIBLE FEES & INCOME,2103245082,1000061886
09.04.2021,ADULT SOCIAL CARE,PEOPLEPLUS ILS,-344.72,LD LTS 18-64,DISCRETIONARY FLEXIBLE FEES & INCOME,2103245261,1000061886
09.04.2021,ADULT SOCIAL CARE,PEOPLEPLUS ILS,-287.28,LD LTS 18-64,DISCRETIONARY FLEXIBLE FEES & INCOME,2103245177,1000061886
09.04.2021,ADULT SOCIAL CARE,PEOPLEPLUS ILS,-273.56,LD LTS 18-64,DISCRETIONARY FLEXIBLE FEES & INCOME,2103245356,1000061886
09.04.2021,ADULT SOCIAL CARE,PEOPLEPLUS ILS,-273.40,LD LTS 18-64,DISCRETIONARY FLEXIBLE FEES & INCOME,2103245444,1000061886
09.04.2021,ADULT SOCIAL CARE,REDACTED PERSONAL DATA,-347.20,LD LTS 18-64,DISCRETIONARY FLEXIBLE FEES & INCOME,REDACTED,REDACTED
09.04.2021,ADULT SOCIAL CARE,KENT HARRIER PROPERTY MANAGEMENT,"1,506.00",LD LTS 18-64,EXTERNAL AGENCIES AND BODIES,2103245741,1000078130
09.04.2021,ADULT SOCIAL CARE,KENT HARRIER PROPERTY MANAGEMENT,"1,520.00",LD LTS 18-64,EXTERNAL AGENCIES AND BODIES,2103245747,1000078130
09.04.2021,ADULT SOCIAL CARE,PEOPLEPLUS ILS,"-2,632.86",LD LTS 18-64,PAYMENTS TO CLIENTS (DIRECT PAYMENTS),2103245386,1000061886
09.04.2021,ADULT SOCIAL CARE,PEOPLEPLUS ILS,"-2,169.14",LD LTS 18-64,PAYMENTS TO CLIENTS (DIRECT PAYMENTS),2103245176,1000061886
09.04.2021,ADULT SOCIAL CARE,PEOPLEPLUS ILS,-680.04,LD LTS 18-64,PAYMENTS TO CLIENTS (DIRECT PAYMENTS),2103245388,1000061886
09.04.2021,ADULT SOCIAL CARE,PEOPLEPLUS ILS,260.00,LD LTS 18-64,PAYMENTS TO CLIENTS (DIRECT PAYMENTS),2103245361,1000061886
09.04.2021,ADULT SOCIAL CARE,PEOPLEPLUS ILS,266.00,LD LTS 18-64,PAYMENTS TO CLIENTS (DIRECT PAYMENTS),2103245288,1000061886
09.04.2021,ADULT SOCIAL CARE,PEOPLEPLUS ILS,299.60,LD LTS 18-64,PAYMENTS TO CLIENTS (DIRECT PAYMENTS),2103245206,1000061886
09.04.2021,ADULT SOCIAL CARE,PEOPLEPLUS ILS,305.88,LD LTS 18-64,PAYMENTS TO CLIENTS (DIRECT PAYMENTS),2103245571,1000061886
09.04.2021,ADULT SOCIAL CARE,PEOPLEPLUS ILS,316.80,LD LTS 18-64,PAYMENTS TO CLIENTS (DIRECT PAYMENTS),2103245560,1000061886
09.04.2021,ADULT SOCIAL CARE,PEOPLEPLUS ILS,329.32,LD LTS 18-64,PAYMENTS TO CLIENTS (DIRECT PAYMENTS),2103245255,1000061886
09.04.2021,ADULT SOCIAL CARE,PEOPLEPLUS ILS,329.80,LD LTS 18-64,PAYMENTS TO CLIENTS (DIRECT PAYMENTS),2103245647,1000061886
09.04.2021,ADULT SOCIAL CARE,PEOPLEPLUS ILS,334.00,LD LTS 18-64,PAYMENTS TO CLIENTS (DIRECT PAYMENTS),2103244932,1000061886
09.04.2021,ADULT SOCIAL CARE,PEOPLEPLUS ILS,342.00,LD LTS 18-64,PAYMENTS TO CLIENTS (DIRECT PAYMENTS),2103245006,1000061886
09.04.2021,ADULT SOCIAL CARE,PEOPLEPLUS ILS,349.00,LD LTS 18-64,PAYMENTS TO CLIENTS (DIRECT PAYMENTS),2103245307,1000061886
09.04.2021,ADULT SOCIAL CARE,PEOPLEPLUS ILS,352.00,LD LTS 18-64,PAYMENTS TO CLIENTS (DIRECT PAYMENTS),2103244947,1000061886
09.04.2021,ADULT SOCIAL CARE,PEOPLEPLUS ILS,374.00,LD LTS 18-64,PAYMENTS TO CLIENTS (DIRECT PAYMENTS),2103245241,1000061886
09.04.2021,ADULT SOCIAL CARE,PEOPLEPLUS ILS,385.60,LD LTS 18-64,PAYMENTS TO CLIENTS (DIRECT PAYMENTS),2103245378,1000061886
09.04.2021,ADULT SOCIAL CARE,PEOPLEPLUS ILS,393.52,LD LTS 18-64,PAYMENTS TO CLIENTS (DIRECT PAYMENTS),2103245273,1000061886
09.04.2021,ADULT SOCIAL CARE,PEOPLEPLUS ILS,393.52,LD LTS 18-64,PAYMENTS TO CLIENTS (DIRECT PAYMENTS),2103245264,1000061886
09.04.2021,ADULT SOCIAL CARE,PEOPLEPLUS ILS,419.44,LD LTS 18-64,PAYMENTS TO CLIENTS (DIRECT PAYMENTS),2103245536,1000061886
09.04.2021,ADULT SOCIAL CARE,PEOPLEPLUS ILS,430.80,LD LTS 18-64,PAYMENTS TO CLIENTS (DIRECT PAYMENTS),2103245628,1000061886
09.04.2021,ADULT SOCIAL CARE,PEOPLEPLUS ILS,437.60,LD LTS 18-64,PAYMENTS TO CLIENTS (DIRECT PAYMENTS),2103245439,1000061886
09.04.2021,ADULT SOCIAL CARE,PEOPLEPLUS ILS,440.00,LD LTS 18-64,PAYMENTS TO CLIENTS (DIRECT PAYMENTS),2103245493,1000061886
09.04.2021,ADULT SOCIAL CARE,PEOPLEPLUS ILS,452.48,LD LTS 18-64,PAYMENTS TO CLIENTS (DIRECT PAYMENTS),2103245237,1000061886
09.04.2021,ADULT SOCIAL CARE,PEOPLEPLUS ILS,458.08,LD LTS 18-64,PAYMENTS TO CLIENTS (DIRECT PAYMENTS),2103245559,1000061886
09.04.2021,ADULT SOCIAL CARE,PEOPLEPLUS ILS,464.80,LD LTS 18-64,PAYMENTS TO CLIENTS (DIRECT PAYMENTS),2103245376,1000061886
09.04.2021,ADULT SOCIAL CARE,PEOPLEPLUS ILS,479.29,LD LTS 18-64,PAYMENTS TO CLIENTS (DIRECT PAYMENTS),2103245383,1000061886
09.04.2021,ADULT SOCIAL CARE,PEOPLEPLUS ILS,486.48,LD LTS 18-64,PAYMENTS TO CLIENTS (DIRECT PAYMENTS),2103245281,1000061886
09.04.2021,ADULT SOCIAL CARE,PEOPLEPLUS ILS,493.36,LD LTS 18-64,PAYMENTS TO CLIENTS (DIRECT PAYMENTS),2103245285,1000061886
09.04.2021,ADULT SOCIAL CARE,PEOPLEPLUS ILS,513.36,LD LTS 18-64,PAYMENTS TO CLIENTS (DIRECT PAYMENTS),2103245153,1000061886
09.04.2021,ADULT SOCIAL CARE,PEOPLEPLUS ILS,513.36,LD LTS 18-64,PAYMENTS TO CLIENTS (DIRECT PAYMENTS),2103244941,1000061886
09.04.2021,ADULT SOCIAL CARE,PEOPLEPLUS ILS,517.20,LD LTS 18-64,PAYMENTS TO CLIENTS (DIRECT PAYMENTS),2103245494,1000061886
09.04.2021,ADULT SOCIAL CARE,PEOPLEPLUS ILS,558.72,LD LTS 18-64,PAYMENTS TO CLIENTS (DIRECT PAYMENTS),2103244972,1000061886
09.04.2021,ADULT SOCIAL CARE,PEOPLEPLUS ILS,632.40,LD LTS 18-64,PAYMENTS TO CLIENTS (DIRECT PAYMENTS),2103245512,1000061886
09.04.2021,ADULT SOCIAL CARE,PEOPLEPLUS ILS,633.20,LD LTS 18-64,PAYMENTS TO CLIENTS (DIRECT PAYMENTS),2103245517,1000061886
09.04.2021,ADULT SOCIAL CARE,PEOPLEPLUS ILS,633.20,LD LTS 18-64,PAYMENTS TO CLIENTS (DIRECT PAYMENTS),2103244966,1000061886
09.04.2021,ADULT SOCIAL CARE,PEOPLEPLUS ILS,670.00,LD LTS 18-64,PAYMENTS TO CLIENTS (DIRECT PAYMENTS),2103245504,1000061886
09.04.2021,ADULT SOCIAL CARE,PEOPLEPLUS ILS,670.00,LD LTS 18-64,PAYMENTS TO CLIENTS (DIRECT PAYMENTS),2103245212,1000061886
09.04.2021,ADULT SOCIAL CARE,PEOPLEPLUS ILS,685.72,LD LTS 18-64,PAYMENTS TO CLIENTS (DIRECT PAYMENTS),2103244936,1000061886
09.04.2021,ADULT SOCIAL CARE,PEOPLEPLUS ILS,694.00,LD LTS 18-64,PAYMENTS TO CLIENTS (DIRECT PAYMENTS),2103244970,1000061886
09.04.2021,ADULT SOCIAL CARE,PEOPLEPLUS ILS,718.00,LD LTS 18-64,PAYMENTS TO CLIENTS (DIRECT PAYMENTS),2103245377,1000061886
09.04.2021,ADULT SOCIAL CARE,PEOPLEPLUS ILS,724.24,LD LTS 18-64,PAYMENTS TO CLIENTS (DIRECT PAYMENTS),2103245491,1000061886
09.04.2021,ADULT SOCIAL CARE,PEOPLEPLUS ILS,753.04,LD LTS 18-64,PAYMENTS TO CLIENTS (DIRECT PAYMENTS),2103245202,1000061886
09.04.2021,ADULT SOCIAL CARE,PEOPLEPLUS ILS,762.28,LD LTS 18-64,PAYMENTS TO CLIENTS (DIRECT PAYMENTS),2103245567,1000061886
09.04.2021,ADULT SOCIAL CARE,PEOPLEPLUS ILS,780.00,LD LTS 18-64,PAYMENTS TO CLIENTS (DIRECT PAYMENTS),2103245215,1000061886
09.04.2021,ADULT SOCIAL CARE,PEOPLEPLUS ILS,784.08,LD LTS 18-64,PAYMENTS TO CLIENTS (DIRECT PAYMENTS),2103245127,1000061886
09.04.2021,ADULT SOCIAL CARE,PEOPLEPLUS ILS,789.60,LD LTS 18-64,PAYMENTS TO CLIENTS (DIRECT PAYMENTS),2103245535,1000061886
09.04.2021,ADULT SOCIAL CARE,PEOPLEPLUS ILS,794.00,LD LTS 18-64,PAYMENTS TO CLIENTS (DIRECT PAYMENTS),2103245094,1000061886
09.04.2021,ADULT SOCIAL CARE,PEOPLEPLUS ILS,800.00,LD LTS 18-64,PAYMENTS TO CLIENTS (DIRECT PAYMENTS),2103244969,1000061886
09.04.2021,ADULT SOCIAL CARE,PEOPLEPLUS ILS,811.84,LD LTS 18-64,PAYMENTS TO CLIENTS (DIRECT PAYMENTS),2103245576,1000061886
09.04.2021,ADULT SOCIAL CARE,PEOPLEPLUS ILS,852.04,LD LTS 18-64,PAYMENTS TO CLIENTS (DIRECT PAYMENTS),2103245556,1000061886
09.04.2021,ADULT SOCIAL CARE,PEOPLEPLUS ILS,860.00,LD LTS 18-64,PAYMENTS TO CLIENTS (DIRECT PAYMENTS),2103245106,1000061886
09.04.2021,ADULT SOCIAL CARE,PEOPLEPLUS ILS,890.84,LD LTS 18-64,PAYMENTS TO CLIENTS (DIRECT PAYMENTS),2103245582,1000061886
09.04.2021,ADULT SOCIAL CARE,PEOPLEPLUS ILS,896.80,LD LTS 18-64,PAYMENTS TO CLIENTS (DIRECT PAYMENTS),2103245318,1000061886
09.04.2021,ADULT SOCIAL CARE,PEOPLEPLUS ILS,904.96,LD LTS 18-64,PAYMENTS TO CLIENTS (DIRECT PAYMENTS),2103245055,1000061886
09.04.2021,ADULT SOCIAL CARE,PEOPLEPLUS ILS,970.20,LD LTS 18-64,PAYMENTS TO CLIENTS (DIRECT PAYMENTS),2103245523,1000061886
09.04.2021,ADULT SOCIAL CARE,PEOPLEPLUS ILS,988.00,LD LTS 18-64,PAYMENTS TO CLIENTS (DIRECT PAYMENTS),2103244993,1000061886
09.04.2021,ADULT SOCIAL CARE,PEOPLEPLUS ILS,997.20,LD LTS 18-64,PAYMENTS TO CLIENTS (DIRECT PAYMENTS),2103245492,1000061886
09.04.2021,ADULT SOCIAL CARE,PEOPLEPLUS ILS,"1,000.00",LD LTS 18-64,PAYMENTS TO CLIENTS (DIRECT PAYMENTS),2103245562,1000061886
09.04.2021,ADULT SOCIAL CARE,PEOPLEPLUS ILS,"1,000.00",LD LTS 18-64,PAYMENTS TO CLIENTS (DIRECT PAYMENTS),2103245249,1000061886
09.04.2021,ADULT SOCIAL CARE,PEOPLEPLUS ILS,"1,009.00",LD LTS 18-64,PAYMENTS TO CLIENTS (DIRECT PAYMENTS),2103245613,1000061886
09.04.2021,ADULT SOCIAL CARE,PEOPLEPLUS ILS,"1,013.48",LD LTS 18-64,PAYMENTS TO CLIENTS (DIRECT PAYMENTS),2103245032,1000061886
09.04.2021,ADULT SOCIAL CARE,PEOPLEPLUS ILS,"1,031.80",LD LTS 18-64,PAYMENTS TO CLIENTS (DIRECT PAYMENTS),2103245028,1000061886
09.04.2021,ADULT SOCIAL CARE,PEOPLEPLUS ILS,"1,040.60",LD LTS 18-64,PAYMENTS TO CLIENTS (DIRECT PAYMENTS),2103245100,1000061886
09.04.2021,ADULT SOCIAL CARE,PEOPLEPLUS ILS,"1,054.00",LD LTS 18-64,PAYMENTS TO CLIENTS (DIRECT PAYMENTS),2103245026,1000061886
09.04.2021,ADULT SOCIAL CARE,PEOPLEPLUS ILS,"1,112.56",LD LTS 18-64,PAYMENTS TO CLIENTS (DIRECT PAYMENTS),2103245274,1000061886
09.04.2021,ADULT SOCIAL CARE,PEOPLEPLUS ILS,"1,128.96",LD LTS 18-64,PAYMENTS TO CLIENTS (DIRECT PAYMENTS),2103245433,1000061886
09.04.2021,ADULT SOCIAL CARE,PEOPLEPLUS ILS,"1,170.00",LD LTS 18-64,PAYMENTS TO CLIENTS (DIRECT PAYMENTS),2103245446,1000061886
09.04.2021,ADULT SOCIAL CARE,PEOPLEPLUS ILS,"1,172.48",LD LTS 18-64,PAYMENTS TO CLIENTS (DIRECT PAYMENTS),2103245018,1000061886
09.04.2021,ADULT SOCIAL CARE,PEOPLEPLUS ILS,"1,182.80",LD LTS 18-64,PAYMENTS TO CLIENTS (DIRECT PAYMENTS),2103244984,1000061886
09.04.2021,ADULT SOCIAL CARE,PEOPLEPLUS ILS,"1,242.40",LD LTS 18-64,PAYMENTS TO CLIENTS (DIRECT PAYMENTS),2103245373,1000061886
09.04.2021,ADULT SOCIAL CARE,PEOPLEPLUS ILS,"1,244.00",LD LTS 18-64,PAYMENTS TO CLIENTS (DIRECT PAYMENTS),2103244976,1000061886
09.04.2021,ADULT SOCIAL CARE,PEOPLEPLUS ILS,"1,326.40",LD LTS 18-64,PAYMENTS TO CLIENTS (DIRECT PAYMENTS),2103245385,1000061886
09.04.2021,ADULT SOCIAL CARE,PEOPLEPLUS ILS,"1,359.24",LD LTS 18-64,PAYMENTS TO CLIENTS (DIRECT PAYMENTS),2103244954,1000061886
09.04.2021,ADULT SOCIAL CARE,PEOPLEPLUS ILS,"1,360.24",LD LTS 18-64,PAYMENTS TO CLIENTS (DIRECT PAYMENTS),2103245080,1000061886
09.04.2021,ADULT SOCIAL CARE,PEOPLEPLUS ILS,"1,433.20",LD LTS 18-64,PAYMENTS TO CLIENTS (DIRECT PAYMENTS),2103245324,1000061886
09.04.2021,ADULT SOCIAL CARE,PEOPLEPLUS ILS,"1,460.96",LD LTS 18-64,PAYMENTS TO CLIENTS (DIRECT PAYMENTS),2103245590,1000061886
09.04.2021,ADULT SOCIAL CARE,PEOPLEPLUS ILS,"1,480.20",LD LTS 18-64,PAYMENTS TO CLIENTS (DIRECT PAYMENTS),2103245003,1000061886
09.04.2021,ADULT SOCIAL CARE,PEOPLEPLUS ILS,"1,593.92",LD LTS 18-64,PAYMENTS TO CLIENTS (DIRECT PAYMENTS),2103245392,1000061886
09.04.2021,ADULT SOCIAL CARE,PEOPLEPLUS ILS,"1,605.76",LD LTS 18-64,PAYMENTS TO CLIENTS (DIRECT PAYMENTS),2103245312,1000061886
09.04.2021,ADULT SOCIAL CARE,PEOPLEPLUS ILS,"1,674.96",LD LTS 18-64,PAYMENTS TO CLIENTS (DIRECT PAYMENTS),2103245213,1000061886
09.04.2021,ADULT SOCIAL CARE,PEOPLEPLUS ILS,"1,689.00",LD LTS 18-64,PAYMENTS TO CLIENTS (DIRECT PAYMENTS),2103245532,1000061886
09.04.2021,ADULT SOCIAL CARE,PEOPLEPLUS ILS,"1,690.24",LD LTS 18-64,PAYMENTS TO CLIENTS (DIRECT PAYMENTS),2103245470,1000061886
09.04.2021,ADULT SOCIAL CARE,PEOPLEPLUS ILS,"1,693.36",LD LTS 18-64,PAYMENTS TO CLIENTS (DIRECT PAYMENTS),2103245146,1000061886
09.04.2021,ADULT SOCIAL CARE,PEOPLEPLUS ILS,"1,696.80",LD LTS 18-64,PAYMENTS TO CLIENTS (DIRECT PAYMENTS),2103245242,1000061886
09.04.2021,ADULT SOCIAL CARE,PEOPLEPLUS ILS,"1,730.80",LD LTS 18-64,PAYMENTS TO CLIENTS (DIRECT PAYMENTS),2103245290,1000061886
09.04.2021,ADULT SOCIAL CARE,PEOPLEPLUS ILS,"1,817.12",LD LTS 18-64,PAYMENTS TO CLIENTS (DIRECT PAYMENTS),2103245099,1000061886
09.04.2021,ADULT SOCIAL CARE,PEOPLEPLUS ILS,"1,823.48",LD LTS 18-64,PAYMENTS TO CLIENTS (DIRECT PAYMENTS),2103245110,1000061886
09.04.2021,ADULT SOCIAL CARE,PEOPLEPLUS ILS,"1,829.60",LD LTS 18-64,PAYMENTS TO CLIENTS (DIRECT PAYMENTS),2103245122,1000061886
09.04.2021,ADULT SOCIAL CARE,PEOPLEPLUS ILS,"1,832.64",LD LTS 18-64,PAYMENTS TO CLIENTS (DIRECT PAYMENTS),2103245063,1000061886
09.04.2021,ADULT SOCIAL CARE,PEOPLEPLUS ILS,"1,888.28",LD LTS 18-64,PAYMENTS TO CLIENTS (DIRECT PAYMENTS),2103245506,1000061886
09.04.2021,ADULT SOCIAL CARE,PEOPLEPLUS ILS,"2,025.00",LD LTS 18-64,PAYMENTS TO CLIENTS (DIRECT PAYMENTS),2103245277,1000061886
09.04.2021,ADULT SOCIAL CARE,PEOPLEPLUS ILS,"2,090.00",LD LTS 18-64,PAYMENTS TO CLIENTS (DIRECT PAYMENTS),2103245355,1000061886
09.04.2021,ADULT SOCIAL CARE,PEOPLEPLUS ILS,"2,097.56",LD LTS 18-64,PAYMENTS TO CLIENTS (DIRECT PAYMENTS),2103245016,1000061886
09.04.2021,ADULT SOCIAL CARE,PEOPLEPLUS ILS,"2,131.20",LD LTS 18-64,PAYMENTS TO CLIENTS (DIRECT PAYMENTS),2103244939,1000061886
09.04.2021,ADULT SOCIAL CARE,PEOPLEPLUS ILS,"2,194.88",LD LTS 18-64,PAYMENTS TO CLIENTS (DIRECT PAYMENTS),2103245594,1000061886
09.04.2021,ADULT SOCIAL CARE,PEOPLEPLUS ILS,"2,289.28",LD LTS 18-64,PAYMENTS TO CLIENTS (DIRECT PAYMENTS),2103245329,1000061886
09.04.2021,ADULT SOCIAL CARE,PEOPLEPLUS ILS,"2,494.00",LD LTS 18-64,PAYMENTS TO CLIENTS (DIRECT PAYMENTS),2103245269,1000061886
09.04.2021,ADULT SOCIAL CARE,PEOPLEPLUS ILS,"2,550.80",LD LTS 18-64,PAYMENTS TO CLIENTS (DIRECT PAYMENTS),2103245311,1000061886
09.04.2021,ADULT SOCIAL CARE,PEOPLEPLUS ILS,"2,668.40",LD LTS 18-64,PAYMENTS TO CLIENTS (DIRECT PAYMENTS),2103245220,1000061886
09.04.2021,ADULT SOCIAL CARE,PEOPLEPLUS ILS,"2,769.00",LD LTS 18-64,PAYMENTS TO CLIENTS (DIRECT PAYMENTS),2103245101,1000061886
09.04.2021,ADULT SOCIAL CARE,PEOPLEPLUS ILS,"2,865.00",LD LTS 18-64,PAYMENTS TO CLIENTS (DIRECT PAYMENTS),2103245568,1000061886
09.04.2021,ADULT SOCIAL CARE,PEOPLEPLUS ILS,"2,889.40",LD LTS 18-64,PAYMENTS TO CLIENTS (DIRECT PAYMENTS),2103245398,1000061886
09.04.2021,ADULT SOCIAL CARE,PEOPLEPLUS ILS,"2,906.00",LD LTS 18-64,PAYMENTS TO CLIENTS (DIRECT PAYMENTS),2103245019,1000061886
09.04.2021,ADULT SOCIAL CARE,PEOPLEPLUS ILS,"2,918.00",LD LTS 18-64,PAYMENTS TO CLIENTS (DIRECT PAYMENTS),2103245501,1000061886
09.04.2021,ADULT SOCIAL CARE,PEOPLEPLUS ILS,"3,106.52",LD LTS 18-64,PAYMENTS TO CLIENTS (DIRECT PAYMENTS),2103245371,1000061886
09.04.2021,ADULT SOCIAL CARE,PEOPLEPLUS ILS,"3,795.20",LD LTS 18-64,PAYMENTS TO CLIENTS (DIRECT PAYMENTS),2103244997,1000061886
09.04.2021,ADULT SOCIAL CARE,PEOPLEPLUS ILS,"3,913.00",LD LTS 18-64,PAYMENTS TO CLIENTS (DIRECT PAYMENTS),2103245245,1000061886
09.04.2021,ADULT SOCIAL CARE,PEOPLEPLUS ILS,"4,242.00",LD LTS 18-64,PAYMENTS TO CLIENTS (DIRECT PAYMENTS),2103244959,1000061886
09.04.2021,ADULT SOCIAL CARE,PEOPLEPLUS ILS,"4,524.80",LD LTS 18-64,PAYMENTS TO CLIENTS (DIRECT PAYMENTS),2103245420,1000061886
09.04.2021,ADULT SOCIAL CARE,PEOPLEPLUS ILS,"4,629.20",LD LTS 18-64,PAYMENTS TO CLIENTS (DIRECT PAYMENTS),2103245056,1000061886
09.04.2021,ADULT SOCIAL CARE,PEOPLEPLUS ILS,"7,997.92",LD LTS 18-64,PAYMENTS TO CLIENTS (DIRECT PAYMENTS),2103245502,1000061886
09.04.2021,ADULT SOCIAL CARE,PEOPLEPLUS ILS,"9,126.80",LD LTS 18-64,PAYMENTS TO CLIENTS (DIRECT PAYMENTS),2103245482,1000061886
09.04.2021,ADULT SOCIAL CARE,PEOPLEPLUS ILS,"11,809.20",LD LTS 18-64,PAYMENTS TO CLIENTS (DIRECT PAYMENTS),2103245488,1000061886
09.04.2021,ADULT SOCIAL CARE,PEOPLEPLUS ILS,"12,619.20",LD LTS 18-64,PAYMENTS TO CLIENTS (DIRECT PAYMENTS),2103245304,1000061886
09.04.2021,ADULT SOCIAL CARE,PEOPLEPLUS ILS,"12,619.20",LD LTS 18-64,PAYMENTS TO CLIENTS (DIRECT PAYMENTS),2103245302,1000061886
09.04.2021,ADULT SOCIAL CARE,FRESH IDEAS & SOLUTIONS SERVICES CIC,465.64,LD LTS 18-64,PAYMENTS TO CLIENTS (DIRECT PAYMENTS),2103245593,1000070832
09.04.2021,ADULT SOCIAL CARE,FRESH IDEAS & SOLUTIONS SERVICES CIC,740.00,LD LTS 18-64,PAYMENTS TO CLIENTS (DIRECT PAYMENTS),2103245592,1000070832
09.04.2021,ADULT SOCIAL CARE,FRESH IDEAS & SOLUTIONS SERVICES CIC,791.84,LD LTS 18-64,PAYMENTS TO CLIENTS (DIRECT PAYMENTS),2103245058,1000070832
09.04.2021,ADULT SOCIAL CARE,FRESH IDEAS & SOLUTIONS SERVICES CIC,875.60,LD LTS 18-64,PAYMENTS TO CLIENTS (DIRECT PAYMENTS),2103245350,1000070832
09.04.2021,ADULT SOCIAL CARE,FRESH IDEAS & SOLUTIONS SERVICES CIC,900.00,LD LTS 18-64,PAYMENTS TO CLIENTS (DIRECT PAYMENTS),2103245405,1000070832
09.04.2021,ADULT SOCIAL CARE,FRESH IDEAS & SOLUTIONS SERVICES CIC,"1,047.52",LD LTS 18-64,PAYMENTS TO CLIENTS (DIRECT PAYMENTS),2103245539,1000070832
09.04.2021,ADULT SOCIAL CARE,FRESH IDEAS & SOLUTIONS SERVICES CIC,"1,848.00",LD LTS 18-64,PAYMENTS TO CLIENTS (DIRECT PAYMENTS),2103245656,1000070832
09.04.2021,ADULT SOCIAL CARE,FRESH IDEAS & SOLUTIONS SERVICES CIC,"2,618.80",LD LTS 18-64,PAYMENTS TO CLIENTS (DIRECT PAYMENTS),2103245291,1000070832
09.04.2021,ADULT SOCIAL CARE,REDACTED PERSONAL DATA,"2,262.40",LD LTS 18-64,PAYMENTS TO CLIENTS (DIRECT PAYMENTS),REDACTED,REDACTED
09.04.2021,ADULT SOCIAL CARE,REDACTED PERSONAL DATA,"3,923.12",LD LTS 18-64,PAYMENTS TO CLIENTS (DIRECT PAYMENTS),REDACTED,REDACTED
09.04.2021,ADULT SOCIAL CARE,REDACTED PERSONAL DATA,698.72,LD LTS 18-64,PAYMENTS TO CLIENTS (DIRECT PAYMENTS),REDACTED,REDACTED
09.04.2021,ADULT SOCIAL CARE,REDACTED PERSONAL DATA,"6,287.92",LD LTS 18-64,PAYMENTS TO CLIENTS (DIRECT PAYMENTS),REDACTED,REDACTED
09.04.2021,ADULT SOCIAL CARE,REDACTED PERSONAL DATA,"1,829.92",LD LTS 18-64,PAYMENTS TO CLIENTS (DIRECT PAYMENTS),REDACTED,REDACTED
09.04.2021,ADULT SOCIAL CARE,REDACTED PERSONAL DATA,"1,979.60",LD LTS 18-64,PAYMENTS TO CLIENTS (DIRECT PAYMENTS),REDACTED,REDACTED
09.04.2021,ADULT SOCIAL CARE,REDACTED PERSONAL DATA,"8,484.60",LD LTS 18-64,PAYMENTS TO CLIENTS (DIRECT PAYMENTS),REDACTED,REDACTED
09.04.2021,ADULT SOCIAL CARE,REDACTED PERSONAL DATA,288.80,LD LTS 18-64,PAYMENTS TO CLIENTS (DIRECT PAYMENTS),REDACTED,REDACTED
09.04.2021,ADULT SOCIAL CARE,REDACTED PERSONAL DATA,"1,534.00",LD LTS 18-64,PAYMENTS TO CLIENTS (DIRECT PAYMENTS),REDACTED,REDACTED
09.04.2021,ADULT SOCIAL CARE,REDACTED PERSONAL DATA,"2,158.60",LD LTS 18-64,PAYMENTS TO CLIENTS (DIRECT PAYMENTS),REDACTED,REDACTED
09.04.2021,ADULT SOCIAL CARE,REDACTED PERSONAL DATA,"3,864.64",LD LTS 18-64,PAYMENTS TO CLIENTS (DIRECT PAYMENTS),REDACTED,REDACTED
09.04.2021,ADULT SOCIAL CARE,REDACTED PERSONAL DATA,"4,932.10",LD LTS 18-64,PAYMENTS TO CLIENTS (DIRECT PAYMENTS),REDACTED,REDACTED
09.04.2021,ADULT SOCIAL CARE,REDACTED PERSONAL DATA,"1,420.12",LD LTS 18-64,PAYMENTS TO CLIENTS (DIRECT PAYMENTS),REDACTED,REDACTED
09.04.2021,ADULT SOCIAL CARE,REDACTED PERSONAL DATA,594.40,LD LTS 18-64,PAYMENTS TO CLIENTS (DIRECT PAYMENTS),REDACTED,REDACTED
09.04.2021,ADULT SOCIAL CARE,REDACTED PERSONAL DATA,414.80,LD LTS 18-64,PAYMENTS TO CLIENTS (DIRECT PAYMENTS),REDACTED,REDACTED
09.04.2021,ADULT SOCIAL CARE,REDACTED PERSONAL DATA,522.60,LD LTS 18-64,PAYMENTS TO CLIENTS (DIRECT PAYMENTS),REDACTED,REDACTED
09.04.2021,ADULT SOCIAL CARE,REDACTED PERSONAL DATA,282.80,LD LTS 18-64,PAYMENTS TO CLIENTS (DIRECT PAYMENTS),REDACTED,REDACTED
09.04.2021,ADULT SOCIAL CARE,REDACTED PERSONAL DATA,"1,368.32",LD LTS 18-64,PAYMENTS TO CLIENTS (DIRECT PAYMENTS),REDACTED,REDACTED
09.04.2021,ADULT SOCIAL CARE,REDACTED PERSONAL DATA,"2,317.60",LD LTS 18-64,PAYMENTS TO CLIENTS (DIRECT PAYMENTS),REDACTED,REDACTED
09.04.2021,ADULT SOCIAL CARE,REDACTED PERSONAL DATA,"1,980.00",LD LTS 18-64,PAYMENTS TO CLIENTS (DIRECT PAYMENTS),REDACTED,REDACTED
09.04.2021,ADULT SOCIAL CARE,REDACTED PERSONAL DATA,522.60,LD LTS 18-64,PAYMENTS TO CLIENTS (DIRECT PAYMENTS),REDACTED,REDACTED
09.04.2021,ADULT SOCIAL CARE,REDACTED PERSONAL DATA,"6,644.40",LD LTS 18-64,PAYMENTS TO CLIENTS (DIRECT PAYMENTS),REDACTED,REDACTED
09.04.2021,ADULT SOCIAL CARE,REDACTED PERSONAL DATA,"1,025.20",LD LTS 18-64,PAYMENTS TO CLIENTS (DIRECT PAYMENTS),REDACTED,REDACTED
09.04.2021,ADULT SOCIAL CARE,REDACTED PERSONAL DATA,327.20,LD LTS 18-64,PAYMENTS TO CLIENTS (DIRECT PAYMENTS),REDACTED,REDACTED
09.04.2021,ADULT SOCIAL CARE,REDACTED PERSONAL DATA,809.80,LD LTS 18-64,PAYMENTS TO CLIENTS (DIRECT PAYMENTS),REDACTED,REDACTED
09.04.2021,ADULT SOCIAL CARE,REDACTED PERSONAL DATA,300.00,LD LTS 18-64,PAYMENTS TO CLIENTS (DIRECT PAYMENTS),REDACTED,REDACTED
09.04.2021,ADULT SOCIAL CARE,REDACTED PERSONAL DATA,"1,357.44",LD LTS 18-64,PAYMENTS TO CLIENTS (DIRECT PAYMENTS),REDACTED,REDACTED
09.04.2021,ADULT SOCIAL CARE,REDACTED PERSONAL DATA,"2,753.14",LD LTS 18-64,PAYMENTS TO CLIENTS (DIRECT PAYMENTS),REDACTED,REDACTED
09.04.2021,ADULT SOCIAL CARE,REDACTED PERSONAL DATA,738.00,LD LTS 18-64,PAYMENTS TO CLIENTS (DIRECT PAYMENTS),REDACTED,REDACTED
09.04.2021,ADULT SOCIAL CARE,REDACTED PERSONAL DATA,282.80,LD LTS 18-64,PAYMENTS TO CLIENTS (DIRECT PAYMENTS),REDACTED,REDACTED
09.04.2021,ADULT SOCIAL CARE,REDACTED PERSONAL DATA,320.00,LD LTS 18-64,PAYMENTS TO CLIENTS (DIRECT PAYMENTS),REDACTED,REDACTED
09.04.2021,ADULT SOCIAL CARE,REDACTED PERSONAL DATA,"2,116.00",LD LTS 18-64,PAYMENTS TO CLIENTS (DIRECT PAYMENTS),REDACTED,REDACTED
09.04.2021,ADULT SOCIAL CARE,REDACTED PERSONAL DATA,639.20,LD LTS 18-64,PAYMENTS TO CLIENTS (DIRECT PAYMENTS),REDACTED,REDACTED
09.04.2021,ADULT SOCIAL CARE,REDACTED PERSONAL DATA,888.84,LD LTS 18-64,PAYMENTS TO CLIENTS (DIRECT PAYMENTS),REDACTED,REDACTED
09.04.2021,ADULT SOCIAL CARE,REDACTED PERSONAL DATA,376.00,LD LTS 18-64,PAYMENTS TO CLIENTS (DIRECT PAYMENTS),REDACTED,REDACTED
09.04.2021,ADULT SOCIAL CARE,REDACTED PERSONAL DATA,718.00,LD LTS 18-64,PAYMENTS TO CLIENTS (DIRECT PAYMENTS),REDACTED,REDACTED
09.04.2021,ADULT SOCIAL CARE,REDACTED PERSONAL DATA,"1,290.16",LD LTS 18-64,PAYMENTS TO CLIENTS (DIRECT PAYMENTS),REDACTED,REDACTED
09.04.2021,ADULT SOCIAL CARE,REDACTED PERSONAL DATA,"1,532.68",LD LTS 18-64,PAYMENTS TO CLIENTS (DIRECT PAYMENTS),REDACTED,REDACTED
09.04.2021,ADULT SOCIAL CARE,REDACTED PERSONAL DATA,"1,532.92",LD LTS 18-64,PAYMENTS TO CLIENTS (DIRECT PAYMENTS),REDACTED,REDACTED
09.04.2021,ADULT SOCIAL CARE,REDACTED PERSONAL DATA,"5,026.00",LD LTS 18-64,PAYMENTS TO CLIENTS (DIRECT PAYMENTS),REDACTED,REDACTED
09.04.2021,ADULT SOCIAL CARE,REDACTED PERSONAL DATA,"6,286.08",LD LTS 18-64,PAYMENTS TO CLIENTS (DIRECT PAYMENTS),REDACTED,REDACTED
09.04.2021,ADULT SOCIAL CARE,REDACTED PERSONAL DATA,"1,033.72",LD LTS 18-64,PAYMENTS TO CLIENTS (DIRECT PAYMENTS),REDACTED,REDACTED
09.04.2021,ADULT SOCIAL CARE,REDACTED PERSONAL DATA,"2,347.24",LD LTS 18-64,PAYMENTS TO CLIENTS (DIRECT PAYMENTS),REDACTED,REDACTED
09.04.2021,ADULT SOCIAL CARE,REDACTED PERSONAL DATA,"1,746.16",LD LTS 18-64,PAYMENTS TO CLIENTS (DIRECT PAYMENTS),REDACTED,REDACTED
09.04.2021,ADULT SOCIAL CARE,REDACTED PERSONAL DATA,"2,660.20",LD LTS 18-64,PAYMENTS TO CLIENTS (DIRECT PAYMENTS),REDACTED,REDACTED
09.04.2021,ADULT SOCIAL CARE,REDACTED PERSONAL DATA,676.00,LD LTS 18-64,PAYMENTS TO CLIENTS (DIRECT PAYMENTS),REDACTED,REDACTED
09.04.2021,ADULT SOCIAL CARE,REDACTED PERSONAL DATA,"1,293.44",LD LTS 18-64,PAYMENTS TO CLIENTS (DIRECT PAYMENTS),REDACTED,REDACTED
09.04.2021,ADULT SOCIAL CARE,REDACTED PERSONAL DATA,962.76,LD LTS 18-64,PAYMENTS TO CLIENTS (DIRECT PAYMENTS),REDACTED,REDACTED
09.04.2021,ADULT SOCIAL CARE,REDACTED PERSONAL DATA,444.04,LD LTS 18-64,PAYMENTS TO CLIENTS (DIRECT PAYMENTS),REDACTED,REDACTED
09.04.2021,ADULT SOCIAL CARE,REDACTED PERSONAL DATA,"12,580.00",LD LTS 18-64,PAYMENTS TO CLIENTS (DIRECT PAYMENTS),REDACTED,REDACTED
09.04.2021,ADULT SOCIAL CARE,REDACTED PERSONAL DATA,260.00,LD LTS 18-64,PAYMENTS TO CLIENTS (DIRECT PAYMENTS),REDACTED,REDACTED
09.04.2021,ADULT SOCIAL CARE,REDACTED PERSONAL DATA,502.60,LD LTS 18-64,PAYMENTS TO CLIENTS (DIRECT PAYMENTS),REDACTED,REDACTED
09.04.2021,ADULT SOCIAL CARE,REDACTED PERSONAL DATA,956.16,LD LTS 18-64,PAYMENTS TO CLIENTS (DIRECT PAYMENTS),REDACTED,REDACTED
09.04.2021,ADULT SOCIAL CARE,REDACTED PERSONAL DATA,"1,400.00",LD LTS 18-64,PAYMENTS TO CLIENTS (DIRECT PAYMENTS),REDACTED,REDACTED
09.04.2021,ADULT SOCIAL CARE,REDACTED PERSONAL DATA,"2,736.00",LD LTS 18-64,PAYMENTS TO CLIENTS (DIRECT PAYMENTS),REDACTED,REDACTED
09.04.2021,ADULT SOCIAL CARE,REDACTED PERSONAL DATA,359.36,LD LTS 18-64,PAYMENTS TO CLIENTS (DIRECT PAYMENTS),REDACTED,REDACTED
09.04.2021,ADULT SOCIAL CARE,REDACTED PERSONAL DATA,922.76,LD LTS 18-64,PAYMENTS TO CLIENTS (DIRECT PAYMENTS),REDACTED,REDACTED
09.04.2021,ADULT SOCIAL CARE,REDACTED PERSONAL DATA,460.04,LD LTS 18-64,PAYMENTS TO CLIENTS (DIRECT PAYMENTS),REDACTED,REDACTED
09.04.2021,ADULT SOCIAL CARE,REDACTED PERSONAL DATA,430.80,LD LTS 18-64,PAYMENTS TO CLIENTS (DIRECT PAYMENTS),REDACTED,REDACTED
09.04.2021,ADULT SOCIAL CARE,REDACTED PERSONAL DATA,858.88,LD LTS 18-64,PAYMENTS TO CLIENTS (DIRECT PAYMENTS),REDACTED,REDACTED
09.04.2021,ADULT SOCIAL CARE,REDACTED PERSONAL DATA,838.88,LD LTS 18-64,PAYMENTS TO CLIENTS (DIRECT PAYMENTS),REDACTED,REDACTED
09.04.2021,ADULT SOCIAL CARE,KEYRING-LIVING SUPPORT NETWORKS LTD,254.08,LD LTS 18-64,SUPPORTED LIVING,2103245764,1486496
09.04.2021,ADULT SOCIAL CARE,KEYRING-LIVING SUPPORT NETWORKS LTD,254.08,LD LTS 18-64,SUPPORTED LIVING,2103245750,1486496
09.04.2021,ADULT SOCIAL CARE,KEYRING-LIVING SUPPORT NETWORKS LTD,317.60,LD LTS 18-64,SUPPORTED LIVING,2103245753,1486496
09.04.2021,ADULT SOCIAL CARE,GRANGE FARM COMPLEX,"1,778.36",LD LTS 18-64,SUPPORTED LIVING,2103245418,11086081
09.04.2021,ADULT SOCIAL CARE,CARE O LINE,"1,760.00",LD LTS 18-64,SUPPORTED LIVING,2103245749,11241743
09.04.2021,ADULT SOCIAL CARE,CARE O LINE,"2,200.00",LD LTS 18-64,SUPPORTED LIVING,2103245752,11241743
09.04.2021,ADULT SOCIAL CARE,CONTACT PROFESSIONALS,465.00,LD LTS 18-64,SUPPORTED LIVING,2103245759,1000057263
09.04.2021,ADULT SOCIAL CARE,CONTACT PROFESSIONALS,532.00,LD LTS 18-64,SUPPORTED LIVING,2103245745,1000057263
09.04.2021,ADULT SOCIAL CARE,DARETHEALTHCARE UK LTD,652.31,LD LTS 18-64,SUPPORTED LIVING,2103245760,1000059149
09.04.2021,ADULT SOCIAL CARE,REDACTED PERSONAL DATA,"1,032.16",LD LTS 18-64,SUPPORTED LIVING,REDACTED,REDACTED
09.04.2021,ADULT SOCIAL CARE,PEOPLEPLUS ILS,-445.60,LD LTS 65+,DISCRETIONARY FLEXIBLE FEES & INCOME,2103245265,1000061886
09.04.2021,ADULT SOCIAL CARE,PEOPLEPLUS ILS,"1,033.17",LD LTS 65+,PAYMENTS TO CLIENTS (DIRECT PAYMENTS),2103245384,1000061886
09.04.2021,ADULT SOCIAL CARE,PEOPLEPLUS ILS,480.76,MEM LTS 18-64,PAYMENTS TO CLIENTS (DIRECT PAYMENTS),2103245580,1000061886
09.04.2021,ADULT SOCIAL CARE,PEOPLEPLUS ILS,"1,184.00",MEM LTS 18-64,PAYMENTS TO CLIENTS (DIRECT PAYMENTS),2103245516,1000061886
09.04.2021,ADULT SOCIAL CARE,REDACTED PERSONAL DATA,256.00,MEM LTS 18-64,SUPPORTED LIVING,REDACTED,REDACTED
09.04.2021,ADULT SOCIAL CARE,PEOPLEPLUS ILS,-274.48,MEM LTS 65+,DISCRETIONARY FLEXIBLE FEES & INCOME,2103245203,1000061886
09.04.2021,ADULT SOCIAL CARE,REDACTED PERSONAL DATA,-309.64,MEM LTS 65+,DISCRETIONARY FLEXIBLE FEES & INCOME,REDACTED,REDACTED
09.04.2021,ADULT SOCIAL CARE,REDACTED PERSONAL DATA,"-1,219.00",MEM LTS 65+,DISCRETIONARY FLEXIBLE FEES & INCOME,REDACTED,REDACTED
09.04.2021,ADULT SOCIAL CARE,PEOPLEPLUS ILS,989.80,MEM LTS 65+,PAYMENTS TO CLIENTS (DIRECT PAYMENTS),2103245204,1000061886
09.04.2021,ADULT SOCIAL CARE,PEOPLEPLUS ILS,"1,221.76",MEM LTS 65+,PAYMENTS TO CLIENTS (DIRECT PAYMENTS),2103245561,1000061886
09.04.2021,ADULT SOCIAL CARE,PEOPLEPLUS ILS,"2,191.56",MEM LTS 65+,PAYMENTS TO CLIENTS (DIRECT PAYMENTS),2103245513,1000061886
09.04.2021,ADULT SOCIAL CARE,REDACTED PERSONAL DATA,"1,345.44",MEM LTS 65+,PAYMENTS TO CLIENTS (DIRECT PAYMENTS),REDACTED,REDACTED
09.04.2021,ADULT SOCIAL CARE,REDACTED PERSONAL DATA,"5,359.06",MEM LTS 65+,PAYMENTS TO CLIENTS (DIRECT PAYMENTS),REDACTED,REDACTED
09.04.2021,ADULT SOCIAL CARE,REDACTED PERSONAL DATA,"2,678.32",MEM LTS 65+,PAYMENTS TO CLIENTS (DIRECT PAYMENTS),REDACTED,REDACTED
09.04.2021,ADULT SOCIAL CARE,PEOPLEPLUS ILS,-503.36,MH LTS 18-64,DISCRETIONARY FLEXIBLE FEES & INCOME,2103245639,1000061886
09.04.2021,ADULT SOCIAL CARE,PEOPLEPLUS ILS,-318.00,MH LTS 18-64,DISCRETIONARY FLEXIBLE FEES & INCOME,2103245630,1000061886
09.04.2021,ADULT SOCIAL CARE,THAMES HOMECARE SERVICE LTD,590.53,MH LTS 18-64,HOMECARE - SPOT,2103245704,1000079295
09.04.2021,ADULT SOCIAL CARE,PEOPLEPLUS ILS,274.00,MH LTS 18-64,PAYMENTS TO CLIENTS (DIRECT PAYMENTS),2103245185,1000061886
09.04.2021,ADULT SOCIAL CARE,PEOPLEPLUS ILS,287.20,MH LTS 18-64,PAYMENTS TO CLIENTS (DIRECT PAYMENTS),2103245012,1000061886
09.04.2021,ADULT SOCIAL CARE,PEOPLEPLUS ILS,287.96,MH LTS 18-64,PAYMENTS TO CLIENTS (DIRECT PAYMENTS),2103245422,1000061886
09.04.2021,ADULT SOCIAL CARE,PEOPLEPLUS ILS,293.44,MH LTS 18-64,PAYMENTS TO CLIENTS (DIRECT PAYMENTS),2103245198,1000061886
09.04.2021,ADULT SOCIAL CARE,PEOPLEPLUS ILS,308.00,MH LTS 18-64,PAYMENTS TO CLIENTS (DIRECT PAYMENTS),2103245438,1000061886
09.04.2021,ADULT SOCIAL CARE,PEOPLEPLUS ILS,316.80,MH LTS 18-64,PAYMENTS TO CLIENTS (DIRECT PAYMENTS),2103245341,1000061886
09.04.2021,ADULT SOCIAL CARE,PEOPLEPLUS ILS,318.00,MH LTS 18-64,PAYMENTS TO CLIENTS (DIRECT PAYMENTS),2103244949,1000061886
09.04.2021,ADULT SOCIAL CARE,PEOPLEPLUS ILS,327.44,MH LTS 18-64,PAYMENTS TO CLIENTS (DIRECT PAYMENTS),2103244948,1000061886
09.04.2021,ADULT SOCIAL CARE,PEOPLEPLUS ILS,334.00,MH LTS 18-64,PAYMENTS TO CLIENTS (DIRECT PAYMENTS),2103245159,1000061886
09.04.2021,ADULT SOCIAL CARE,PEOPLEPLUS ILS,334.00,MH LTS 18-64,PAYMENTS TO CLIENTS (DIRECT PAYMENTS),2103245079,1000061886
09.04.2021,ADULT SOCIAL CARE,PEOPLEPLUS ILS,364.00,MH LTS 18-64,PAYMENTS TO CLIENTS (DIRECT PAYMENTS),2103245130,1000061886
09.04.2021,ADULT SOCIAL CARE,PEOPLEPLUS ILS,373.36,MH LTS 18-64,PAYMENTS TO CLIENTS (DIRECT PAYMENTS),2103245209,1000061886
09.04.2021,ADULT SOCIAL CARE,PEOPLEPLUS ILS,373.36,MH LTS 18-64,PAYMENTS TO CLIENTS (DIRECT PAYMENTS),2103245174,1000061886
09.04.2021,ADULT SOCIAL CARE,PEOPLEPLUS ILS,373.36,MH LTS 18-64,PAYMENTS TO CLIENTS (DIRECT PAYMENTS),2103245108,1000061886
09.04.2021,ADULT SOCIAL CARE,PEOPLEPLUS ILS,385.76,MH LTS 18-64,PAYMENTS TO CLIENTS (DIRECT PAYMENTS),2103245360,1000061886
09.04.2021,ADULT SOCIAL CARE,PEOPLEPLUS ILS,394.00,MH LTS 18-64,PAYMENTS TO CLIENTS (DIRECT PAYMENTS),2103245598,1000061886
09.04.2021,ADULT SOCIAL CARE,PEOPLEPLUS ILS,413.96,MH LTS 18-64,PAYMENTS TO CLIENTS (DIRECT PAYMENTS),2103245214,1000061886
09.04.2021,ADULT SOCIAL CARE,PEOPLEPLUS ILS,427.92,MH LTS 18-64,PAYMENTS TO CLIENTS (DIRECT PAYMENTS),2103245093,1000061886
09.04.2021,ADULT SOCIAL CARE,PEOPLEPLUS ILS,440.16,MH LTS 18-64,PAYMENTS TO CLIENTS (DIRECT PAYMENTS),2103245008,1000061886
09.04.2021,ADULT SOCIAL CARE,PEOPLEPLUS ILS,454.00,MH LTS 18-64,PAYMENTS TO CLIENTS (DIRECT PAYMENTS),2103245223,1000061886
09.04.2021,ADULT SOCIAL CARE,PEOPLEPLUS ILS,486.48,MH LTS 18-64,PAYMENTS TO CLIENTS (DIRECT PAYMENTS),2103245010,1000061886
09.04.2021,ADULT SOCIAL CARE,PEOPLEPLUS ILS,504.40,MH LTS 18-64,PAYMENTS TO CLIENTS (DIRECT PAYMENTS),2103245525,1000061886
09.04.2021,ADULT SOCIAL CARE,PEOPLEPLUS ILS,547.52,MH LTS 18-64,PAYMENTS TO CLIENTS (DIRECT PAYMENTS),2103245339,1000061886
09.04.2021,ADULT SOCIAL CARE,PEOPLEPLUS ILS,559.84,MH LTS 18-64,PAYMENTS TO CLIENTS (DIRECT PAYMENTS),2103245545,1000061886
09.04.2021,ADULT SOCIAL CARE,PEOPLEPLUS ILS,565.60,MH LTS 18-64,PAYMENTS TO CLIENTS (DIRECT PAYMENTS),2103245051,1000061886
09.04.2021,ADULT SOCIAL CARE,PEOPLEPLUS ILS,573.00,MH LTS 18-64,PAYMENTS TO CLIENTS (DIRECT PAYMENTS),2103244953,1000061886
09.04.2021,ADULT SOCIAL CARE,PEOPLEPLUS ILS,587.84,MH LTS 18-64,PAYMENTS TO CLIENTS (DIRECT PAYMENTS),2103245075,1000061886
09.04.2021,ADULT SOCIAL CARE,PEOPLEPLUS ILS,609.84,MH LTS 18-64,PAYMENTS TO CLIENTS (DIRECT PAYMENTS),2103245005,1000061886
09.04.2021,ADULT SOCIAL CARE,PEOPLEPLUS ILS,657.08,MH LTS 18-64,PAYMENTS TO CLIENTS (DIRECT PAYMENTS),2103245308,1000061886
09.04.2021,ADULT SOCIAL CARE,PEOPLEPLUS ILS,659.60,MH LTS 18-64,PAYMENTS TO CLIENTS (DIRECT PAYMENTS),2103245102,1000061886
09.04.2021,ADULT SOCIAL CARE,PEOPLEPLUS ILS,694.16,MH LTS 18-64,PAYMENTS TO CLIENTS (DIRECT PAYMENTS),2103245309,1000061886
09.04.2021,ADULT SOCIAL CARE,PEOPLEPLUS ILS,694.24,MH LTS 18-64,PAYMENTS TO CLIENTS (DIRECT PAYMENTS),2103245017,1000061886
09.04.2021,ADULT SOCIAL CARE,PEOPLEPLUS ILS,"1,310.50",MH LTS 18-64,PAYMENTS TO CLIENTS (DIRECT PAYMENTS),2103245534,1000061886
09.04.2021,ADULT SOCIAL CARE,PEOPLEPLUS ILS,"2,311.60",MH LTS 18-64,PAYMENTS TO CLIENTS (DIRECT PAYMENTS),2103245129,1000061886
09.04.2021,ADULT SOCIAL CARE,REDACTED PERSONAL DATA,410.08,MH LTS 18-64,PAYMENTS TO CLIENTS (DIRECT PAYMENTS),REDACTED,REDACTED
09.04.2021,ADULT SOCIAL CARE,REDACTED PERSONAL DATA,"1,158.36",MH LTS 18-64,PAYMENTS TO CLIENTS (DIRECT PAYMENTS),REDACTED,REDACTED
09.04.2021,ADULT SOCIAL CARE,REDACTED PERSONAL DATA,396.00,MH LTS 18-64,PAYMENTS TO CLIENTS (DIRECT PAYMENTS),REDACTED,REDACTED
09.04.2021,ADULT SOCIAL CARE,OASIS CARE AND TRAINING AGENCY,824.20,MH LTS 18-64,SUPPORTED LIVING,2103245742,1000003687
09.04.2021,ADULT SOCIAL CARE,THAMES HOMECARE SERVICE LTD,472.42,MH LTS 65+,HOMECARE - SPOT,2103245737,1000079295
09.04.2021,ADULT SOCIAL CARE,PEOPLEPLUS ILS,253.00,MH LTS 65+,PAYMENTS TO CLIENTS (DIRECT PAYMENTS),2103245354,1000061886
09.04.2021,ADULT SOCIAL CARE,PEOPLEPLUS ILS,321.56,MH LTS 65+,PAYMENTS TO CLIENTS (DIRECT PAYMENTS),2103245117,1000061886
09.04.2021,ADULT SOCIAL CARE,PEOPLEPLUS ILS,"1,202.60",MH LTS 65+,PAYMENTS TO CLIENTS (DIRECT PAYMENTS),2103245619,1000061886
09.04.2021,ADULT SOCIAL CARE,PEOPLEPLUS ILS,"1,470.00",PHB- SOUTHWARK CCG,RECOVERABLE COSTS INCL. HEALTH,2103245033,1000061886
09.04.2021,ADULT SOCIAL CARE,PEOPLEPLUS ILS,"4,127.92",PHB- SOUTHWARK CCG,RECOVERABLE COSTS INCL. HEALTH,2103245131,1000061886
09.04.2021,ADULT SOCIAL CARE,PEOPLEPLUS ILS,"6,673.20",PHB- SOUTHWARK CCG,RECOVERABLE COSTS INCL. HEALTH,2103245437,1000061886
09.04.2021,ADULT SOCIAL CARE,REDACTED PERSONAL DATA,"9,079.20",PHB- SOUTHWARK CCG,RECOVERABLE COSTS INCL. HEALTH,REDACTED,REDACTED
09.04.2021,ADULT SOCIAL CARE,REDACTED PERSONAL DATA,"7,482.40",PHB- SOUTHWARK CCG,RECOVERABLE COSTS INCL. HEALTH,REDACTED,REDACTED
09.04.2021,ADULT SOCIAL CARE,REDACTED PERSONAL DATA,"2,549.52",PHB- SOUTHWARK CCG,RECOVERABLE COSTS INCL. HEALTH,REDACTED,REDACTED
09.04.2021,ADULT SOCIAL CARE,PEOPLEPLUS ILS,-541.20,PHY LTS 18-64,DISCRETIONARY FLEXIBLE FEES & INCOME,2103245067,1000061886
09.04.2021,ADULT SOCIAL CARE,REDACTED PERSONAL DATA,-359.04,PHY LTS 18-64,DISCRETIONARY FLEXIBLE FEES & INCOME,REDACTED,REDACTED
09.04.2021,ADULT SOCIAL CARE,REDACTED PERSONAL DATA,-326.96,PHY LTS 18-64,DISCRETIONARY FLEXIBLE FEES & INCOME,REDACTED,REDACTED
09.04.2021,ADULT SOCIAL CARE,THAMES HOMECARE SERVICE LTD,258.92,PHY LTS 18-64,HOMECARE - SPOT,2103245709,1000079295
09.04.2021,ADULT SOCIAL CARE,THAMES HOMECARE SERVICE LTD,286.18,PHY LTS 18-64,HOMECARE - SPOT,2103245674,1000079295
09.04.2021,ADULT SOCIAL CARE,THAMES HOMECARE SERVICE LTD,349.77,PHY LTS 18-64,HOMECARE - SPOT,2103245717,1000079295
09.04.2021,ADULT SOCIAL CARE,THAMES HOMECARE SERVICE LTD,363.40,PHY LTS 18-64,HOMECARE - SPOT,2103245696,1000079295
09.04.2021,ADULT SOCIAL CARE,THAMES HOMECARE SERVICE LTD,386.11,PHY LTS 18-64,HOMECARE - SPOT,2103245658,1000079295
09.04.2021,ADULT SOCIAL CARE,THAMES HOMECARE SERVICE LTD,563.27,PHY LTS 18-64,HOMECARE - SPOT,2103245707,1000079295
09.04.2021,ADULT SOCIAL CARE,THAMES HOMECARE SERVICE LTD,572.36,PHY LTS 18-64,HOMECARE - SPOT,2103245722,1000079295
09.04.2021,ADULT SOCIAL CARE,THAMES HOMECARE SERVICE LTD,572.36,PHY LTS 18-64,HOMECARE - SPOT,2103245680,1000079295
09.04.2021,ADULT SOCIAL CARE,THAMES HOMECARE SERVICE LTD,635.95,PHY LTS 18-64,HOMECARE - SPOT,2103245692,1000079295
09.04.2021,ADULT SOCIAL CARE,THAMES HOMECARE SERVICE LTD,649.58,PHY LTS 18-64,HOMECARE - SPOT,2103245726,1000079295
09.04.2021,ADULT SOCIAL CARE,THAMES HOMECARE SERVICE LTD,699.55,PHY LTS 18-64,HOMECARE - SPOT,2103245719,1000079295
09.04.2021,ADULT SOCIAL CARE,THAMES HOMECARE SERVICE LTD,844.91,PHY LTS 18-64,HOMECARE - SPOT,2103245672,1000079295
09.04.2021,ADULT SOCIAL CARE,PEOPLEPLUS ILS,265.64,PHY LTS 18-64,PAYMENTS TO CLIENTS (DIRECT PAYMENTS),2103245118,1000061886
09.04.2021,ADULT SOCIAL CARE,PEOPLEPLUS ILS,293.92,PHY LTS 18-64,PAYMENTS TO CLIENTS (DIRECT PAYMENTS),2103245022,1000061886
09.04.2021,ADULT SOCIAL CARE,PEOPLEPLUS ILS,295.04,PHY LTS 18-64,PAYMENTS TO CLIENTS (DIRECT PAYMENTS),2103245095,1000061886
09.04.2021,ADULT SOCIAL CARE,PEOPLEPLUS ILS,307.56,PHY LTS 18-64,PAYMENTS TO CLIENTS (DIRECT PAYMENTS),2103244986,1000061886
09.04.2021,ADULT SOCIAL CARE,PEOPLEPLUS ILS,365.00,PHY LTS 18-64,PAYMENTS TO CLIENTS (DIRECT PAYMENTS),2103245119,1000061886
09.04.2021,ADULT SOCIAL CARE,PEOPLEPLUS ILS,387.52,PHY LTS 18-64,PAYMENTS TO CLIENTS (DIRECT PAYMENTS),2103245625,1000061886
09.04.2021,ADULT SOCIAL CARE,PEOPLEPLUS ILS,388.40,PHY LTS 18-64,PAYMENTS TO CLIENTS (DIRECT PAYMENTS),2103245520,1000061886
09.04.2021,ADULT SOCIAL CARE,PEOPLEPLUS ILS,411.80,PHY LTS 18-64,PAYMENTS TO CLIENTS (DIRECT PAYMENTS),2103245476,1000061886
09.04.2021,ADULT SOCIAL CARE,PEOPLEPLUS ILS,429.92,PHY LTS 18-64,PAYMENTS TO CLIENTS (DIRECT PAYMENTS),2103245282,1000061886
09.04.2021,ADULT SOCIAL CARE,PEOPLEPLUS ILS,447.40,PHY LTS 18-64,PAYMENTS TO CLIENTS (DIRECT PAYMENTS),2103245514,1000061886
09.04.2021,ADULT SOCIAL CARE,PEOPLEPLUS ILS,472.36,PHY LTS 18-64,PAYMENTS TO CLIENTS (DIRECT PAYMENTS),2103244927,1000061886
09.04.2021,ADULT SOCIAL CARE,PEOPLEPLUS ILS,504.00,PHY LTS 18-64,PAYMENTS TO CLIENTS (DIRECT PAYMENTS),2103245334,1000061886
09.04.2021,ADULT SOCIAL CARE,PEOPLEPLUS ILS,505.40,PHY LTS 18-64,PAYMENTS TO CLIENTS (DIRECT PAYMENTS),2103245519,1000061886
09.04.2021,ADULT SOCIAL CARE,PEOPLEPLUS ILS,543.04,PHY LTS 18-64,PAYMENTS TO CLIENTS (DIRECT PAYMENTS),2103245624,1000061886
09.04.2021,ADULT SOCIAL CARE,PEOPLEPLUS ILS,579.60,PHY LTS 18-64,PAYMENTS TO CLIENTS (DIRECT PAYMENTS),2103245542,1000061886
09.04.2021,ADULT SOCIAL CARE,PEOPLEPLUS ILS,587.32,PHY LTS 18-64,PAYMENTS TO CLIENTS (DIRECT PAYMENTS),2103245366,1000061886
09.04.2021,ADULT SOCIAL CARE,PEOPLEPLUS ILS,598.40,PHY LTS 18-64,PAYMENTS TO CLIENTS (DIRECT PAYMENTS),2103245296,1000061886
09.04.2021,ADULT SOCIAL CARE,PEOPLEPLUS ILS,599.60,PHY LTS 18-64,PAYMENTS TO CLIENTS (DIRECT PAYMENTS),2103245413,1000061886
09.04.2021,ADULT SOCIAL CARE,PEOPLEPLUS ILS,608.04,PHY LTS 18-64,PAYMENTS TO CLIENTS (DIRECT PAYMENTS),2103245555,1000061886
09.04.2021,ADULT SOCIAL CARE,PEOPLEPLUS ILS,613.76,PHY LTS 18-64,PAYMENTS TO CLIENTS (DIRECT PAYMENTS),2103245478,1000061886
09.04.2021,ADULT SOCIAL CARE,PEOPLEPLUS ILS,613.76,PHY LTS 18-64,PAYMENTS TO CLIENTS (DIRECT PAYMENTS),2103245323,1000061886
09.04.2021,ADULT SOCIAL CARE,PEOPLEPLUS ILS,613.76,PHY LTS 18-64,PAYMENTS TO CLIENTS (DIRECT PAYMENTS),2103245126,1000061886
09.04.2021,ADULT SOCIAL CARE,PEOPLEPLUS ILS,613.76,PHY LTS 18-64,PAYMENTS TO CLIENTS (DIRECT PAYMENTS),2103244925,1000061886
09.04.2021,ADULT SOCIAL CARE,PEOPLEPLUS ILS,627.88,PHY LTS 18-64,PAYMENTS TO CLIENTS (DIRECT PAYMENTS),2103245035,1000061886
09.04.2021,ADULT SOCIAL CARE,PEOPLEPLUS ILS,627.88,PHY LTS 18-64,PAYMENTS TO CLIENTS (DIRECT PAYMENTS),2103245011,1000061886
09.04.2021,ADULT SOCIAL CARE,PEOPLEPLUS ILS,636.32,PHY LTS 18-64,PAYMENTS TO CLIENTS (DIRECT PAYMENTS),2103245332,1000061886
09.04.2021,ADULT SOCIAL CARE,PEOPLEPLUS ILS,642.04,PHY LTS 18-64,PAYMENTS TO CLIENTS (DIRECT PAYMENTS),2103245319,1000061886
09.04.2021,ADULT SOCIAL CARE,PEOPLEPLUS ILS,670.32,PHY LTS 18-64,PAYMENTS TO CLIENTS (DIRECT PAYMENTS),2103245194,1000061886
09.04.2021,ADULT SOCIAL CARE,PEOPLEPLUS ILS,678.72,PHY LTS 18-64,PAYMENTS TO CLIENTS (DIRECT PAYMENTS),2103245548,1000061886
09.04.2021,ADULT SOCIAL CARE,PEOPLEPLUS ILS,678.72,PHY LTS 18-64,PAYMENTS TO CLIENTS (DIRECT PAYMENTS),2103245426,1000061886
09.04.2021,ADULT SOCIAL CARE,PEOPLEPLUS ILS,684.44,PHY LTS 18-64,PAYMENTS TO CLIENTS (DIRECT PAYMENTS),2103245133,1000061886
09.04.2021,ADULT SOCIAL CARE,PEOPLEPLUS ILS,741.00,PHY LTS 18-64,PAYMENTS TO CLIENTS (DIRECT PAYMENTS),2103245081,1000061886
09.04.2021,ADULT SOCIAL CARE,PEOPLEPLUS ILS,769.28,PHY LTS 18-64,PAYMENTS TO CLIENTS (DIRECT PAYMENTS),2103245651,1000061886
09.04.2021,ADULT SOCIAL CARE,PEOPLEPLUS ILS,769.28,PHY LTS 18-64,PAYMENTS TO CLIENTS (DIRECT PAYMENTS),2103244951,1000061886
09.04.2021,ADULT SOCIAL CARE,PEOPLEPLUS ILS,786.20,PHY LTS 18-64,PAYMENTS TO CLIENTS (DIRECT PAYMENTS),2103245034,1000061886
09.04.2021,ADULT SOCIAL CARE,PEOPLEPLUS ILS,791.84,PHY LTS 18-64,PAYMENTS TO CLIENTS (DIRECT PAYMENTS),2103245549,1000061886
09.04.2021,ADULT SOCIAL CARE,PEOPLEPLUS ILS,796.88,PHY LTS 18-64,PAYMENTS TO CLIENTS (DIRECT PAYMENTS),2103245211,1000061886
09.04.2021,ADULT SOCIAL CARE,PEOPLEPLUS ILS,811.72,PHY LTS 18-64,PAYMENTS TO CLIENTS (DIRECT PAYMENTS),2103245604,1000061886
09.04.2021,ADULT SOCIAL CARE,PEOPLEPLUS ILS,840.00,PHY LTS 18-64,PAYMENTS TO CLIENTS (DIRECT PAYMENTS),2103245522,1000061886
09.04.2021,ADULT SOCIAL CARE,PEOPLEPLUS ILS,894.76,PHY LTS 18-64,PAYMENTS TO CLIENTS (DIRECT PAYMENTS),2103245480,1000061886
09.04.2021,ADULT SOCIAL CARE,PEOPLEPLUS ILS,938.96,PHY LTS 18-64,PAYMENTS TO CLIENTS (DIRECT PAYMENTS),2103245511,1000061886
09.04.2021,ADULT SOCIAL CARE,PEOPLEPLUS ILS,947.24,PHY LTS 18-64,PAYMENTS TO CLIENTS (DIRECT PAYMENTS),2103245321,1000061886
09.04.2021,ADULT SOCIAL CARE,PEOPLEPLUS ILS,947.40,PHY LTS 18-64,PAYMENTS TO CLIENTS (DIRECT PAYMENTS),2103245416,1000061886
09.04.2021,ADULT SOCIAL CARE,PEOPLEPLUS ILS,978.32,PHY LTS 18-64,PAYMENTS TO CLIENTS (DIRECT PAYMENTS),2103245239,1000061886
09.04.2021,ADULT SOCIAL CARE,PEOPLEPLUS ILS,981.40,PHY LTS 18-64,PAYMENTS TO CLIENTS (DIRECT PAYMENTS),2103245072,1000061886
09.04.2021,ADULT SOCIAL CARE,PEOPLEPLUS ILS,"1,009.68",PHY LTS 18-64,PAYMENTS TO CLIENTS (DIRECT PAYMENTS),2103245154,1000061886
09.04.2021,ADULT SOCIAL CARE,PEOPLEPLUS ILS,"1,023.80",PHY LTS 18-64,PAYMENTS TO CLIENTS (DIRECT PAYMENTS),2103245013,1000061886
09.04.2021,ADULT SOCIAL CARE,PEOPLEPLUS ILS,"1,052.64",PHY LTS 18-64,PAYMENTS TO CLIENTS (DIRECT PAYMENTS),2103245216,1000061886
09.04.2021,ADULT SOCIAL CARE,PEOPLEPLUS ILS,"1,117.08",PHY LTS 18-64,PAYMENTS TO CLIENTS (DIRECT PAYMENTS),2103245030,1000061886
09.04.2021,ADULT SOCIAL CARE,PEOPLEPLUS ILS,"1,122.80",PHY LTS 18-64,PAYMENTS TO CLIENTS (DIRECT PAYMENTS),2103245657,1000061886
09.04.2021,ADULT SOCIAL CARE,PEOPLEPLUS ILS,"1,146.40",PHY LTS 18-64,PAYMENTS TO CLIENTS (DIRECT PAYMENTS),2103245113,1000061886
09.04.2021,ADULT SOCIAL CARE,PEOPLEPLUS ILS,"1,150.52",PHY LTS 18-64,PAYMENTS TO CLIENTS (DIRECT PAYMENTS),2103245105,1000061886
09.04.2021,ADULT SOCIAL CARE,PEOPLEPLUS ILS,"1,165.20",PHY LTS 18-64,PAYMENTS TO CLIENTS (DIRECT PAYMENTS),2103245158,1000061886
09.04.2021,ADULT SOCIAL CARE,PEOPLEPLUS ILS,"1,168.24",PHY LTS 18-64,PAYMENTS TO CLIENTS (DIRECT PAYMENTS),2103245053,1000061886
09.04.2021,ADULT SOCIAL CARE,PEOPLEPLUS ILS,"1,187.76",PHY LTS 18-64,PAYMENTS TO CLIENTS (DIRECT PAYMENTS),2103245232,1000061886
09.04.2021,ADULT SOCIAL CARE,PEOPLEPLUS ILS,"1,193.48",PHY LTS 18-64,PAYMENTS TO CLIENTS (DIRECT PAYMENTS),2103245132,1000061886
09.04.2021,ADULT SOCIAL CARE,PEOPLEPLUS ILS,"1,250.04",PHY LTS 18-64,PAYMENTS TO CLIENTS (DIRECT PAYMENTS),2103245143,1000061886
09.04.2021,ADULT SOCIAL CARE,PEOPLEPLUS ILS,"1,278.32",PHY LTS 18-64,PAYMENTS TO CLIENTS (DIRECT PAYMENTS),2103245116,1000061886
09.04.2021,ADULT SOCIAL CARE,PEOPLEPLUS ILS,"1,330.00",PHY LTS 18-64,PAYMENTS TO CLIENTS (DIRECT PAYMENTS),2103245362,1000061886
09.04.2021,ADULT SOCIAL CARE,PEOPLEPLUS ILS,"1,371.44",PHY LTS 18-64,PAYMENTS TO CLIENTS (DIRECT PAYMENTS),2103245581,1000061886
09.04.2021,ADULT SOCIAL CARE,PEOPLEPLUS ILS,"1,412.16",PHY LTS 18-64,PAYMENTS TO CLIENTS (DIRECT PAYMENTS),2103245489,1000061886
09.04.2021,ADULT SOCIAL CARE,PEOPLEPLUS ILS,"1,426.00",PHY LTS 18-64,PAYMENTS TO CLIENTS (DIRECT PAYMENTS),2103245210,1000061886
09.04.2021,ADULT SOCIAL CARE,PEOPLEPLUS ILS,"1,520.88",PHY LTS 18-64,PAYMENTS TO CLIENTS (DIRECT PAYMENTS),2103245641,1000061886
09.04.2021,ADULT SOCIAL CARE,PEOPLEPLUS ILS,"1,624.00",PHY LTS 18-64,PAYMENTS TO CLIENTS (DIRECT PAYMENTS),2103245121,1000061886
09.04.2021,ADULT SOCIAL CARE,PEOPLEPLUS ILS,"1,733.56",PHY LTS 18-64,PAYMENTS TO CLIENTS (DIRECT PAYMENTS),2103245479,1000061886
09.04.2021,ADULT SOCIAL CARE,PEOPLEPLUS ILS,"1,909.40",PHY LTS 18-64,PAYMENTS TO CLIENTS (DIRECT PAYMENTS),2103245313,1000061886
09.04.2021,ADULT SOCIAL CARE,PEOPLEPLUS ILS,"2,013.60",PHY LTS 18-64,PAYMENTS TO CLIENTS (DIRECT PAYMENTS),2103245310,1000061886
09.04.2021,ADULT SOCIAL CARE,PEOPLEPLUS ILS,"2,173.00",PHY LTS 18-64,PAYMENTS TO CLIENTS (DIRECT PAYMENTS),2103245406,1000061886
09.04.2021,ADULT SOCIAL CARE,PEOPLEPLUS ILS,"2,646.80",PHY LTS 18-64,PAYMENTS TO CLIENTS (DIRECT PAYMENTS),2103245025,1000061886
09.04.2021,ADULT SOCIAL CARE,PEOPLEPLUS ILS,"3,307.52",PHY LTS 18-64,PAYMENTS TO CLIENTS (DIRECT PAYMENTS),2103245468,1000061886
09.04.2021,ADULT SOCIAL CARE,PEOPLEPLUS ILS,"3,576.40",PHY LTS 18-64,PAYMENTS TO CLIENTS (DIRECT PAYMENTS),2103245103,1000061886
09.04.2021,ADULT SOCIAL CARE,PEOPLEPLUS ILS,"4,118.92",PHY LTS 18-64,PAYMENTS TO CLIENTS (DIRECT PAYMENTS),2103245509,1000061886
09.04.2021,ADULT SOCIAL CARE,FRESH IDEAS & SOLUTIONS SERVICES CIC,712.72,PHY LTS 18-64,PAYMENTS TO CLIENTS (DIRECT PAYMENTS),2103245201,1000070832
09.04.2021,ADULT SOCIAL CARE,FRESH IDEAS & SOLUTIONS SERVICES CIC,870.00,PHY LTS 18-64,PAYMENTS TO CLIENTS (DIRECT PAYMENTS),2103245359,1000070832
09.04.2021,ADULT SOCIAL CARE,FRESH IDEAS & SOLUTIONS SERVICES CIC,"1,108.64",PHY LTS 18-64,PAYMENTS TO CLIENTS (DIRECT PAYMENTS),2103245109,1000070832
09.04.2021,ADULT SOCIAL CARE,REDACTED PERSONAL DATA,"1,583.68",PHY LTS 18-64,PAYMENTS TO CLIENTS (DIRECT PAYMENTS),REDACTED,REDACTED
09.04.2021,ADULT SOCIAL CARE,REDACTED PERSONAL DATA,543.20,PHY LTS 18-64,PAYMENTS TO CLIENTS (DIRECT PAYMENTS),REDACTED,REDACTED
09.04.2021,ADULT SOCIAL CARE,REDACTED PERSONAL DATA,904.96,PHY LTS 18-64,PAYMENTS TO CLIENTS (DIRECT PAYMENTS),REDACTED,REDACTED
09.04.2021,ADULT SOCIAL CARE,REDACTED PERSONAL DATA,"2,395.52",PHY LTS 18-64,PAYMENTS TO CLIENTS (DIRECT PAYMENTS),REDACTED,REDACTED
09.04.2021,ADULT SOCIAL CARE,REDACTED PERSONAL DATA,"1,145.36",PHY LTS 18-64,PAYMENTS TO CLIENTS (DIRECT PAYMENTS),REDACTED,REDACTED
09.04.2021,ADULT SOCIAL CARE,REDACTED PERSONAL DATA,806.00,PHY LTS 18-64,PAYMENTS TO CLIENTS (DIRECT PAYMENTS),REDACTED,REDACTED
09.04.2021,ADULT SOCIAL CARE,REDACTED PERSONAL DATA,"1,137.00",PHY LTS 18-64,PAYMENTS TO CLIENTS (DIRECT PAYMENTS),REDACTED,REDACTED
09.04.2021,ADULT SOCIAL CARE,REDACTED PERSONAL DATA,254.52,PHY LTS 18-64,PAYMENTS TO CLIENTS (DIRECT PAYMENTS),REDACTED,REDACTED
09.04.2021,ADULT SOCIAL CARE,REDACTED PERSONAL DATA,738.00,PHY LTS 18-64,PAYMENTS TO CLIENTS (DIRECT PAYMENTS),REDACTED,REDACTED
09.04.2021,ADULT SOCIAL CARE,REDACTED PERSONAL DATA,395.92,PHY LTS 18-64,PAYMENTS TO CLIENTS (DIRECT PAYMENTS),REDACTED,REDACTED
09.04.2021,ADULT SOCIAL CARE,REDACTED PERSONAL DATA,"1,131.20",PHY LTS 18-64,PAYMENTS TO CLIENTS (DIRECT PAYMENTS),REDACTED,REDACTED
09.04.2021,ADULT SOCIAL CARE,REDACTED PERSONAL DATA,"1,874.72",PHY LTS 18-64,PAYMENTS TO CLIENTS (DIRECT PAYMENTS),REDACTED,REDACTED
09.04.2021,ADULT SOCIAL CARE,REDACTED PERSONAL DATA,593.88,PHY LTS 18-64,PAYMENTS TO CLIENTS (DIRECT PAYMENTS),REDACTED,REDACTED
09.04.2021,ADULT SOCIAL CARE,REDACTED PERSONAL DATA,551.48,PHY LTS 18-64,PAYMENTS TO CLIENTS (DIRECT PAYMENTS),REDACTED,REDACTED
09.04.2021,ADULT SOCIAL CARE,REDACTED PERSONAL DATA,"1,371.60",PHY LTS 18-64,PAYMENTS TO CLIENTS (DIRECT PAYMENTS),REDACTED,REDACTED
09.04.2021,ADULT SOCIAL CARE,REDACTED PERSONAL DATA,"1,204.16",PHY LTS 18-64,PAYMENTS TO CLIENTS (DIRECT PAYMENTS),REDACTED,REDACTED
09.04.2021,ADULT SOCIAL CARE,REDACTED PERSONAL DATA,"1,278.48",PHY LTS 18-64,PAYMENTS TO CLIENTS (DIRECT PAYMENTS),REDACTED,REDACTED
09.04.2021,ADULT SOCIAL CARE,REDACTED PERSONAL DATA,"1,481.20",PHY LTS 18-64,PAYMENTS TO CLIENTS (DIRECT PAYMENTS),REDACTED,REDACTED
09.04.2021,ADULT SOCIAL CARE,REDACTED PERSONAL DATA,"3,535.00",PHY LTS 18-64,PAYMENTS TO CLIENTS (DIRECT PAYMENTS),REDACTED,REDACTED
09.04.2021,ADULT SOCIAL CARE,REDACTED PERSONAL DATA,"2,262.40",PHY LTS 18-64,PAYMENTS TO CLIENTS (DIRECT PAYMENTS),REDACTED,REDACTED
09.04.2021,ADULT SOCIAL CARE,REDACTED PERSONAL DATA,585.60,PHY LTS 18-64,PAYMENTS TO CLIENTS (DIRECT PAYMENTS),REDACTED,REDACTED
09.04.2021,ADULT SOCIAL CARE,REDACTED PERSONAL DATA,523.56,PHY LTS 18-64,PAYMENTS TO CLIENTS (DIRECT PAYMENTS),REDACTED,REDACTED
09.04.2021,ADULT SOCIAL CARE,REDACTED PERSONAL DATA,961.52,PHY LTS 18-64,PAYMENTS TO CLIENTS (DIRECT PAYMENTS),REDACTED,REDACTED
09.04.2021,ADULT SOCIAL CARE,REDACTED PERSONAL DATA,"1,024.88",PHY LTS 18-64,PAYMENTS TO CLIENTS (DIRECT PAYMENTS),REDACTED,REDACTED
09.04.2021,ADULT SOCIAL CARE,REDACTED PERSONAL DATA,"1,088.80",PHY LTS 18-64,PAYMENTS TO CLIENTS (DIRECT PAYMENTS),REDACTED,REDACTED
09.04.2021,ADULT SOCIAL CARE,REDACTED PERSONAL DATA,400.00,PHY LTS 18-64,PAYMENTS TO CLIENTS (DIRECT PAYMENTS),REDACTED,REDACTED
09.04.2021,ADULT SOCIAL CARE,REDACTED PERSONAL DATA,"2,739.80",PHY LTS 18-64,PAYMENTS TO CLIENTS (DIRECT PAYMENTS),REDACTED,REDACTED
09.04.2021,ADULT SOCIAL CARE,REDACTED PERSONAL DATA,296.96,PHY LTS 18-64,PAYMENTS TO CLIENTS (DIRECT PAYMENTS),REDACTED,REDACTED
09.04.2021,ADULT SOCIAL CARE,REDACTED PERSONAL DATA,848.40,PHY LTS 18-64,PAYMENTS TO CLIENTS (DIRECT PAYMENTS),REDACTED,REDACTED
09.04.2021,ADULT SOCIAL CARE,REDACTED PERSONAL DATA,777.72,PHY LTS 18-64,PAYMENTS TO CLIENTS (DIRECT PAYMENTS),REDACTED,REDACTED
09.04.2021,ADULT SOCIAL CARE,REDACTED PERSONAL DATA,707.00,PHY LTS 18-64,PAYMENTS TO CLIENTS (DIRECT PAYMENTS),REDACTED,REDACTED
09.04.2021,ADULT SOCIAL CARE,REDACTED PERSONAL DATA,933.24,PHY LTS 18-64,PAYMENTS TO CLIENTS (DIRECT PAYMENTS),REDACTED,REDACTED
09.04.2021,ADULT SOCIAL CARE,REDACTED PERSONAL DATA,"2,163.44",PHY LTS 18-64,PAYMENTS TO CLIENTS (DIRECT PAYMENTS),REDACTED,REDACTED
09.04.2021,ADULT SOCIAL CARE,REDACTED PERSONAL DATA,"1,583.68",PHY LTS 18-64,PAYMENTS TO CLIENTS (DIRECT PAYMENTS),REDACTED,REDACTED
09.04.2021,ADULT SOCIAL CARE,REDACTED PERSONAL DATA,751.96,PHY LTS 18-64,PAYMENTS TO CLIENTS (DIRECT PAYMENTS),REDACTED,REDACTED
09.04.2021,ADULT SOCIAL CARE,REDACTED PERSONAL DATA,989.80,PHY LTS 18-64,PAYMENTS TO CLIENTS (DIRECT PAYMENTS),REDACTED,REDACTED
09.04.2021,ADULT SOCIAL CARE,REDACTED PERSONAL DATA,"1,168.80",PHY LTS 18-64,PAYMENTS TO CLIENTS (DIRECT PAYMENTS),REDACTED,REDACTED
09.04.2021,ADULT SOCIAL CARE,REDACTED PERSONAL DATA,"1,583.68",PHY LTS 18-64,PAYMENTS TO CLIENTS (DIRECT PAYMENTS),REDACTED,REDACTED
09.04.2021,ADULT SOCIAL CARE,REDACTED PERSONAL DATA,"1,199.76",PHY LTS 18-64,PAYMENTS TO CLIENTS (DIRECT PAYMENTS),REDACTED,REDACTED
09.04.2021,ADULT SOCIAL CARE,REDACTED PERSONAL DATA,741.16,PHY LTS 18-64,PAYMENTS TO CLIENTS (DIRECT PAYMENTS),REDACTED,REDACTED
09.04.2021,ADULT SOCIAL CARE,REDACTED PERSONAL DATA,339.36,PHY LTS 18-64,PAYMENTS TO CLIENTS (DIRECT PAYMENTS),REDACTED,REDACTED
09.04.2021,ADULT SOCIAL CARE,REDACTED PERSONAL DATA,"2,088.48",PHY LTS 18-64,PAYMENTS TO CLIENTS (DIRECT PAYMENTS),REDACTED,REDACTED
09.04.2021,ADULT SOCIAL CARE,REDACTED PERSONAL DATA,565.60,PHY LTS 18-64,PAYMENTS TO CLIENTS (DIRECT PAYMENTS),REDACTED,REDACTED
09.04.2021,ADULT SOCIAL CARE,REDACTED PERSONAL DATA,769.44,PHY LTS 18-64,PAYMENTS TO CLIENTS (DIRECT PAYMENTS),REDACTED,REDACTED
09.04.2021,ADULT SOCIAL CARE,REDACTED PERSONAL DATA,"1,286.76",PHY LTS 18-64,PAYMENTS TO CLIENTS (DIRECT PAYMENTS),REDACTED,REDACTED
09.04.2021,ADULT SOCIAL CARE,REDACTED PERSONAL DATA,430.08,PHY LTS 18-64,PAYMENTS TO CLIENTS (DIRECT PAYMENTS),REDACTED,REDACTED
09.04.2021,ADULT SOCIAL CARE,REDACTED PERSONAL DATA,494.92,PHY LTS 18-64,PAYMENTS TO CLIENTS (DIRECT PAYMENTS),REDACTED,REDACTED
09.04.2021,ADULT SOCIAL CARE,REDACTED PERSONAL DATA,868.40,PHY LTS 18-64,PAYMENTS TO CLIENTS (DIRECT PAYMENTS),REDACTED,REDACTED
09.04.2021,ADULT SOCIAL CARE,REDACTED PERSONAL DATA,670.44,PHY LTS 18-64,PAYMENTS TO CLIENTS (DIRECT PAYMENTS),REDACTED,REDACTED
09.04.2021,ADULT SOCIAL CARE,REDACTED PERSONAL DATA,"1,693.12",PHY LTS 18-64,PAYMENTS TO CLIENTS (DIRECT PAYMENTS),REDACTED,REDACTED
09.04.2021,ADULT SOCIAL CARE,REDACTED PERSONAL DATA,472.48,PHY LTS 18-64,PAYMENTS TO CLIENTS (DIRECT PAYMENTS),REDACTED,REDACTED
09.04.2021,ADULT SOCIAL CARE,BLACK ELDER GROUP SWK,540.00,PHY LTS 65+,DAYCARE,2103245537,1000067369
09.04.2021,ADULT SOCIAL CARE,SOUTHWARK CYPRIOT DAY CENTRE LTD,288.00,PHY LTS 65+,DAYCARE,2103245455,1000067736
09.04.2021,ADULT SOCIAL CARE,PEOPLEPLUS ILS,"-1,284.24",PHY LTS 65+,DISCRETIONARY FLEXIBLE FEES & INCOME,2103244989,1000061886
09.04.2021,ADULT SOCIAL CARE,PEOPLEPLUS ILS,-331.40,PHY LTS 65+,DISCRETIONARY FLEXIBLE FEES & INCOME,2103245622,1000061886
09.04.2021,ADULT SOCIAL CARE,PEOPLEPLUS ILS,-275.08,PHY LTS 65+,DISCRETIONARY FLEXIBLE FEES & INCOME,2103244977,1000061886
09.04.2021,ADULT SOCIAL CARE,PEOPLEPLUS ILS,378.84,PHY LTS 65+,DISCRETIONARY FLEXIBLE FEES & INCOME,2103245404,1000061886
09.04.2021,ADULT SOCIAL CARE,REDACTED PERSONAL DATA,-506.96,PHY LTS 65+,DISCRETIONARY FLEXIBLE FEES & INCOME,REDACTED,REDACTED
09.04.2021,ADULT SOCIAL CARE,THAMES HOMECARE SERVICE LTD,367.94,PHY LTS 65+,HOMECARE - C&V,2103245702,1000079295
09.04.2021,ADULT SOCIAL CARE,THAMES HOMECARE SERVICE LTD,381.57,PHY LTS 65+,HOMECARE - C&V,2103245670,1000079295
